Directorate,Department,Expenditure Type,Ref.Doc.1,Vendor Name,Expenditure Amount (exc VAT),Payment Date
Assurance,Assurance,Advertising,60052886,NEWSQUEST (LONDON) LIMITED, 644.90 ,17/05/2016
Assurance,Assurance,Advertising,60055417,THE BARNETGROUP LIMITED, 750.00 ,27/05/2016
Assurance,Assurance,Fees and Charges,80003590,THE LONDON MAYORS' ASSOCIATION, 30.00 ,06/05/2016
Assurance,Assurance,Furniture-Purchase-Repair,60055684,BARNET LOCK CENTRE LTD., 74.58 ,31/05/2016
Assurance,Assurance,Other Indirect Employee Expens,80003578,REDACTED - PERSONAL DATA, 300.00 ,06/05/2016
Assurance,Assurance,Other Indirect Employee Expens,80003457,THE LONDON MAYORS' ASSOCIATION, 40.00 ,03/05/2016
Assurance,Assurance,Other Services,60054714,REDACTED - PERSONAL DATA," 1,240.00 ",17/05/2016
Assurance,Assurance,Postage,60050429,ROYAL MAIL GROUP LIMITED," 1,143.04 ",23/05/2016
Assurance,Assurance,Postage,60055508,ROYAL MAIL GROUP LIMITED," 1,028.61 ",26/05/2016
Assurance,Assurance,Professional Services,60055470,ELECTORAL REFORM SERVICES," 1,199.65 ",26/05/2016
Assurance,Assurance,Professional Services,60055479,ELECTORAL REFORM SERVICES, 463.00 ,26/05/2016
Assurance,Assurance,Professional Services,60053327,PRICEWATERHOUSE COOPERS," 8,250.00 ",06/05/2016
Assurance,Assurance,Professional Services,60053328,PRICEWATERHOUSE COOPERS," 10,725.00 ",06/05/2016
Assurance,Assurance,Publications,60053603,REDACTED - PERSONAL DATA," 1,000.00 ",04/05/2016
Assurance,Assurance,Rents,80003791,15TH FINCHLEY SCOUT GROUP, 400.00 ,20/05/2016
Assurance,Assurance,Rents,80003799,ARKLEY CLUB, 500.00 ,20/05/2016
Assurance,Assurance,Rents,80003793,EAST FINCHLEY BAPTIST CHURCH, 625.00 ,20/05/2016
Assurance,Assurance,Rents,60054816,ETZ CHAIM JEWISH PRIMARY SCHOOL, 963.00 ,17/05/2016
Assurance,Assurance,Rents,80003792,FINCHLEY METHODIST CHURCH, 475.00 ,20/05/2016
Assurance,Assurance,Rents,60053714,LYONSDOWN HALL, 990.00 ,06/05/2016
Assurance,Assurance,Rents,80003796,RAILWAY TERRACES ALLOTMENT SOCIETY, 200.00 ,20/05/2016
Assurance,Assurance,Rents,80003797,ST EDWARD THE CONFESSOR CHURCH, 700.00 ,20/05/2016
Assurance,Assurance,Rents,60053685,ST MARY & ARCHANGEL MICHAEL CHURCH, 950.00 ,06/05/2016
Assurance,Assurance,Rents,80003800,ST PAUL'S CHURCH, 490.00 ,20/05/2016
Assurance,Assurance,Rents,80003794,ST PHILIP THE APOSTLE, 300.00 ,20/05/2016
Assurance,Assurance,Rents,80003798,TOTTERIDGE TENNIS CLUB, 680.00 ,20/05/2016
Assurance,Assurance,Subscriptions,60054068,THOMAS FATTORINI LTD, 41.99 ,27/05/2016
Assurance,Assurance,Training,60054052,THE KNOWLEDGE ACADEMY LTD, 229.00 ,04/05/2016
Assurance,Assurance,Translation Exp / Interpret,60053302,PRIME PRODUCTION LTD, 54.50 ,06/05/2016
Assurance,Assurance,Translation Exp / Interpret,60053372,PRIME PRODUCTION LTD, 41.00 ,06/05/2016
Assurance,Assurance,Ttl IT & Comms,60050330,BRITISH TELECOM PLC," 3,356.38 ",17/05/2016
Assurance,Assurance,Ttl IT & Comms,60055396,HAMILTON RENTALS LTD," 2,008.00 ",25/05/2016
Central Expenses,Central Expenses,Grant Payments,10013206,LONDON BOROUGH OF EALING," 39,000.00 ",06/05/2016
Central Expenses,Central Expenses,Insurance Claims,80003562,ACC' GEN' OF THE SENIOR COURT," 1,850.00 ",06/05/2016
Central Expenses,Central Expenses,Insurance Claims,80003772,ADDINGTON MEDICAL CENTRE, 50.00 ,19/05/2016
Central Expenses,Central Expenses,Insurance Claims,80003726,ADVANTAGE SOLICITORS," 2,050.00 ",17/05/2016
Central Expenses,Central Expenses,Insurance Claims,80003729,ADVANTAGE SOLICITORS, 816.00 ,17/05/2016
Central Expenses,Central Expenses,Insurance Claims,80003364,BERRYMANS LACE MAWER," 1,684.75 ",19/05/2016
Central Expenses,Central Expenses,Insurance Claims,80003958,BROWNE JACOBSON LLP," 36,000.00 ",31/05/2016
Central Expenses,Central Expenses,Insurance Claims,80003818,C T BRATLEY & CO LTD, 60.00 ,20/05/2016
Central Expenses,Central Expenses,Insurance Claims,80003916,CAMPS SOLICITORS," 4,490.00 ",31/05/2016
Central Expenses,Central Expenses,Insurance Claims,80003918,CAMPS SOLICITORS," 1,583.70 ",31/05/2016
Central Expenses,Central Expenses,Insurance Claims,80003588,CENTRAL LONDON COMMUNITYHEALTH, 35.00 ,10/05/2016
Central Expenses,Central Expenses,Insurance Claims,60054345,CHARLES DUKES ASSESSORS, 60.00 ,10/05/2016
Central Expenses,Central Expenses,Insurance Claims,80003452,DWP, 842.00 ,05/05/2016
Central Expenses,Central Expenses,Insurance Claims,80003565,DWP, 627.00 ,06/05/2016
Central Expenses,Central Expenses,Insurance Claims,80003602,DWP, 647.00 ,10/05/2016
Central Expenses,Central Expenses,Insurance Claims,80003731,DWP, 647.00 ,17/05/2016
Central Expenses,Central Expenses,Insurance Claims,80003919,DWP, 637.00 ,31/05/2016
Central Expenses,Central Expenses,Insurance Claims,80003950,DWP COMPENSATION RECOVERY UNIT, 647.00 ,31/05/2016
Central Expenses,Central Expenses,Insurance Claims,80003954,DWP COMPENSATION RECOVERY UNIT, 637.00 ,31/05/2016
Central Expenses,Central Expenses,Insurance Claims,80003584,DWP CRU," 11,272.33 ",10/05/2016
Central Expenses,Central Expenses,Insurance Claims,80003586,DWP CRU, 755.00 ,10/05/2016
Central Expenses,Central Expenses,Insurance Claims,80003826,DWP CRU, 637.00 ,23/05/2016
Central Expenses,Central Expenses,Insurance Claims,80003776,ENTERPRISE RENT-A-CAR," 1,392.86 ",19/05/2016
Central Expenses,Central Expenses,Insurance Claims,80003779,ENTERPRISE RENT-A-CAR, 982.31 ,19/05/2016
Central Expenses,Central Expenses,Insurance Claims,80003782,ENTERPRISE RENT-A-CAR, 767.47 ,19/05/2016
Central Expenses,Central Expenses,Insurance Claims,80003785,ENTERPRISE RENT-A-CAR, 875.69 ,19/05/2016
Central Expenses,Central Expenses,Insurance Claims,80003717,EXCEL LAW," 22,400.00 ",13/05/2016
Central Expenses,Central Expenses,Insurance Claims,80003780,FMG SUPPORT LTD," 2,721.35 ",20/05/2016
Central Expenses,Central Expenses,Insurance Claims,80003475,GEOFFREY LEAVER SOLICITORS," 89,665.00 ",04/05/2016
Central Expenses,Central Expenses,Insurance Claims,80003589,HEATHFIELDE MEDICAL CENTRE, 50.00 ,10/05/2016
Central Expenses,Central Expenses,Insurance Claims,80003624,HELPHIRE LTD," 1,529.78 ",10/05/2016
Central Expenses,Central Expenses,Insurance Claims,80003953,HUGHES WALKER SOLICITORS  LTD," 23,930.28 ",27/05/2016
Central Expenses,Central Expenses,Insurance Claims,80003825,IRWIN MITCHELL CLIENTS' ACCOUN," 6,600.00 ",23/05/2016
Central Expenses,Central Expenses,Insurance Claims,80003824,IRWIN MITCHELL CLIENT'S ACCOUN," 2,136.00 ",23/05/2016
Central Expenses,Central Expenses,Insurance Claims,60052184,JOHNSON AUSTIN PARTNERSHIP LLP, 270.00 ,09/05/2016
Central Expenses,Central Expenses,Insurance Claims,60052244,JOHNSON AUSTIN PARTNERSHIP LLP, 450.00 ,09/05/2016
Central Expenses,Central Expenses,Insurance Claims,60052693,JOHNSON AUSTIN PARTNERSHIP LLP," 1,000.00 ",09/05/2016
Central Expenses,Central Expenses,Insurance Claims,60054572,JOHNSON AUSTIN PARTNERSHIP LLP, 150.00 ,20/05/2016
Central Expenses,Central Expenses,Insurance Claims,60052253,LEGAL COSTS NEGOTIATORS, 726.64 ,17/05/2016
Central Expenses,Central Expenses,Insurance Claims,60054394,LEGAL COSTS NEGOTIATORS, 822.90 ,17/05/2016
Central Expenses,Central Expenses,Insurance Claims,60055366,LEGAL COSTS NEGOTIATORS, 391.69 ,26/05/2016
Central Expenses,Central Expenses,Insurance Claims,60055421,LEGAL COSTS NEGOTIATORS, 320.85 ,26/05/2016
Central Expenses,Central Expenses,Insurance Claims,80003600,LV=," 2,587.62 ",10/05/2016
Central Expenses,Central Expenses,Insurance Claims,80003455,MILLWAY MEDICAL PRACTICE, 50.00 ,06/05/2016
Central Expenses,Central Expenses,Insurance Claims,80003581,PLEXUS LAW," 8,500.00 ",10/05/2016
Central Expenses,Central Expenses,Insurance Claims,80003587,ROYAL FREE LONDON NHS, 50.00 ,10/05/2016
Central Expenses,Central Expenses,Insurance Claims,80003920,ROYAL FREE LONDON NHS TRUST, 50.00 ,27/05/2016
Central Expenses,Central Expenses,Insurance Claims,80003952,ROYAL FREE LONDON NHS TRUST, 25.00 ,27/05/2016
Central Expenses,Central Expenses,Insurance Claims,80003564,SCOTT REES & CO," 4,209.75 ",06/05/2016
Central Expenses,Central Expenses,Insurance Claims,80003795,SCOTT REES & CO SOLICITORS," 5,750.00 ",19/05/2016
Central Expenses,Central Expenses,Insurance Claims,80003802,SCOTT REES & CO SOLICITORS," 2,547.00 ",19/05/2016
Central Expenses,Central Expenses,Insurance Claims,80003810,SCOTT REES & CO SOLICITORS, 96.00 ,20/05/2016
Central Expenses,Central Expenses,Insurance Claims,80003583,SCOTT REES & CO. SOLICITORS," 30,949.42 ",09/05/2016
Central Expenses,Central Expenses,Insurance Claims,80003582,SIMPSON MILLAR," 4,250.00 ",10/05/2016
Central Expenses,Central Expenses,Insurance Claims,80003649,SIMPSON MILLAR LLP, 25.00 ,13/05/2016
Central Expenses,Central Expenses,Insurance Claims,80003778,SLATER GORDON SOLUTIONS, 386.83 ,20/05/2016
Central Expenses,Central Expenses,Insurance Claims,60049530,THE BARNETGROUP LIMITED," 8,585.73 ",05/05/2016
Central Expenses,Central Expenses,Insurance Claims,80003775,UK INSURANCE LTD, 734.50 ,20/05/2016
Central Expenses,Central Expenses,Insurance Claims,80003576,WARDELL ARMSTRONG LLP, 822.00 ,13/05/2016
Central Expenses,Central Expenses,Insurance Claims,60049162,WEIGHTMANS LLP," 1,075.00 ",05/05/2016
Central Expenses,Central Expenses,Insurance Claims,60049189,WEIGHTMANS LLP," 1,314.00 ",05/05/2016
Central Expenses,Central Expenses,Insurance Claims,60049289,WEIGHTMANS LLP, 159.30 ,05/05/2016
Central Expenses,Central Expenses,Insurance Claims,60049373,WEIGHTMANS LLP," 1,605.30 ",09/05/2016
Central Expenses,Central Expenses,Insurance Claims,80003483,ZURICH INSURANCE," 5,292.00 ",06/05/2016
Central Expenses,Central Expenses,Insurance Premiums,80003774,ZURICH MANAGEMENT SERVICES," 8,000.00 ",19/05/2016
Central Expenses,Central Expenses,Other Establishments - Third P,EBX0116105,LEE VALLEY REGIONAL PARK AUTH.," 32,219.58 ",17/05/2016
Central Expenses,Central Expenses,Other Establishments - Third P,EBX0116778,LONDON PENSIONS FUND AUTHORITY," 49,627.80 ",23/05/2016
Central Expenses,Central Expenses,Pensions To Retired Employees,60054828,LONDON PENSIONS FUND AUTHORITY," 2,781.87 ",16/05/2016
Central Expenses,Central Expenses,Pensions To Retired Employees,60055110,LONDON PENSIONS FUND AUTHORITY," 2,827.82 ",19/05/2016
Commercial,Births Deaths & Marriages,Cleaning and domestic material,60054221,CHURCHILL CONTRACT SERVICES, 624.26 ,27/05/2016
Commercial,Customer Support Group,Books-CDs-Audio-Video,60053106,SM ELECTRICAL SERVICES, 275.00 ,03/05/2016
Commercial,Customer Support Group,Building Repairs & Maintenance,60053911,AFFINITY WATER LIMITED, 19.24 ,04/05/2016
Commercial,Customer Support Group,Building Repairs & Maintenance,60052467,AJS LTD, 24.75 ,13/05/2016
Commercial,Customer Support Group,Building Repairs & Maintenance,60055577,BLUE 9 SECURITY LIMITED, 162.50 ,27/05/2016
Commercial,Customer Support Group,Building Repairs & Maintenance,60054937,DOORWAY-MAINTENANCE CO., 250.00 ,23/05/2016
Commercial,Customer Support Group,Building Repairs & Maintenance,60053256,DORMA UK LTD, 730.62 ,12/05/2016
Commercial,Customer Support Group,Building Repairs & Maintenance,60055504,GEESINK NORBA LTD," 1,878.71 ",27/05/2016
Commercial,Customer Support Group,Building Repairs & Maintenance,60051807,GTI ENVIRONMENTAL SERVICES LTD," 1,150.00 ",09/05/2016
Commercial,Customer Support Group,Building Repairs & Maintenance,60053488,KENT COUNTY COUNCIL (KCS), 14.39 ,04/05/2016
Commercial,Customer Support Group,Building Repairs & Maintenance,60047685,LEE SECURITY LONDON LIMITED, 18.24 ,17/05/2016
Commercial,Customer Support Group,Building Repairs & Maintenance,60046163,LIFT & ENGINEERING SERVICES LTD, 215.16 ,09/05/2016
Commercial,Customer Support Group,Building Repairs & Maintenance,60046170,LIFT & ENGINEERING SERVICES LTD, 48.58 ,05/05/2016
Commercial,Customer Support Group,Building Repairs & Maintenance,60046221,LIFT & ENGINEERING SERVICES LTD, 99.17 ,05/05/2016
Commercial,Customer Support Group,Building Repairs & Maintenance,60046251,LIFT & ENGINEERING SERVICES LTD, 49.58 ,05/05/2016
Commercial,Customer Support Group,Building Repairs & Maintenance,60046254,LIFT & ENGINEERING SERVICES LTD, 49.58 ,05/05/2016
Commercial,Customer Support Group,Building Repairs & Maintenance,60046920,LIFT & ENGINEERING SERVICES LTD, 99.17 ,05/05/2016
Commercial,Customer Support Group,Building Repairs & Maintenance,60052929,LIFT & ENGINEERING SERVICES LTD, 49.58 ,05/05/2016
Commercial,Customer Support Group,Building Repairs & Maintenance,60052948,LIFT & ENGINEERING SERVICES LTD, 49.58 ,05/05/2016
Commercial,Customer Support Group,Building Repairs & Maintenance,60052973,LIFT & ENGINEERING SERVICES LTD, 49.58 ,05/05/2016
Commercial,Customer Support Group,Building Repairs & Maintenance,60053107,LIFT & ENGINEERING SERVICES LTD, 116.00 ,05/05/2016
Commercial,Customer Support Group,Building Repairs & Maintenance,60053122,LIFT & ENGINEERING SERVICES LTD, 203.00 ,05/05/2016
Commercial,Customer Support Group,Building Repairs & Maintenance,60053130,LIFT & ENGINEERING SERVICES LTD," 3,625.00 ",10/05/2016
Commercial,Customer Support Group,Building Repairs & Maintenance,60053143,LIFT & ENGINEERING SERVICES LTD, 232.00 ,05/05/2016
Commercial,Customer Support Group,Building Repairs & Maintenance,60054309,LIFT & ENGINEERING SERVICES LTD," 1,363.75 ",26/05/2016
Commercial,Customer Support Group,Building Repairs & Maintenance,60053240,OAKRAY LIMITED, 433.40 ,12/05/2016
Commercial,Customer Support Group,Building Repairs & Maintenance,60053243,OAKRAY LIMITED, 520.63 ,12/05/2016
Commercial,Customer Support Group,Building Repairs & Maintenance,60053267,OAKRAY LIMITED, 198.18 ,12/05/2016
Commercial,Customer Support Group,Building Repairs & Maintenance,60053276,OAKRAY LIMITED, 383.70 ,12/05/2016
Commercial,Customer Support Group,Building Repairs & Maintenance,60053280,OAKRAY LIMITED, 80.00 ,12/05/2016
Commercial,Customer Support Group,Building Repairs & Maintenance,60053285,OAKRAY LIMITED, 197.35 ,12/05/2016
Commercial,Customer Support Group,Building Repairs & Maintenance,60053699,OAKRAY LIMITED, 104.00 ,19/05/2016
Commercial,Customer Support Group,Building Repairs & Maintenance,60053701,OAKRAY LIMITED, 160.00 ,18/05/2016
Commercial,Customer Support Group,Building Repairs & Maintenance,60053707,OAKRAY LIMITED, 80.00 ,19/05/2016
Commercial,Customer Support Group,Building Repairs & Maintenance,60053712,OAKRAY LIMITED, 64.00 ,18/05/2016
Commercial,Customer Support Group,Building Repairs & Maintenance,60053716,OAKRAY LIMITED, 292.23 ,18/05/2016
Commercial,Customer Support Group,Building Repairs & Maintenance,60053717,OAKRAY LIMITED, 64.00 ,18/05/2016
Commercial,Customer Support Group,Building Repairs & Maintenance,60053718,OAKRAY LIMITED, 80.00 ,18/05/2016
Commercial,Customer Support Group,Building Repairs & Maintenance,60053720,OAKRAY LIMITED, 80.00 ,19/05/2016
Commercial,Customer Support Group,Building Repairs & Maintenance,60053722,OAKRAY LIMITED, 144.00 ,19/05/2016
Commercial,Customer Support Group,Building Repairs & Maintenance,60053725,OAKRAY LIMITED, 80.00 ,19/05/2016
Commercial,Customer Support Group,Building Repairs & Maintenance,60053730,OAKRAY LIMITED, 72.00 ,19/05/2016
Commercial,Customer Support Group,Building Repairs & Maintenance,60053732,OAKRAY LIMITED, 265.51 ,19/05/2016
Commercial,Customer Support Group,Building Repairs & Maintenance,60053736,OAKRAY LIMITED, 80.00 ,19/05/2016
Commercial,Customer Support Group,Building Repairs & Maintenance,60053753,OAKRAY LIMITED, 154.50 ,19/05/2016
Commercial,Customer Support Group,Building Repairs & Maintenance,60053764,OAKRAY LIMITED, 141.52 ,19/05/2016
Commercial,Customer Support Group,Building Repairs & Maintenance,60053771,OAKRAY LIMITED, 162.00 ,19/05/2016
Commercial,Customer Support Group,Building Repairs & Maintenance,60053777,OAKRAY LIMITED, 96.00 ,19/05/2016
Commercial,Customer Support Group,Building Repairs & Maintenance,60054322,P.C.C OF MONKEN HADLEY," 4,420.00 ",09/05/2016
Commercial,Customer Support Group,Building Repairs & Maintenance,60050511,RGE SERVICES, 62.00 ,17/05/2016
Commercial,Customer Support Group,Building Repairs & Maintenance,60050518,RGE SERVICES, 538.15 ,26/05/2016
Commercial,Customer Support Group,Building Repairs & Maintenance,60052233,RGE SERVICES, 62.00 ,04/05/2016
Commercial,Customer Support Group,Building Repairs & Maintenance,60052985,RGE SERVICES, 62.00 ,04/05/2016
Commercial,Customer Support Group,Building Repairs & Maintenance,60053000,RGE SERVICES, 205.25 ,05/05/2016
Commercial,Customer Support Group,Building Repairs & Maintenance,60053007,RGE SERVICES, 226.64 ,05/05/2016
Commercial,Customer Support Group,Building Repairs & Maintenance,60053016,RGE SERVICES, 151.77 ,04/05/2016
Commercial,Customer Support Group,Building Repairs & Maintenance,60053021,RGE SERVICES, 44.72 ,06/05/2016
Commercial,Customer Support Group,Building Repairs & Maintenance,60053024,RGE SERVICES, 179.21 ,05/05/2016
Commercial,Customer Support Group,Building Repairs & Maintenance,60053038,RGE SERVICES, 440.62 ,06/05/2016
Commercial,Customer Support Group,Building Repairs & Maintenance,60053040,RGE SERVICES, 170.00 ,04/05/2016
Commercial,Customer Support Group,Building Repairs & Maintenance,60053044,RGE SERVICES, 482.94 ,06/05/2016
Commercial,Customer Support Group,Building Repairs & Maintenance,60053054,RGE SERVICES, 422.28 ,04/05/2016
Commercial,Customer Support Group,Building Repairs & Maintenance,60053058,RGE SERVICES, 450.70 ,05/05/2016
Commercial,Customer Support Group,Building Repairs & Maintenance,60053059,RGE SERVICES, 62.00 ,06/05/2016
Commercial,Customer Support Group,Building Repairs & Maintenance,60053063,RGE SERVICES, 308.70 ,06/05/2016
Commercial,Customer Support Group,Building Repairs & Maintenance,60053071,RGE SERVICES, 928.81 ,06/05/2016
Commercial,Customer Support Group,Building Repairs & Maintenance,60053085,RGE SERVICES, 188.05 ,05/05/2016
Commercial,Customer Support Group,Building Repairs & Maintenance,60054366,RGE SERVICES, 62.00 ,24/05/2016
Commercial,Customer Support Group,Building Repairs & Maintenance,60054370,RGE SERVICES, 124.00 ,24/05/2016
Commercial,Customer Support Group,Building Repairs & Maintenance,60054379,RGE SERVICES, 62.00 ,24/05/2016
Commercial,Customer Support Group,Building Repairs & Maintenance,60054380,RGE SERVICES, 62.00 ,24/05/2016
Commercial,Customer Support Group,Building Repairs & Maintenance,60054391,RGE SERVICES, 66.42 ,25/05/2016
Commercial,Customer Support Group,Building Repairs & Maintenance,60054395,RGE SERVICES, 88.46 ,24/05/2016
Commercial,Customer Support Group,Building Repairs & Maintenance,60054401,RGE SERVICES, 138.06 ,24/05/2016
Commercial,Customer Support Group,Building Repairs & Maintenance,60054410,RGE SERVICES, 83.72 ,24/05/2016
Commercial,Customer Support Group,Building Repairs & Maintenance,60054419,RGE SERVICES, 124.00 ,24/05/2016
Commercial,Customer Support Group,Building Repairs & Maintenance,60054423,RGE SERVICES, 170.18 ,24/05/2016
Commercial,Customer Support Group,Building Repairs & Maintenance,60054434,RGE SERVICES, 225.59 ,25/05/2016
Commercial,Customer Support Group,Building Repairs & Maintenance,60054436,RGE SERVICES, 68.62 ,24/05/2016
Commercial,Customer Support Group,Building Repairs & Maintenance,60054438,RGE SERVICES, 83.43 ,24/05/2016
Commercial,Customer Support Group,Building Repairs & Maintenance,60054451,RGE SERVICES, 349.29 ,24/05/2016
Commercial,Customer Support Group,Building Repairs & Maintenance,60054452,RGE SERVICES, 402.00 ,24/05/2016
Commercial,Customer Support Group,Building Repairs & Maintenance,60054453,RGE SERVICES, 470.86 ,24/05/2016
Commercial,Customer Support Group,Building Repairs & Maintenance,60054454,RGE SERVICES, 62.00 ,24/05/2016
Commercial,Customer Support Group,Building Repairs & Maintenance,60054458,RGE SERVICES, 86.43 ,24/05/2016
Commercial,Customer Support Group,Building Repairs & Maintenance,60054463,RGE SERVICES, 62.00 ,24/05/2016
Commercial,Customer Support Group,Building Repairs & Maintenance,60054477,RGE SERVICES, 136.71 ,24/05/2016
Commercial,Customer Support Group,Building Repairs & Maintenance,60054478,RGE SERVICES, 78.03 ,24/05/2016
Commercial,Customer Support Group,Building Repairs & Maintenance,60052156,S W BRUCE & CO LTD, 71.25 ,04/05/2016
Commercial,Customer Support Group,Building Repairs & Maintenance,60052173,S W BRUCE & CO LTD, 152.91 ,03/05/2016
Commercial,Customer Support Group,Building Repairs & Maintenance,60052186,S W BRUCE & CO LTD, 136.63 ,04/05/2016
Commercial,Customer Support Group,Building Repairs & Maintenance,60052190,S W BRUCE & CO LTD, 114.85 ,04/05/2016
Commercial,Customer Support Group,Building Repairs & Maintenance,60052196,S W BRUCE & CO LTD, 45.35 ,04/05/2016
Commercial,Customer Support Group,Building Repairs & Maintenance,60052216,S W BRUCE & CO LTD, 183.78 ,04/05/2016
Commercial,Customer Support Group,Building Repairs & Maintenance,60052241,S W BRUCE & CO LTD, 235.13 ,04/05/2016
Commercial,Customer Support Group,Building Repairs & Maintenance,60052242,S W BRUCE & CO LTD, 28.50 ,04/05/2016
Commercial,Customer Support Group,Building Repairs & Maintenance,60052243,S W BRUCE & CO LTD, 57.00 ,04/05/2016
Commercial,Customer Support Group,Building Repairs & Maintenance,60052252,S W BRUCE & CO LTD, 53.66 ,04/05/2016
Commercial,Customer Support Group,Building Repairs & Maintenance,60052296,S W BRUCE & CO LTD, 762.28 ,04/05/2016
Commercial,Customer Support Group,Building Repairs & Maintenance,60052314,S W BRUCE & CO LTD, 294.52 ,04/05/2016
Commercial,Customer Support Group,Building Repairs & Maintenance,60052334,S W BRUCE & CO LTD, 57.00 ,04/05/2016
Commercial,Customer Support Group,Building Repairs & Maintenance,60052338,S W BRUCE & CO LTD, 98.65 ,04/05/2016
Commercial,Customer Support Group,Building Repairs & Maintenance,60052349,S W BRUCE & CO LTD, 223.69 ,04/05/2016
Commercial,Customer Support Group,Building Repairs & Maintenance,60052350,S W BRUCE & CO LTD, 30.40 ,04/05/2016
Commercial,Customer Support Group,Building Repairs & Maintenance,60052359,S W BRUCE & CO LTD, 234.28 ,04/05/2016
Commercial,Customer Support Group,Building Repairs & Maintenance,60052392,S W BRUCE & CO LTD, 188.83 ,03/05/2016
Commercial,Customer Support Group,Building Repairs & Maintenance,60052426,S W BRUCE & CO LTD, 28.29 ,03/05/2016
Commercial,Customer Support Group,Building Repairs & Maintenance,60052470,S W BRUCE & CO LTD, 99.86 ,03/05/2016
Commercial,Customer Support Group,Building Repairs & Maintenance,60052471,S W BRUCE & CO LTD, 42.75 ,03/05/2016
Commercial,Customer Support Group,Building Repairs & Maintenance,60052496,S W BRUCE & CO LTD, 244.55 ,03/05/2016
Commercial,Customer Support Group,Building Repairs & Maintenance,60052528,S W BRUCE & CO LTD, 105.82 ,03/05/2016
Commercial,Customer Support Group,Building Repairs & Maintenance,60052540,S W BRUCE & CO LTD, 63.21 ,03/05/2016
Commercial,Customer Support Group,Building Repairs & Maintenance,60052549,S W BRUCE & CO LTD, 83.67 ,03/05/2016
Commercial,Customer Support Group,Building Repairs & Maintenance,60052598,S W BRUCE & CO LTD, 29.32 ,04/05/2016
Commercial,Customer Support Group,Building Repairs & Maintenance,60052600,S W BRUCE & CO LTD, 34.30 ,04/05/2016
Commercial,Customer Support Group,Building Repairs & Maintenance,60052612,S W BRUCE & CO LTD, 45.42 ,03/05/2016
Commercial,Customer Support Group,Building Repairs & Maintenance,60052634,S W BRUCE & CO LTD, 189.47 ,04/05/2016
Commercial,Customer Support Group,Building Repairs & Maintenance,60052686,S W BRUCE & CO LTD, 26.62 ,03/05/2016
Commercial,Customer Support Group,Building Repairs & Maintenance,60052725,S W BRUCE & CO LTD, 37.79 ,03/05/2016
Commercial,Customer Support Group,Building Repairs & Maintenance,60052738,S W BRUCE & CO LTD, 34.30 ,04/05/2016
Commercial,Customer Support Group,Building Repairs & Maintenance,60052778,S W BRUCE & CO LTD, 81.04 ,05/05/2016
Commercial,Customer Support Group,Building Repairs & Maintenance,60053821,S W BRUCE & CO LTD, 64.26 ,04/05/2016
Commercial,Customer Support Group,Building Repairs & Maintenance,60052375,ST ANDREWS PAROCHIAL CHURCH COUNCIL," 3,360.00 ",04/05/2016
Commercial,Customer Support Group,Cleaning and domestic material,60008979,CHURCHILL CONTRACT SERVICES, 192.00 ,24/05/2016
Commercial,Customer Support Group,Cleaning and domestic material,60010870,CHURCHILL CONTRACT SERVICES, 448.00 ,24/05/2016
Commercial,Customer Support Group,Cleaning and domestic material,60052635,CHURCHILL CONTRACT SERVICES, 34.48 ,25/05/2016
Commercial,Customer Support Group,Cleaning and domestic material,60054224,CHURCHILL CONTRACT SERVICES," 11,562.54 ",27/05/2016
Commercial,Customer Support Group,Cleaning and domestic material,60054235,CHURCHILL CONTRACT SERVICES," 1,133.45 ",27/05/2016
Commercial,Customer Support Group,Cleaning and domestic material,60054263,CHURCHILL CONTRACT SERVICES, 661.80 ,27/05/2016
Commercial,Customer Support Group,Cleaning and domestic material,60054321,CHURCHILL CONTRACT SERVICES," 1,032.37 ",27/05/2016
Commercial,Customer Support Group,Cleaning and domestic material,60054335,CHURCHILL CONTRACT SERVICES," 7,329.82 ",27/05/2016
Commercial,Customer Support Group,Cleaning and domestic material,60054483,HERTFORDSHIRE SUPPLIES   COUNTY CO, 130.30 ,13/05/2016
Commercial,Customer Support Group,Cleaning and domestic material,60054489,HERTFORDSHIRE SUPPLIES   COUNTY CO, 192.00 ,13/05/2016
Commercial,Customer Support Group,Cleaning and domestic material,60054546,HERTFORDSHIRE SUPPLIES   COUNTY CO," 1,971.81 ",13/05/2016
Commercial,Customer Support Group,Cleaning and domestic material,60054554,HERTFORDSHIRE SUPPLIES   COUNTY CO, 968.16 ,13/05/2016
Commercial,Customer Support Group,Cleaning and domestic material,60054590,HERTFORDSHIRE SUPPLIES   COUNTY CO," 1,764.00 ",13/05/2016
Commercial,Customer Support Group,Cleaning and domestic material,60054598,HERTFORDSHIRE SUPPLIES   COUNTY CO, 651.50 ,13/05/2016
Commercial,Customer Support Group,Cleaning and domestic material,60054607,HERTFORDSHIRE SUPPLIES   COUNTY CO, 793.40 ,13/05/2016
Commercial,Customer Support Group,Contract Cleaning,60054222,CHURCHILL CONTRACT SERVICES, 294.16 ,27/05/2016
Commercial,Customer Support Group,CSG Services Contract Payment,60053266,CAPITA BUSINESS SERVICES LTD," 29,583.00 ",27/05/2016
Commercial,Customer Support Group,CSG Services Contract Payment,60053271,CAPITA BUSINESS SERVICES LTD," 55,560.00 ",16/05/2016
Commercial,Customer Support Group,CSG Services Contract Payment,60053286,CAPITA BUSINESS SERVICES LTD, 881.90 ,26/05/2016
Commercial,Customer Support Group,CSG Services Contract Payment,60054025,CAPITA BUSINESS SERVICES LTD," 154,304.48 ",27/05/2016
Commercial,Customer Support Group,CSG Services Contract Payment,60054708,CAPITA BUSINESS SERVICES LTD," 258,040.00 ",19/05/2016
Commercial,Customer Support Group,CSG Services Contract Payment,60054723,CAPITA BUSINESS SERVICES LTD," 1,376.00 ",12/05/2016
Commercial,Customer Support Group,CSG Services Contract Payment,60054817,CAPITA BUSINESS SERVICES LTD," 25,000.00 ",16/05/2016
Commercial,Customer Support Group,CSG Services Contract Payment,60054860,CAPITA BUSINESS SERVICES LTD," 31,846.50 ",19/05/2016
Commercial,Customer Support Group,CSG Services Contract Payment,60055346,CAPITA BUSINESS SERVICES LTD," 180,377.51 ",31/05/2016
Commercial,Customer Support Group,CSG Services Contract Payment,60055379,CAPITA BUSINESS SERVICES LTD," 9,271.85 ",27/05/2016
Commercial,Customer Support Group,CSG Services Contract Payment,60055389,CAPITA BUSINESS SERVICES LTD," 13,118.37 ",27/05/2016
Commercial,Customer Support Group,CSG Services Contract Payment,60055392,CAPITA BUSINESS SERVICES LTD," 37,532.14 ",27/05/2016
Commercial,Customer Support Group,CSG Services Contract Payment,60055450,CAPITA BUSINESS SERVICES LTD," 1,169,150.36 ",31/05/2016
Commercial,Customer Support Group,Electricity,60050557,BRITISH GAS BUSINESS, 157.60 ,25/05/2016
Commercial,Customer Support Group,Electricity,60053234,BRITISH GAS BUSINESS, 248.57 ,05/05/2016
Commercial,Customer Support Group,Electricity,60054625,BRITISH GAS BUSINESS(ELEC), 153.05 ,25/05/2016
Commercial,Customer Support Group,Electricity,10013222,EDF ENERGY CUSTOMERS PLC, 242.02 ,17/05/2016
Commercial,Customer Support Group,Electricity,60051060,EDF ENERGY CUSTOMERS PLC, 410.50 ,17/05/2016
Commercial,Customer Support Group,Electricity,60053330,KENT COUNTY COUNCIL (KCS)," 1,175.55 ",04/05/2016
Commercial,Customer Support Group,Electricity,60053356,KENT COUNTY COUNCIL (KCS)," 1,649.58 ",04/05/2016
Commercial,Customer Support Group,Electricity,60053507,KENT COUNTY COUNCIL (KCS), 180.89 ,04/05/2016
Commercial,Customer Support Group,Electricity,60053509,KENT COUNTY COUNCIL (KCS), 77.44 ,04/05/2016
Commercial,Customer Support Group,Electricity,60053548,KENT COUNTY COUNCIL (KCS), 220.07 ,04/05/2016
Commercial,Customer Support Group,Electricity,60053955,KENT COUNTY COUNCIL (KCS), 540.19 ,03/05/2016
Commercial,Customer Support Group,Electricity,60053966,KENT COUNTY COUNCIL (KCS), 371.53 ,03/05/2016
Commercial,Customer Support Group,Electricity,60054009,KENT COUNTY COUNCIL (KCS), 569.38 ,03/05/2016
Commercial,Customer Support Group,Electricity,60054641,KENT COUNTY COUNCIL (KCS)," 1,182.75 ",13/05/2016
Commercial,Customer Support Group,Electricity,60054905,KENT COUNTY COUNCIL (KCS)," 7,029.91 ",27/05/2016
Commercial,Customer Support Group,Electricity,60055063,KENT COUNTY COUNCIL (KCS)," 5,563.48 ",27/05/2016
Commercial,Customer Support Group,Electricity,60053310,NPOWER, 531.34 ,09/05/2016
Commercial,Customer Support Group,Electricity,60053386,NPOWER," 1,240.11 ",10/05/2016
Commercial,Customer Support Group,Equipment and Materials Purcha,60054512,CARDIAC SCIENCE HOLDINGS (UK) LIMITED, 28.95 ,24/05/2016
Commercial,Customer Support Group,Fixtures and fittings,60055413,LYCO DIRECT LTD, 3.96 ,25/05/2016
Commercial,Customer Support Group,Fixtures and fittings,60053235,WAGSTAFF INTERIORS GROUP, 80.00 ,12/05/2016
Commercial,Customer Support Group,Furniture-Purchase-Repair,60052607,LYCO DIRECT LTD, 239.00 ,03/05/2016
Commercial,Customer Support Group,Furniture-Purchase-Repair,60053678,LYCO DIRECT LTD, 67.50 ,19/05/2016
Commercial,Customer Support Group,Gas,60050322,KENT COUNTY COUNCIL (KCS), 219.40 ,26/05/2016
Commercial,Customer Support Group,Gas,60050506,KENT COUNTY COUNCIL (KCS), 235.19 ,23/05/2016
Commercial,Customer Support Group,Gas,60053345,KENT COUNTY COUNCIL (KCS), 694.38 ,03/05/2016
Commercial,Customer Support Group,Gas,60054652,KENT COUNTY COUNCIL (KCS), 211.15 ,13/05/2016
Commercial,Customer Support Group,Gas,60054575,MIDDLESEX UNIVERSITY," 21,611.09 ",13/05/2016
Commercial,Customer Support Group,Gas,10013204,TOTAL GAS & POWER LTD," 2,793.40 ",05/05/2016
Commercial,Customer Support Group,Gas,60053191,TOTAL GAS & POWER LTD," 1,988.60 ",05/05/2016
Commercial,Customer Support Group,Gas,60053195,TOTAL GAS & POWER LTD," 2,266.49 ",05/05/2016
Commercial,Customer Support Group,Other Services,60054557,BLUE 9 SECURITY LIMITED, 957.56 ,13/05/2016
Commercial,Customer Support Group,Other Services,60054576,BLUE 9 SECURITY LIMITED, 62.28 ,13/05/2016
Commercial,Customer Support Group,Other Services,60054587,BLUE 9 SECURITY LIMITED," 1,860.71 ",13/05/2016
Commercial,Customer Support Group,Other Services,60054600,BLUE 9 SECURITY LIMITED," 22,039.20 ",13/05/2016
Commercial,Customer Support Group,Other Services,60054608,BLUE 9 SECURITY LIMITED," 11,210.40 ",13/05/2016
Commercial,Customer Support Group,Other Services,60054631,BLUE 9 SECURITY LIMITED," 21,703.35 ",13/05/2016
Commercial,Customer Support Group,Other Services,60054900,BLUE 9 SECURITY LIMITED, 53.72 ,19/05/2016
Commercial,Customer Support Group,Other Services,60054956,BLUE 9 SECURITY LIMITED, 201.45 ,19/05/2016
Commercial,Customer Support Group,Postage,10013229,ROYAL MAIL GROUP LIMITED,"-2,995.85 ",20/05/2016
Commercial,Customer Support Group,Postage,10013230,ROYAL MAIL GROUP LIMITED,-24.52 ,20/05/2016
Commercial,Customer Support Group,Postage,10013247,ROYAL MAIL GROUP LIMITED," 3,900.67 ",23/05/2016
Commercial,Customer Support Group,Postage,20030000,ROYAL MAIL GROUP LIMITED, 331.38 ,12/05/2016
Commercial,Customer Support Group,Postage,20030001,ROYAL MAIL GROUP LIMITED, 331.38 ,12/05/2016
Commercial,Customer Support Group,Postage,20030002,ROYAL MAIL GROUP LIMITED, 662.76 ,12/05/2016
Commercial,Customer Support Group,Postage,20030005,ROYAL MAIL GROUP LIMITED, 331.38 ,12/05/2016
Commercial,Customer Support Group,Postage,60035488,ROYAL MAIL GROUP LIMITED," 8,023.29 ",18/05/2016
Commercial,Customer Support Group,Postage,60050855,ROYAL MAIL GROUP LIMITED," 5,147.17 ",11/05/2016
Commercial,Customer Support Group,Postage,60052717,ROYAL MAIL GROUP LIMITED," 4,540.20 ",03/05/2016
Commercial,Customer Support Group,Postage,60054634,ROYAL MAIL GROUP LIMITED," 5,503.16 ",13/05/2016
Commercial,Customer Support Group,Postage,60055164,ROYAL MAIL GROUP LIMITED, 50.00 ,23/05/2016
Commercial,Customer Support Group,Postage,60055189,ROYAL MAIL GROUP LIMITED, 89.16 ,20/05/2016
Commercial,Customer Support Group,Postage,60055192,ROYAL MAIL GROUP LIMITED," 3,589.89 ",20/05/2016
Commercial,Customer Support Group,Postage,60055260,ROYAL MAIL GROUP LIMITED," 4,103.99 ",20/05/2016
Commercial,Customer Support Group,Postage,60055262,XEROX (UK) LTD, 272.98 ,20/05/2016
Commercial,Customer Support Group,Professional Services,60054884,KPMG FEES ACCOUNT, 875.00 ,17/05/2016
Commercial,Customer Support Group,Professional Services,60054972,KPMG FEES ACCOUNT, 875.00 ,17/05/2016
Commercial,Customer Support Group,Professional Services,60054732,MARSTON GROUP LTD, 542.54 ,13/05/2016
Commercial,Customer Support Group,Rubbish Collection,60055053,PEARCE RECYCLING CO. LTD, 66.00 ,19/05/2016
Commercial,Customer Support Group,Software Licences & Support,60037733,RESEARCH MACHINES PLC., 665.95 ,17/05/2016
Commercial,Customer Support Group,Ttl IT & Comms,20030161,VODAFONE LTD (BILLS ONLY)," 11,663.99 ",23/05/2016
Commercial,Customer Support Group,Water Services,60054742,AFFINITY WATER LIMITED, 801.49 ,13/05/2016
Commercial,Customer Support Group,Water Services,60055342,ANGEL SPRINGS LTD, 24.00 ,26/05/2016
Commercial,Customer Support Group,Water Services,60055344,ANGEL SPRINGS LTD, 312.00 ,26/05/2016
Commercial,Customer Support Group,Water Services,60055380,ANGEL SPRINGS LTD, 15.50 ,26/05/2016
Commercial,Customer Support Group,Water Services,60055391,ANGEL SPRINGS LTD, 233.00 ,26/05/2016
Commercial,Customer Support Group,Water Services,60055431,ANGEL SPRINGS LTD, 85.20 ,26/05/2016
Commercial,Customer Support Group,Water Services,60055445,ANGEL SPRINGS LTD, 106.00 ,26/05/2016
Commercial,Customer Support Group,Water Services,60051203,THAMES WATER UTILITIES LIMITED, 121.21 ,23/05/2016
Commercial,Housing Needs Resources,Private Contractors - Third Pa,10013252,THE BARNETGROUP LIMITED," 1,603,667.15 ",31/05/2016
Commercial,Housing Needs Resources,Professional Services,60052914,LONDON BOROUGH OF ISLINGTON," 107,660.49 ",06/05/2016
Commercial,HRA,Consultants Fees,60053419,P P C R ASSOCIATES LTD," 1,548.40 ",06/05/2016
Commercial,HRA,Consultants Fees,60053424,P P C R ASSOCIATES LTD," 2,010.10 ",06/05/2016
Commercial,HRA,Consultants Fees,60053474,P P C R ASSOCIATES LTD," 1,878.76 ",06/05/2016
Commercial,HRA,Consultants Fees,60053478,P P C R ASSOCIATES LTD," 1,679.07 ",06/05/2016
Commercial,HRA,Consultants Fees,60053491,P P C R ASSOCIATES LTD," 2,075.77 ",06/05/2016
Commercial,HRA,Consultants Fees,60054957,P P C R ASSOCIATES LTD," 1,482.06 ",17/05/2016
Commercial,HRA,Consultants Fees,60053332,PRIORITY ESTATES PROJECT LTD," 1,920.87 ",11/05/2016
Commercial,HRA,Consultants Fees,10012965,STRATEGIC URBAN FUTURES LIMITED, 346.64 ,13/05/2016
Commercial,HRA,Consultants Fees,10013246,STRATEGIC URBAN FUTURES LIMITED, 533.30 ,25/05/2016
Commercial,HRA,Consultants Fees,60052924,STRATEGIC URBAN FUTURES LIMITED, 293.32 ,05/05/2016
Commercial,HRA,Consultants Fees,60051864,THE BARNETGROUP LIMITED," 7,956.50 ",09/05/2016
Commercial,HRA,Consultants Fees,60052957,THE BARNETGROUP LIMITED," 3,057.75 ",06/05/2016
Commercial,HRA,Consultants Fees,60052976,THE BARNETGROUP LIMITED," 4,465.03 ",05/05/2016
Commercial,HRA,Consultants Fees,60055634,THE BARNETGROUP LIMITED," 7,363.12 ",31/05/2016
Commercial,HRA,Other Services,60053934,THE BARNETGROUP LIMITED," 11,128.57 ",05/05/2016
Commercial,HRA,Other Services,60054347,THE BARNETGROUP LIMITED," 59,250.00 ",09/05/2016
Commercial,HRA,Private Contractors - Third Pa,20030151,HOMEGROUP HOUSING ASSOCIATON, 125.71 ,20/05/2016
Commercial,HRA,Water Services,60053870,AFFINITY WATER LIMITED, 217.70 ,03/05/2016
Commercial,Parking & Infrastructure,Equipment and Materials Purcha,60054092,ANGEL SPRINGS LTD, 16.00 ,05/05/2016
Commercial,Parking & Infrastructure,Equipment and Materials Purcha,60054161,ASD METAL SERVICES," 2,244.85 ",09/05/2016
Commercial,Parking & Infrastructure,Equipment and Materials Purcha,60054141,COLAS LTD," 1,890.00 ",05/05/2016
Commercial,Parking & Infrastructure,Equipment and Materials Purcha,60052959,CONWAY AECOM LTD, 295.69 ,17/05/2016
Commercial,Parking & Infrastructure,Equipment and Materials Purcha,60052362,GREENHAM TRADING LIMITED, 17.00 ,05/05/2016
Commercial,Parking & Infrastructure,Equipment and Materials Purcha,60053493,GREENHAM TRADING LIMITED," 1,554.94 ",18/05/2016
Commercial,Parking & Infrastructure,Equipment and Materials Purcha,60054119,KLOECKNER METALS UK," 1,105.05 ",13/05/2016
Commercial,Parking & Infrastructure,Equipment and Materials Purcha,60054146,KLOECKNER METALS UK, 26.50 ,16/05/2016
Commercial,Parking & Infrastructure,Equipment and Materials Purcha,60054810,KLOECKNER METALS UK, 861.00 ,17/05/2016
Commercial,Parking & Infrastructure,Equipment and Materials Purcha,60054829,KLOECKNER METALS UK, 153.00 ,17/05/2016
Commercial,Parking & Infrastructure,Equipment and Materials Purcha,60054842,KLOECKNER METALS UK, 333.60 ,26/05/2016
Commercial,Parking & Infrastructure,Equipment and Materials Purcha,60054844,KLOECKNER METALS UK," 1,200.00 ",25/05/2016
Commercial,Parking & Infrastructure,Equipment and Materials Purcha,60054863,KLOECKNER METALS UK," 1,104.20 ",17/05/2016
Commercial,Parking & Infrastructure,Equipment and Materials Purcha,60054870,KLOECKNER METALS UK, 264.00 ,17/05/2016
Commercial,Parking & Infrastructure,Equipment and Materials Purcha,60053411,LAFARGE TARMAC TRADING LIMITED, 116.06 ,06/05/2016
Commercial,Parking & Infrastructure,Equipment and Materials Purcha,60053414,LAFARGE TARMAC TRADING LIMITED, 116.99 ,10/05/2016
Commercial,Parking & Infrastructure,Equipment and Materials Purcha,60053430,LAFARGE TARMAC TRADING LIMITED, 116.06 ,06/05/2016
Commercial,Parking & Infrastructure,Equipment and Materials Purcha,60053446,LAFARGE TARMAC TRADING LIMITED, 220.99 ,06/05/2016
Commercial,Parking & Infrastructure,Equipment and Materials Purcha,60053453,LAFARGE TARMAC TRADING LIMITED, 118.85 ,06/05/2016
Commercial,Parking & Infrastructure,Equipment and Materials Purcha,60053462,LAFARGE TARMAC TRADING LIMITED, 92.85 ,06/05/2016
Commercial,Parking & Infrastructure,Equipment and Materials Purcha,60053468,LAFARGE TARMAC TRADING LIMITED, 118.85 ,06/05/2016
Commercial,Parking & Infrastructure,Equipment and Materials Purcha,60054031,LAFARGE TARMAC TRADING LIMITED, 118.85 ,10/05/2016
Commercial,Parking & Infrastructure,Equipment and Materials Purcha,60054041,LAFARGE TARMAC TRADING LIMITED, 207.98 ,12/05/2016
Commercial,Parking & Infrastructure,Equipment and Materials Purcha,60054075,LAFARGE TARMAC TRADING LIMITED, 107.71 ,17/05/2016
Commercial,Parking & Infrastructure,Equipment and Materials Purcha,60054089,LAFARGE TARMAC TRADING LIMITED, 116.99 ,12/05/2016
Commercial,Parking & Infrastructure,Equipment and Materials Purcha,60054122,LAFARGE TARMAC TRADING LIMITED, 115.13 ,11/05/2016
Commercial,Parking & Infrastructure,Equipment and Materials Purcha,60054125,LAFARGE TARMAC TRADING LIMITED, 103.99 ,11/05/2016
Commercial,Parking & Infrastructure,Equipment and Materials Purcha,60054142,LAFARGE TARMAC TRADING LIMITED, 94.71 ,11/05/2016
Commercial,Parking & Infrastructure,Equipment and Materials Purcha,60054148,LAFARGE TARMAC TRADING LIMITED, 115.13 ,11/05/2016
Commercial,Parking & Infrastructure,Equipment and Materials Purcha,60054162,LAFARGE TARMAC TRADING LIMITED, 92.85 ,11/05/2016
Commercial,Parking & Infrastructure,Equipment and Materials Purcha,60054166,LAFARGE TARMAC TRADING LIMITED, 115.13 ,11/05/2016
Commercial,Parking & Infrastructure,Equipment and Materials Purcha,60054171,LAFARGE TARMAC TRADING LIMITED, 155.99 ,06/05/2016
Commercial,Parking & Infrastructure,Equipment and Materials Purcha,60054188,LAFARGE TARMAC TRADING LIMITED, 111.42 ,06/05/2016
Commercial,Parking & Infrastructure,Equipment and Materials Purcha,60054196,LAFARGE TARMAC TRADING LIMITED, 116.06 ,06/05/2016
Commercial,Parking & Infrastructure,Equipment and Materials Purcha,60054749,LAFARGE TARMAC TRADING LIMITED, 352.84 ,26/05/2016
Commercial,Parking & Infrastructure,Equipment and Materials Purcha,60054759,LAFARGE TARMAC TRADING LIMITED, 118.85 ,24/05/2016
Commercial,Parking & Infrastructure,Equipment and Materials Purcha,60054763,LAFARGE TARMAC TRADING LIMITED, 113.28 ,24/05/2016
Commercial,Parking & Infrastructure,Equipment and Materials Purcha,60054767,LAFARGE TARMAC TRADING LIMITED, 111.42 ,26/05/2016
Commercial,Parking & Infrastructure,Equipment and Materials Purcha,60054797,LAFARGE TARMAC TRADING LIMITED, 118.85 ,19/05/2016
Commercial,Parking & Infrastructure,Equipment and Materials Purcha,60052931,NSL LTD," 5,463.13 ",17/05/2016
Commercial,Parking & Infrastructure,Equipment and Materials Purcha,60054078,PARKEON LIMITED," 3,599.00 ",26/05/2016
Commercial,Parking & Infrastructure,Equipment and Materials Purcha,60054139,RENNICK UK LTD, 183.80 ,05/05/2016
Commercial,Parking & Infrastructure,Equipment and Materials Purcha,60054150,RENNICK UK LTD, 378.40 ,05/05/2016
Commercial,Parking & Infrastructure,Equipment and Materials Purcha,60054547,RENNICK UK LTD, 756.80 ,12/05/2016
Commercial,Parking & Infrastructure,Equipment and Materials Purcha,60054589,RENNICK UK LTD, 293.36 ,12/05/2016
Commercial,Parking & Infrastructure,Equipment and Materials Purcha,60053998,TROUNCE LIMITED, 144.70 ,19/05/2016
Commercial,Parking & Infrastructure,Equipment and Materials Purcha,60052980,WM SMITH & SONS LIMITED, 833.13 ,13/05/2016
Commercial,Parking & Infrastructure,Equipment and Materials Purcha,60054164,WM SMITH & SONS LIMITED, 54.25 ,05/05/2016
Commercial,Parking & Infrastructure,Equipment and Materials Purcha,60054181,WM SMITH & SONS LIMITED, 131.15 ,05/05/2016
Commercial,Parking & Infrastructure,Equipment and Materials Purcha,60054205,WM SMITH & SONS LIMITED," 1,151.20 ",05/05/2016
Commercial,Parking & Infrastructure,Equipment and Materials Purcha,60054872,WM SMITH & SONS LIMITED, 538.72 ,17/05/2016
Commercial,Parking & Infrastructure,Fees and Charges,60055247,NETWORK RAIL ACCOUNTS RECEIVABLE, 134.91 ,20/05/2016
Commercial,Parking & Infrastructure,Legal and Court Fees,80003710,REDACTED - PERSONAL DATA, 155.00 ,13/05/2016
Commercial,Parking & Infrastructure,Miscellaneous Expenses,60054216,PARKEON LIMITED," 2,203.12 ",11/05/2016
Commercial,Parking & Infrastructure,Miscellaneous Expenses,60054274,PARKEON LIMITED, 796.50 ,18/05/2016
Commercial,Parking & Infrastructure,Other Energy,60054155,KENT COUNTY COUNCIL (KCS), 32.19 ,05/05/2016
Commercial,Parking & Infrastructure,Other Services,60052852,LONDON COUNCILS," 11,333.00 ",05/05/2016
Commercial,Parking & Infrastructure,Other Services,60055188,LONDON COUNCILS," 9,072.00 ",26/05/2016
Commercial,Parking & Infrastructure,Other Services,60053941,NSL LTD," 1,228.50 ",31/05/2016
Commercial,Parking & Infrastructure,PCN - Street Contraventions,80003894,ROYAL MAIL, 990.00 ,27/05/2016
Commercial,Parking & Infrastructure,Professional Services,60053972,NSL LTD," 49,895.52 ",17/05/2016
Commercial,Parking & Infrastructure,Professional Services,60054782,NSL LTD, 102.00 ,19/05/2016
Commercial,Parking & Infrastructure,Professional Services,60055182,NSL LTD," 4,589.89 ",26/05/2016
Commercial,Parking & Infrastructure,Professional Services,60055196,NSL LTD," 40,289.39 ",26/05/2016
Commercial,Parking & Infrastructure,Software Licences & Support,60053957,NSL LTD," 33,081.03 ",17/05/2016
Commercial,Parking & Infrastructure,Software Licences & Support,60053987,NSL LTD," 4,729.29 ",17/05/2016
Commercial,Parking & Infrastructure,Subscriptions,60054249,BRITISH PARKING ASSOCIATION," 1,098.00 ",12/05/2016
Commercial,Parking & Infrastructure,Water Services,60054853,ANGEL SPRINGS LTD, 16.00 ,26/05/2016
Commercial,Public Health,Employee Expenses,60055572,CENTRAL LONDONCOMMUNITY HEALTHCARE," 16,667.00 ",31/05/2016
Commercial,Public Health,Employee Expenses,60055592,CENTRAL LONDONCOMMUNITY HEALTHCARE," 16,667.00 ",31/05/2016
Commercial,Public Health,Equipment and Materials Purcha,60055562,CENTRAL LONDONCOMMUNITY HEALTHCARE," 335,167.00 ",31/05/2016
Commercial,Regional Enterprise,Advertising,60051571,TMP (UK) LTD, 141.57 ,09/05/2016
Commercial,Regional Enterprise,Advertising,60052492,TMP (UK) LTD, 212.77 ,05/05/2016
Commercial,Regional Enterprise,Advertising,60052685,TMP (UK) LTD, 212.77 ,05/05/2016
Commercial,Regional Enterprise,Advertising,60052775,TMP (UK) LTD, 108.51 ,17/05/2016
Commercial,Regional Enterprise,Cleaning and domestic material,60054275,CHURCHILL CONTRACT SERVICES, 488.56 ,27/05/2016
Commercial,Regional Enterprise,Consultants Fees,10013221,CBRE INDIRECT INVESTMENT SERVS. LTD," 30,000.00 ",13/05/2016
Commercial,Regional Enterprise,Consultants Fees,60050238,NETWORK RAIL INFRASTRUCTURE LTD," 62,205.84 ",05/05/2016
Commercial,Regional Enterprise,Consultants Fees,60054621,NETWORK RAIL INFRASTRUCTURE LTD," 125,241.69 ",12/05/2016
Commercial,Regional Enterprise,Consultants Fees,60054499,P A CONSULTING SERVICES LTD," 25,555.00 ",26/05/2016
Commercial,Regional Enterprise,Consultants Fees,60054833,RE (REGIONAL ENTERPRISE) LIMITED," 111,000.00 ",17/05/2016
Commercial,Regional Enterprise,Consultants Fees,60054971,RE (REGIONAL ENTERPRISE) LIMITED," 549,344.31 ",17/05/2016
Commercial,Regional Enterprise,Consultants Fees,60053571,VALUATION OFFICE AGENCY," 1,350.00 ",06/05/2016
Commercial,Regional Enterprise,Consultants Fees,60053627,VALUATION OFFICE AGENCY," 3,350.00 ",06/05/2016
Commercial,Regional Enterprise,Consultants Fees,60053673,VALUATION OFFICE AGENCY," 2,650.00 ",06/05/2016
Commercial,Regional Enterprise,Consultants Fees,60051717,WE MADE THAT LLP, 954.45 ,05/05/2016
Commercial,Regional Enterprise,Equipment and Materials Purcha,20030074,REDACTED - PERSONAL DATA," 1,260.00 ",13/05/2016
Commercial,Regional Enterprise,General Office Expenses,60054500,HERTFORDSHIRE SUPPLIES   COUNTY CO, 26.00 ,26/05/2016
Commercial,Regional Enterprise,Grant Payments,80003481,AMWELL CONSTRUCTION LTD," 5,825.00 ",04/05/2016
Commercial,Regional Enterprise,Grant Payments,80003487,AMWELL CONSTRUCTION LTD," 5,697.00 ",04/05/2016
Commercial,Regional Enterprise,Grant Payments,80003573,AMWELL CONSTRUCTION LTD," 3,987.90 ",11/05/2016
Commercial,Regional Enterprise,Grant Payments,80003373,CAPITAL  LOCKSMITHS, 80.00 ,04/05/2016
Commercial,Regional Enterprise,Grant Payments,80003375,CAPITAL  LOCKSMITHS, 297.60 ,04/05/2016
Commercial,Regional Enterprise,Grant Payments,80003376,CAPITAL  LOCKSMITHS, 80.00 ,04/05/2016
Commercial,Regional Enterprise,Grant Payments,80003428,CAPITAL  LOCKSMITHS, 284.50 ,05/05/2016
Commercial,Regional Enterprise,Grant Payments,80003429,CAPITAL  LOCKSMITHS, 149.30 ,05/05/2016
Commercial,Regional Enterprise,Grant Payments,80003568,CAPITAL  LOCKSMITHS, 80.00 ,12/05/2016
Commercial,Regional Enterprise,Grant Payments,80003571,CAPITAL  LOCKSMITHS, 300.00 ,12/05/2016
Commercial,Regional Enterprise,Grant Payments,80003701,CAPITAL  LOCKSMITHS, 80.00 ,19/05/2016
Commercial,Regional Enterprise,Grant Payments,80003703,CAPITAL  LOCKSMITHS, 80.00 ,19/05/2016
Commercial,Regional Enterprise,Grant Payments,80003707,CAPITAL  LOCKSMITHS, 168.50 ,19/05/2016
Commercial,Regional Enterprise,Grant Payments,80003711,CAPITAL  LOCKSMITHS, 80.00 ,19/05/2016
Commercial,Regional Enterprise,Grant Payments,80003714,CAPITAL  LOCKSMITHS, 144.60 ,19/05/2016
Commercial,Regional Enterprise,Grant Payments,80003715,CAPITAL  LOCKSMITHS, 80.00 ,19/05/2016
Commercial,Regional Enterprise,Grant Payments,80003801,CAPITAL  LOCKSMITHS, 80.00 ,25/05/2016
Commercial,Regional Enterprise,Grant Payments,80003823,CAPITAL  LOCKSMITHS, 80.00 ,24/05/2016
Commercial,Regional Enterprise,Grant Payments,80003803,DOLPHIN MOBILITY LTD.," 2,875.00 ",19/05/2016
Commercial,Regional Enterprise,Grant Payments,80003410,DP BUILDERS DISABLED ADAPTATIONS," 8,820.00 ",04/05/2016
Commercial,Regional Enterprise,Grant Payments,80003412,DP BUILDERS DISABLED ADAPTATIONS," 4,485.00 ",04/05/2016
Commercial,Regional Enterprise,Grant Payments,80003616,DP BUILDERS DISABLED ADAPTATIONS," 7,675.00 ",18/05/2016
Commercial,Regional Enterprise,Grant Payments,80003617,DP BUILDERS DISABLED ADAPTATIONS," 5,051.00 ",18/05/2016
Commercial,Regional Enterprise,Grant Payments,80003661,DP BUILDERS DISABLED ADAPTATIONS," 5,602.00 ",19/05/2016
Commercial,Regional Enterprise,Grant Payments,80003662,DP BUILDERS DISABLED ADAPTATIONS," 6,813.00 ",19/05/2016
Commercial,Regional Enterprise,Grant Payments,80003614,REDACTED - PERSONAL DATA," 6,360.00 ",10/05/2016
Commercial,Regional Enterprise,Grant Payments,80003755,REDACTED - PERSONAL DATA," 7,324.00 ",17/05/2016
Commercial,Regional Enterprise,Grant Payments,80003577,H D PROPERTY SERVICES LTD, 118.00 ,10/05/2016
Commercial,Regional Enterprise,Grant Payments,80003645,H D PROPERTY SERVICES LTD," 11,169.00 ",17/05/2016
Commercial,Regional Enterprise,Grant Payments,80003697,H D PROPERTY SERVICES LTD," 6,957.00 ",17/05/2016
Commercial,Regional Enterprise,Grant Payments,80003400,MCP PROPERTY SERVICES LTD," 2,895.00 ",04/05/2016
Commercial,Regional Enterprise,Grant Payments,80003672,PDS HYGIENE, 480.00 ,17/05/2016
Commercial,Regional Enterprise,Grant Payments,80003456,SOUTH HERTFORDSHIRE," 3,591.00 ",04/05/2016
Commercial,Regional Enterprise,Grant Payments,80003652,SOUTH HERTFORDSHIRE," 5,338.00 ",17/05/2016
Commercial,Regional Enterprise,Grant Payments,80003684,SOUTH HERTFORDSHIRE," 4,950.00 ",17/05/2016
Commercial,Regional Enterprise,Grounds maintenance,60055377,BARTLETT TREE EXPERTS," 4,416.00 ",31/05/2016
Commercial,Regional Enterprise,Grounds maintenance,60055427,BARTLETT TREE EXPERTS," 25,990.00 ",31/05/2016
Commercial,Regional Enterprise,Other Services,60052225,CONWAY AECOM LTD," 4,571.81 ",05/05/2016
Commercial,Regional Enterprise,Other Services,60052234,CONWAY AECOM LTD," 95,352.64 ",17/05/2016
Commercial,Regional Enterprise,Other Services,60052376,CONWAY AECOM LTD," 92,269.27 ",17/05/2016
Commercial,Regional Enterprise,Other Services,60052381,CONWAY AECOM LTD," 8,463.14 ",17/05/2016
Commercial,Regional Enterprise,Other Services,60052401,CONWAY AECOM LTD," 81,607.40 ",17/05/2016
Commercial,Regional Enterprise,Other Services,60052472,CONWAY AECOM LTD," 90,000.00 ",05/05/2016
Commercial,Regional Enterprise,Other Services,60052481,CONWAY AECOM LTD," 40,844.97 ",09/05/2016
Commercial,Regional Enterprise,Other Services,60052483,CONWAY AECOM LTD, 378.40 ,09/05/2016
Commercial,Regional Enterprise,Other Services,60052487,CONWAY AECOM LTD," 1,194.21 ",09/05/2016
Commercial,Regional Enterprise,Other Services,60052517,CONWAY AECOM LTD, 988.12 ,05/05/2016
Commercial,Regional Enterprise,Other Services,60052553,CONWAY AECOM LTD," 52,574.43 ",17/05/2016
Commercial,Regional Enterprise,Other Services,60052556,CONWAY AECOM LTD," 3,246.67 ",05/05/2016
Commercial,Regional Enterprise,Other Services,60052571,CONWAY AECOM LTD," 47,613.79 ",05/05/2016
Commercial,Regional Enterprise,Other Services,60052591,CONWAY AECOM LTD, 28.38 ,17/05/2016
Commercial,Regional Enterprise,Other Services,60052592,CONWAY AECOM LTD, 70.47 ,17/05/2016
Commercial,Regional Enterprise,Other Services,60052614,CONWAY AECOM LTD," 58,564.65 ",05/05/2016
Commercial,Regional Enterprise,Other Services,60052623,CONWAY AECOM LTD," 47,418.91 ",05/05/2016
Commercial,Regional Enterprise,Other Services,60052638,CONWAY AECOM LTD," 1,284.39 ",05/05/2016
Commercial,Regional Enterprise,Other Services,60052649,CONWAY AECOM LTD, 849.89 ,05/05/2016
Commercial,Regional Enterprise,Other Services,60052658,CONWAY AECOM LTD," 5,049.12 ",05/05/2016
Commercial,Regional Enterprise,Other Services,60052673,CONWAY AECOM LTD," 98,313.47 ",17/05/2016
Commercial,Regional Enterprise,Other Services,60053096,CONWAY AECOM LTD, 316.50 ,17/05/2016
Commercial,Regional Enterprise,Other Services,60053105,CONWAY AECOM LTD," 1,266.00 ",17/05/2016
Commercial,Regional Enterprise,Other Services,60053111,CONWAY AECOM LTD, 759.60 ,17/05/2016
Commercial,Regional Enterprise,Other Services,60053112,CONWAY AECOM LTD, 740.61 ,17/05/2016
Commercial,Regional Enterprise,Other Services,60053116,CONWAY AECOM LTD, 607.68 ,17/05/2016
Commercial,Regional Enterprise,Other Services,60053123,CONWAY AECOM LTD, 835.56 ,17/05/2016
Commercial,Regional Enterprise,Other Services,60053126,CONWAY AECOM LTD, 455.76 ,17/05/2016
Commercial,Regional Enterprise,Other Services,60053127,CONWAY AECOM LTD, 633.00 ,17/05/2016
Commercial,Regional Enterprise,Other Services,60053128,CONWAY AECOM LTD, 886.20 ,17/05/2016
Commercial,Regional Enterprise,Other Services,60053131,CONWAY AECOM LTD, 664.65 ,17/05/2016
Commercial,Regional Enterprise,Other Services,60053135,CONWAY AECOM LTD," 1,392.60 ",17/05/2016
Commercial,Regional Enterprise,Other Services,60053139,CONWAY AECOM LTD, 784.92 ,17/05/2016
Commercial,Regional Enterprise,Other Services,60053142,CONWAY AECOM LTD, 548.60 ,17/05/2016
Commercial,Regional Enterprise,Other Services,60053146,CONWAY AECOM LTD, 928.40 ,17/05/2016
Commercial,Regional Enterprise,Other Services,60053148,CONWAY AECOM LTD," 12,191.27 ",17/05/2016
Commercial,Regional Enterprise,Other Services,60053150,CONWAY AECOM LTD, 633.00 ,17/05/2016
Commercial,Regional Enterprise,Other Services,60053151,CONWAY AECOM LTD," 1,012.80 ",17/05/2016
Commercial,Regional Enterprise,Other Services,60053153,CONWAY AECOM LTD, 886.20 ,17/05/2016
Commercial,Regional Enterprise,Other Services,60053158,CONWAY AECOM LTD," 8,448.85 ",13/05/2016
Commercial,Regional Enterprise,Other Services,60053160,CONWAY AECOM LTD," 2,572.00 ",17/05/2016
Commercial,Regional Enterprise,Other Services,60053167,CONWAY AECOM LTD, 611.90 ,17/05/2016
Commercial,Regional Enterprise,Other Services,60053180,CONWAY AECOM LTD, 474.75 ,17/05/2016
Commercial,Regional Enterprise,Other Services,60053186,CONWAY AECOM LTD," 1,899.00 ",17/05/2016
Commercial,Regional Enterprise,Other Services,60053783,CONWAY AECOM LTD, 796.67 ,19/05/2016
Commercial,Regional Enterprise,Other Services,60053789,CONWAY AECOM LTD, 239.66 ,19/05/2016
Commercial,Regional Enterprise,Other Services,60053798,CONWAY AECOM LTD, 590.30 ,19/05/2016
Commercial,Regional Enterprise,Other Services,60053935,CONWAY AECOM LTD, 392.72 ,26/05/2016
Commercial,Regional Enterprise,Other Services,60054455,CONWAY AECOM LTD," 1,274.72 ",26/05/2016
Commercial,Regional Enterprise,Other Services,60054472,CONWAY AECOM LTD," 4,139.60 ",26/05/2016
Commercial,Regional Enterprise,Other Services,60054522,CONWAY AECOM LTD," 4,456.00 ",26/05/2016
Commercial,Regional Enterprise,Other Services,60054562,CONWAY AECOM LTD," 3,895.00 ",26/05/2016
Commercial,Regional Enterprise,Other Services,60054613,CONWAY AECOM LTD," 54,061.00 ",26/05/2016
Commercial,Regional Enterprise,Other Services,60054615,CONWAY AECOM LTD, 0.72 ,26/05/2016
Commercial,Regional Enterprise,Other Services,60054729,CONWAY AECOM LTD," 1,139.40 ",26/05/2016
Commercial,Regional Enterprise,Other Services,60054730,CONWAY AECOM LTD, 685.75 ,26/05/2016
Commercial,Regional Enterprise,Other Services,60054731,CONWAY AECOM LTD, 960.05 ,26/05/2016
Commercial,Regional Enterprise,Other Services,60054734,CONWAY AECOM LTD, 664.65 ,26/05/2016
Commercial,Regional Enterprise,Other Services,60054737,CONWAY AECOM LTD, 443.10 ,26/05/2016
Commercial,Regional Enterprise,Other Services,60054743,CONWAY AECOM LTD," 1,240.68 ",26/05/2016
Commercial,Regional Enterprise,Other Services,60054750,CONWAY AECOM LTD, 107.64 ,26/05/2016
Commercial,Regional Enterprise,Other Services,60054756,CONWAY AECOM LTD," 1,160.50 ",26/05/2016
Commercial,Regional Enterprise,Other Services,60054757,CONWAY AECOM LTD, 316.50 ,26/05/2016
Commercial,Regional Enterprise,Other Services,60054760,CONWAY AECOM LTD, 962.16 ,26/05/2016
Commercial,Regional Enterprise,Other Services,60054764,CONWAY AECOM LTD," 1,044.45 ",26/05/2016
Commercial,Regional Enterprise,Other Services,60054766,CONWAY AECOM LTD," 1,065.55 ",26/05/2016
Commercial,Regional Enterprise,Other Services,60054769,CONWAY AECOM LTD, 443.10 ,26/05/2016
Commercial,Regional Enterprise,Other Services,60054771,CONWAY AECOM LTD, 617.18 ,26/05/2016
Commercial,Regional Enterprise,Other Services,60054778,CONWAY AECOM LTD, 865.10 ,31/05/2016
Commercial,Regional Enterprise,Other Services,60054779,CONWAY AECOM LTD, 912.58 ,26/05/2016
Commercial,Regional Enterprise,Other Services,60054786,CONWAY AECOM LTD, 949.50 ,26/05/2016
Commercial,Regional Enterprise,Other Services,60054794,CONWAY AECOM LTD, 759.60 ,26/05/2016
Commercial,Regional Enterprise,Other Services,60054804,CONWAY AECOM LTD, 670.17 ,26/05/2016
Commercial,Regional Enterprise,Other Services,60054806,CONWAY AECOM LTD, 759.60 ,26/05/2016
Commercial,Regional Enterprise,Other Services,60053582,ROYAL MAIL GROUP LIMITED, 9.90 ,17/05/2016
Commercial,Regional Enterprise,Professional Services,60054680,BUCHANAN ORDER MANAGEMENT," 6,453.20 ",16/05/2016
Commercial,Regional Enterprise,Professional Services,60054706,BUCHANAN ORDER MANAGEMENT," 2,275.20 ",17/05/2016
Commercial,Regional Enterprise,Professional Services,60054389,OPENVIEW SECURITY SOLUTIONS LTD," 62,471.95 ",31/05/2016
Commercial,Regional Enterprise,Professional Services,60054108,PUBLIC ANALYST SCIENTIFIC SERVS. LT, 175.00 ,17/05/2016
Commercial,Regional Enterprise,Professional Services,60054787,WATES LIVING SPACE, 24.44 ,13/05/2016
Commercial,Regional Enterprise,Professional Services,60054802,WATES LIVING SPACE," 1,952.68 ",13/05/2016
Commercial,Regional Enterprise,Publications,60053999,AMELIX GROUP," 5,000.00 ",26/05/2016
Commercial,Regional Enterprise,RE Services Contract Payment,10013235,RE (REGIONAL ENTERPRISE) LIMITED," 335,000.00 ",26/05/2016
Commercial,Regional Enterprise,RE Services Contract Payment,10013236,RE (REGIONAL ENTERPRISE) LIMITED,"-167,500.00 ",26/05/2016
Commercial,Regional Enterprise,Training,60054191,CAMBRIDGE ENVIRONMENTAL RESEARCH CONSULT," 1,100.00 ",26/05/2016
Commissioning,Commissioning,Building Repairs & Maintenance,60053246,OAKRAY LIMITED, 96.00 ,12/05/2016
Commissioning,Commissioning,Capital Construction and Works,60053278,OAKRAY LIMITED, 664.06 ,12/05/2016
Commissioning,Commissioning,Cleaning and domestic material,60051784,CHURCHILL CONTRACT SERVICES," 2,653.20 ",24/05/2016
Commissioning,Commissioning,Consultants Fees,60049374,BARNET & DISTRICT ATHLETIC CLUB, 75.00 ,17/05/2016
Commissioning,Commissioning,Consultants Fees,60053995,BARNET & DISTRICT ATHLETIC CLUB, 50.00 ,09/05/2016
Commissioning,Commissioning,Consultants Fees,60053250,BRITISH TELECOM PLC," 57,378.77 ",13/05/2016
Commissioning,Commissioning,Consultants Fees,60054620,GALLIFORD TRY," 595,641.00 ",17/05/2016
Commissioning,Commissioning,Consultants Fees,60051900,PRECIOUS MOMENTS AND HEALTH LTD," 2,137.50 ",17/05/2016
Commissioning,Commissioning,Consultants Fees,60054801,SOCIAL FINANCE," 26,950.00 ",17/05/2016
Commissioning,Commissioning,Consultants Fees,10013228,WATES CONSTRUCTION LTD," 143,903.92 ",19/05/2016
Commissioning,Commissioning,Consultants Fees,60054490,WATES CONSTRUCTION LTD," 33,582.74 ",13/05/2016
Commissioning,Commissioning,Consultants Fees,60054583,WATES CONSTRUCTION LTD," 124,996.57 ",13/05/2016
Commissioning,Commissioning,Consultants Fees,60054609,WATES CONSTRUCTION LTD," 40,580.50 ",13/05/2016
Commissioning,Commissioning,Equipment and Materials Purcha,60055080,OCS GROUP UK LIMITED," 46,304.00 ",27/05/2016
Commissioning,Commissioning,Furniture-Purchase-Repair,10013231,HARROW GREEN LTD, 932.67 ,19/05/2016
Commissioning,Commissioning,Furniture-Purchase-Repair,10013232,HARROW GREEN LTD," 1,848.00 ",19/05/2016
Commissioning,Commissioning,Furniture-Purchase-Repair,10013233,HARROW GREEN LTD," 1,540.00 ",19/05/2016
Commissioning,Commissioning,Health authorities - Third Par,60050970,REDACTED - PERSONAL DATA, 25.00 ,11/05/2016
Commissioning,Commissioning,Health authorities - Third Par,60051683,REDACTED - PERSONAL DATA, 25.00 ,20/05/2016
Commissioning,Commissioning,Joint Authorities - Third Part,EBX0118109,NORTH LONDON WASTE AUTHORITY," 904,617.00 ",26/05/2016
Commissioning,Commissioning,Other Agencies - Third Party P,60052672,FAMILY FUND TRADING LTD, 691.67 ,05/05/2016
Commissioning,Commissioning,Other Agencies - Third Party P,60052851,FAMILY FUND TRADING LTD," 1,095.84 ",05/05/2016
Commissioning,Commissioning,Other Agencies - Third Party P,60053441,FAMILY FUND TRADING LTD, 87.00 ,06/05/2016
Commissioning,Commissioning,Other Agencies - Third Party P,60055040,FAMILY FUND TRADING LTD," 2,864.17 ",20/05/2016
Commissioning,Commissioning,Other Establishments - Third P,80003615,REDACTED - PERSONAL DATA, 320.00 ,10/05/2016
Commissioning,Commissioning,Other Services,60054788,BLUE 9 SECURITY LIMITED," 5,000.00 ",13/05/2016
Commissioning,Commissioning,Other Services,60054819,BLUE 9 SECURITY LIMITED," 3,479.90 ",17/05/2016
Commissioning,Commissioning,Other Services,60054247,CAPITA BUSINESS SERVICES LTD, 140.00 ,06/05/2016
Commissioning,Commissioning,Other Services,60053930,ENVENTURE CONSULTANCY LIMITED," 1,350.00 ",17/05/2016
Commissioning,Commissioning,Other Services,60052166,INFOR GLOBAL SOLUTIONS (MIDLANDS LL, 425.00 ,06/05/2016
Commissioning,Commissioning,Other Services,60054357,NSL LTD," 3,620.17 ",09/05/2016
Commissioning,Commissioning,Other Services,60052108,THE ULTIMATE PROMOTION CO LTD," 3,922.00 ",18/05/2016
Commissioning,Commissioning,Professional Services,60054947,CIPFA BUSINESS LIMITED," 1,775.00 ",17/05/2016
Commissioning,Commissioning,Professional Services,60054069,OPINION RESEARCH SERVICES," 10,155.00 ",26/05/2016
Commissioning,Commissioning,Professional Services,60051205,QUALITY FIELDWORK & RESEARCH," 4,350.00 ",12/05/2016
Commissioning,Commissioning,Professional Services,60051254,QUALITY FIELDWORK & RESEARCH," 1,090.00 ",12/05/2016
Commissioning,Commissioning,Professional Services,60051550,THE BARNETGROUP LIMITED," 11,442.55 ",17/05/2016
Commissioning,Commissioning,Professional Services,10013220,WESTCO TRADING LTD," 27,000.00 ",12/05/2016
Commissioning,Commissioning,Settlement of WOM Costs,60051785,S W BRUCE & CO LTD," 4,282.81 ",09/05/2016
Commissioning,Commissioning,Settlement of WOM Costs,60051786,S W BRUCE & CO LTD," 1,232.40 ",09/05/2016
Commissioning,Commissioning,Settlement of WOM Costs,60051833,S W BRUCE & CO LTD, 260.00 ,09/05/2016
Commissioning,Commissioning,Software Licences & Support,60054278,ICASEWORK LTD," 9,600.00 ",06/05/2016
Commissioning,Commissioning,Software Licences & Support,60053985,TXTTOOLS - BLACKBOARD UK LTD," 3,000.00 ",11/05/2016
Commissioning,Commissioning,Stationery,60033979,HERTFORDSHIRE COUNTY COUNCIL, 5.85 ,17/05/2016
Commissioning,Commissioning,Subscriptions,60055454,MANCHESTER CITY COUNCIL," 1,125.00 ",27/05/2016
Commissioning,Commissioning,Subscriptions,80003634,THE SOCIETY OF LONDON TREASURERS, 35.00 ,11/05/2016
Commissioning,Commissioning,Training,60053418,CAPITA BUSINESS SERVICES LTD," 7,200.00 ",13/05/2016
Commissioning,Commissioning,Training,60052698,DOD'S PARLIAMENTARY, 31.20 ,03/05/2016
Commissioning,Commissioning,Training,60054646,GOVNET COMMUNICATIONS, 985.50 ,13/05/2016
Commissioning,Commissioning,Training,60055580,SKILLS TRAINING CENTRE LTD, 300.00 ,27/05/2016
Commissioning,Commissioning,Training,60054468,TRAINING WITH PURPOSE INTERNATIONAL LTD, 500.00 ,11/05/2016
Commissioning,Commissioning,Training,60054475,TRAINING WITH PURPOSE INTERNATIONAL LTD," 5,000.00 ",11/05/2016
Commissioning,Commissioning,Training,60055109,UNIVERSITY OF DUNDEE, 970.00 ,20/05/2016
Commissioning,Commissioning,Travelling Expenses,80003963,REDACTED - PERSONAL DATA, 40.25 ,31/05/2016
Commissioning,Commissioning,Travelling Expenses,80003960,REDACTED - PERSONAL DATA, 60.40 ,31/05/2016
Commissioning,Commissioning,Ttl IT & Comms,60055502,AIRWAVE SOLUTIONS LIMITED, 506.40 ,26/05/2016
Commissioning,Commissioning,Ttl IT & Comms,10013249,BRITISH TELECOM PLC, 95.25 ,31/05/2016
Commissioning,Commissioning,Ttl IT & Comms,60053152,STOR-A FILE LTD, 104.50 ,06/05/2016
Corporate Accounting,Corporate Accounting,Government departments - Third,20030079,DEPARTMENT FOR COMMUNITIES & LOCAL GOV.," 448,523.86 ",16/05/2016
Corporate Accounting,Corporate Accounting,Net Pay Account,80003442,BROADFIELDS ACADEMY," 1,845.43 ",13/05/2016
Corporate Accounting,Corporate Accounting,Other Agencies - Third Party P,10013254,THE BARNETGROUP LIMITED," 3,500,000.00 ",31/05/2016
Corporate Accounting,Corporate Accounting,Other Local Authorities - Thir,EBX0115473,GREATER LONDON AUTHORITY," 1,711,467.00 ",11/05/2016
Corporate Accounting,Corporate Accounting,Other Local Authorities - Thir,EBX0116727,GREATER LONDON AUTHORITY," 230,277.00 ",20/05/2016
Corporate Accounting,Corporate Accounting,Other Local Authorities - Thir,EBX0116780,GREATER LONDON AUTHORITY," 3,891,785.34 ",23/05/2016
Corporate Accounting,Corporate Accounting,Other Transfer Payments to Soc,60052408,CITIBANK NA LONDON, 966.40 ,04/05/2016
Corporate Accounting,Corporate Accounting,Other Transfer Payments to Soc,60052444,CITIBANK NA LONDON, 650.50 ,04/05/2016
Corporate Accounting,Corporate Accounting,Other Transfer Payments to Soc,60052500,CITIBANK NA LONDON, 243.00 ,04/05/2016
Corporate Accounting,Corporate Accounting,Other Transfer Payments to Soc,60052518,CITIBANK NA LONDON," 1,275.10 ",04/05/2016
Corporate Accounting,Corporate Accounting,Other Transfer Payments to Soc,60052523,CITIBANK NA LONDON, 645.90 ,04/05/2016
Corporate Accounting,Corporate Accounting,Other Transfer Payments to Soc,60052548,CITIBANK NA LONDON, 57.90 ,04/05/2016
Corporate Accounting,Corporate Accounting,Other Transfer Payments to Soc,60052639,CITIBANK NA LONDON, 230.00 ,04/05/2016
Corporate Accounting,Corporate Accounting,Other Transfer Payments to Soc,60052646,CITIBANK NA LONDON, 126.00 ,04/05/2016
Corporate Accounting,Corporate Accounting,Other Transfer Payments to Soc,60052712,CITIBANK NA LONDON, 165.80 ,04/05/2016
Corporate Accounting,Corporate Accounting,Other Transfer Payments to Soc,60052930,CITIBANK NA LONDON," 1,569.90 ",04/05/2016
Corporate Accounting,Corporate Accounting,Other Transfer Payments to Soc,60052935,CITIBANK NA LONDON, 740.45 ,04/05/2016
Corporate Accounting,Corporate Accounting,Other Transfer Payments to Soc,60052961,CITIBANK NA LONDON, 255.80 ,04/05/2016
Corporate Accounting,Corporate Accounting,Other Transfer Payments to Soc,60052963,CITIBANK NA LONDON, 652.80 ,04/05/2016
Corporate Accounting,Corporate Accounting,Other Transfer Payments to Soc,60052977,CITIBANK NA LONDON, 110.00 ,04/05/2016
Corporate Accounting,Corporate Accounting,Other Transfer Payments to Soc,60052981,CITIBANK NA LONDON, 290.98 ,04/05/2016
Corporate Accounting,Corporate Accounting,Other Transfer Payments to Soc,60053019,CITIBANK NA LONDON," 7,488.41 ",04/05/2016
Corporate Accounting,Corporate Accounting,Other Transfer Payments to Soc,60053032,CITIBANK NA LONDON, 503.11 ,04/05/2016
Corporate Accounting,Corporate Accounting,Other Transfer Payments to Soc,60053072,CITIBANK NA LONDON, 184.37 ,04/05/2016
Corporate Accounting,Corporate Accounting,Other Transfer Payments to Soc,60053077,CITIBANK NA LONDON," 5,641.95 ",04/05/2016
Corporate Accounting,Corporate Accounting,Other Transfer Payments to Soc,60053244,CITIBANK NA LONDON, 675.60 ,04/05/2016
Corporate Accounting,Corporate Accounting,Other Transfer Payments to Soc,60053257,CITIBANK NA LONDON, 147.90 ,04/05/2016
Corporate Accounting,Corporate Accounting,Other Transfer Payments to Soc,60053291,CITIBANK NA LONDON, 290.00 ,04/05/2016
Corporate Accounting,Corporate Accounting,Other Transfer Payments to Soc,60053294,CITIBANK NA LONDON, 115.80 ,04/05/2016
Corporate Accounting,Corporate Accounting,Other Transfer Payments to Soc,60053968,CITIBANK NA LONDON, 331.90 ,04/05/2016
Corporate Accounting,Corporate Accounting,Other Transfer Payments to Soc,60053982,CITIBANK NA LONDON, 500.00 ,04/05/2016
Corporate Accounting,Corporate Accounting,Other Transfer Payments to Soc,60054004,CITIBANK NA LONDON, 661.30 ,04/05/2016
Corporate Accounting,Corporate Accounting,Other Transfer Payments to Soc,60054016,CITIBANK NA LONDON," 1,252.58 ",04/05/2016
Corporate Accounting,Corporate Accounting,Other Transfer Payments to Soc,60054173,CITIBANK NA LONDON, 247.50 ,06/05/2016
Corporate Accounting,Corporate Accounting,Other Transfer Payments to Soc,60054198,CITIBANK NA LONDON, 570.88 ,06/05/2016
Corporate Accounting,Corporate Accounting,Other Transfer Payments to Soc,60054202,CITIBANK NA LONDON, 455.80 ,06/05/2016
Corporate Accounting,Corporate Accounting,Other Transfer Payments to Soc,60054481,CITIBANK NA LONDON, 148.04 ,12/05/2016
Corporate Accounting,Corporate Accounting,Other Transfer Payments to Soc,60054493,CITIBANK NA LONDON," 2,415.65 ",12/05/2016
Corporate Accounting,Corporate Accounting,Other Transfer Payments to Soc,60054527,CITIBANK NA LONDON," 1,163.70 ",12/05/2016
Corporate Accounting,Corporate Accounting,Other Transfer Payments to Soc,60054538,CITIBANK NA LONDON, 968.90 ,12/05/2016
Corporate Accounting,Corporate Accounting,Other Transfer Payments to Soc,60054544,CITIBANK NA LONDON," 2,419.25 ",12/05/2016
Corporate Accounting,Corporate Accounting,Other Transfer Payments to Soc,60054549,CITIBANK NA LONDON," 3,267.98 ",12/05/2016
Corporate Accounting,Corporate Accounting,Other Transfer Payments to Soc,60054560,CITIBANK NA LONDON," 11,088.87 ",12/05/2016
Corporate Accounting,Corporate Accounting,Other Transfer Payments to Soc,60054567,CITIBANK NA LONDON, 612.42 ,12/05/2016
Corporate Accounting,Corporate Accounting,Other Transfer Payments to Soc,60054595,CITIBANK NA LONDON, 115.80 ,12/05/2016
Corporate Accounting,Corporate Accounting,Other Transfer Payments to Soc,60054596,CITIBANK NA LONDON, 452.00 ,12/05/2016
Corporate Accounting,Corporate Accounting,Other Transfer Payments to Soc,60054602,CITIBANK NA LONDON," 2,844.00 ",12/05/2016
Corporate Accounting,Corporate Accounting,Other Transfer Payments to Soc,60054638,CITIBANK NA LONDON," 1,248.00 ",12/05/2016
Corporate Accounting,Corporate Accounting,Other Transfer Payments to Soc,60055042,CITIBANK NA LONDON, 934.52 ,18/05/2016
Corporate Accounting,Corporate Accounting,Other Transfer Payments to Soc,60055046,CITIBANK NA LONDON," 2,852.53 ",19/05/2016
Corporate Accounting,Corporate Accounting,Other Transfer Payments to Soc,60055060,CITIBANK NA LONDON, 260.90 ,19/05/2016
Corporate Accounting,Corporate Accounting,Other Transfer Payments to Soc,60055066,CITIBANK NA LONDON, 50.00 ,19/05/2016
Corporate Accounting,Corporate Accounting,Other Transfer Payments to Soc,60055073,CITIBANK NA LONDON, 344.75 ,19/05/2016
Corporate Accounting,Corporate Accounting,Other Transfer Payments to Soc,60055076,CITIBANK NA LONDON, 89.01 ,19/05/2016
Corporate Accounting,Corporate Accounting,Other Transfer Payments to Soc,60055084,CITIBANK NA LONDON, 231.36 ,19/05/2016
Corporate Accounting,Corporate Accounting,Other Transfer Payments to Soc,60055085,CITIBANK NA LONDON, 230.00 ,19/05/2016
Corporate Accounting,Corporate Accounting,Other Transfer Payments to Soc,60055093,CITIBANK NA LONDON, 207.90 ,19/05/2016
Corporate Accounting,Corporate Accounting,Other Transfer Payments to Soc,60055112,CITIBANK NA LONDON," 1,251.40 ",19/05/2016
Corporate Accounting,Corporate Accounting,Other Transfer Payments to Soc,60055478,CITIBANK NA LONDON, 198.05 ,26/05/2016
Corporate Accounting,Corporate Accounting,Other Transfer Payments to Soc,60055513,CITIBANK NA LONDON, 478.90 ,26/05/2016
Corporate Accounting,Corporate Accounting,Other Transfer Payments to Soc,60055514,CITIBANK NA LONDON, 804.62 ,26/05/2016
Delivery Units,Adults and Communities,Advertising,60053988,TMP (UK) LTD," 2,434.00 ",26/05/2016
Delivery Units,Adults and Communities,Advertising for staff,60045323,PREMIER PEOPLE SOLUTIONS LTD," 3,057.00 ",05/05/2016
Delivery Units,Adults and Communities,Advertising for staff,60045404,PREMIER PEOPLE SOLUTIONS LTD," 2,285.00 ",05/05/2016
Delivery Units,Adults and Communities,Capital Construction and Works,60053751,BARNET & SOUTHGATE COLLEGE," 184,998.59 ",13/05/2016
Delivery Units,Adults and Communities,Capital Construction and Works,60054962,BARNET & SOUTHGATE COLLEGE," 248,901.30 ",17/05/2016
Delivery Units,Adults and Communities,Cleaning and domestic material,60054272,CHURCHILL CONTRACT SERVICES, 391.37 ,27/05/2016
Delivery Units,Adults and Communities,Cleaning and domestic material,60054277,CHURCHILL CONTRACT SERVICES, 377.81 ,27/05/2016
Delivery Units,Adults and Communities,Electricity,60053896,KENT COUNTY COUNCIL (KCS), 142.93 ,04/05/2016
Delivery Units,Adults and Communities,Employee Expenses,60053991,TMP (UK) LTD," 2,652.00 ",26/05/2016
Delivery Units,Adults and Communities,Equipment and Materials Purcha,80003733,BRITISH TELECOM PLC," 1,528.38 ",19/05/2016
Delivery Units,Adults and Communities,Equipment and Materials Purcha,80003734,BRITISH TELECOM PLC," 1,463.45 ",19/05/2016
Delivery Units,Adults and Communities,Equipment and Materials Purcha,80003735,BRITISH TELECOM PLC," 2,255.40 ",19/05/2016
Delivery Units,Adults and Communities,Equipment and Materials Purcha,60053541,MEDEQUIP ASSISTIVE TECHNOLOGY LTD," 255,735.97 ",31/05/2016
Delivery Units,Adults and Communities,Equipment and Materials Purcha,60053542,MEDEQUIP ASSISTIVE TECHNOLOGY LTD," 1,222.90 ",06/05/2016
Delivery Units,Adults and Communities,Equipment and Materials Purcha,60055484,MEDEQUIP ASSISTIVE TECHNOLOGY LTD, 198.00 ,26/05/2016
Delivery Units,Adults and Communities,Equipment and Materials Purcha,60055486,MEDEQUIP ASSISTIVE TECHNOLOGY LTD," 193,515.93 ",26/05/2016
Delivery Units,Adults and Communities,Equipment and Materials Purcha,60055499,MEDEQUIP ASSISTIVE TECHNOLOGY LTD, 865.93 ,26/05/2016
Delivery Units,Adults and Communities,Equipment and Materials Purcha,60053573,REDLAND HEALTHCARE LTD, 880.37 ,05/05/2016
Delivery Units,Adults and Communities,Equipment and Materials Purcha,60053617,REDLAND HEALTHCARE LTD, 82.60 ,05/05/2016
Delivery Units,Adults and Communities,Equipment and Materials Purcha,60053674,REDLAND HEALTHCARE LTD, 135.50 ,05/05/2016
Delivery Units,Adults and Communities,Fees and Charges,80003609,WOODFIELD HOUSE," 15,788.00 ",11/05/2016
Delivery Units,Adults and Communities,Furniture-Purchase-Repair,60052409,NORTH LONDON LOCKSMITHS LTD, 75.00 ,05/05/2016
Delivery Units,Adults and Communities,Other Agencies - Third Party P,30120646,AARON COURT CARE HOME," 2,144.91 ",10/05/2016
Delivery Units,Adults and Communities,Other Agencies - Third Party P,30122725,AARON COURT CARE HOME," 2,216.41 ",26/05/2016
Delivery Units,Adults and Communities,Other Agencies - Third Party P,30120455,ABBEY RAVENSCROFT PARK NURSING HOME," 3,000.00 ",06/05/2016
Delivery Units,Adults and Communities,Other Agencies - Third Party P,30120604,ABBEY RAVENSCROFT PARK NURSING HOME," 2,569.89 ",10/05/2016
Delivery Units,Adults and Communities,Other Agencies - Third Party P,30120605,ABBEY RAVENSCROFT PARK NURSING HOME," 2,320.37 ",10/05/2016
Delivery Units,Adults and Communities,Other Agencies - Third Party P,30120606,ABBEY RAVENSCROFT PARK NURSING HOME," 2,569.89 ",10/05/2016
Delivery Units,Adults and Communities,Other Agencies - Third Party P,30120607,ABBEY RAVENSCROFT PARK NURSING HOME," 2,569.89 ",10/05/2016
Delivery Units,Adults and Communities,Other Agencies - Third Party P,30120608,ABBEY RAVENSCROFT PARK NURSING HOME," 2,569.89 ",10/05/2016
Delivery Units,Adults and Communities,Other Agencies - Third Party P,30120610,ABBEY RAVENSCROFT PARK NURSING HOME," 2,569.89 ",10/05/2016
Delivery Units,Adults and Communities,Other Agencies - Third Party P,30120611,ABBEY RAVENSCROFT PARK NURSING HOME," 2,569.89 ",10/05/2016
Delivery Units,Adults and Communities,Other Agencies - Third Party P,30120612,ABBEY RAVENSCROFT PARK NURSING HOME," 3,000.00 ",10/05/2016
Delivery Units,Adults and Communities,Other Agencies - Third Party P,30120613,ABBEY RAVENSCROFT PARK NURSING HOME," 3,000.00 ",10/05/2016
Delivery Units,Adults and Communities,Other Agencies - Third Party P,30120614,ABBEY RAVENSCROFT PARK NURSING HOME," 2,369.79 ",10/05/2016
Delivery Units,Adults and Communities,Other Agencies - Third Party P,30120615,ABBEY RAVENSCROFT PARK NURSING HOME," 2,569.24 ",10/05/2016
Delivery Units,Adults and Communities,Other Agencies - Third Party P,30120616,ABBEY RAVENSCROFT PARK NURSING HOME," 3,000.00 ",10/05/2016
Delivery Units,Adults and Communities,Other Agencies - Third Party P,30120999,ABBEY RAVENSCROFT PARK NURSING HOME," 3,000.00 ",13/05/2016
Delivery Units,Adults and Communities,Other Agencies - Third Party P,30121000,ABBEY RAVENSCROFT PARK NURSING HOME," 3,000.00 ",13/05/2016
Delivery Units,Adults and Communities,Other Agencies - Third Party P,30121535,ABBEY RAVENSCROFT PARK NURSING HOME," 3,100.00 ",19/05/2016
Delivery Units,Adults and Communities,Other Agencies - Third Party P,30121541,ABBEY RAVENSCROFT PARK NURSING HOME," 3,000.00 ",19/05/2016
Delivery Units,Adults and Communities,Other Agencies - Third Party P,30121542,ABBEY RAVENSCROFT PARK NURSING HOME," 1,900.00 ",19/05/2016
Delivery Units,Adults and Communities,Other Agencies - Third Party P,30123081,ABBEY RAVENSCROFT PARK NURSING HOME," 2,900.00 ",27/05/2016
Delivery Units,Adults and Communities,Other Agencies - Third Party P,30123088,ABBEY RAVENSCROFT PARK NURSING HOME," 2,655.55 ",27/05/2016
Delivery Units,Adults and Communities,Other Agencies - Third Party P,30123089,ABBEY RAVENSCROFT PARK NURSING HOME," 2,655.55 ",27/05/2016
Delivery Units,Adults and Communities,Other Agencies - Third Party P,30123090,ABBEY RAVENSCROFT PARK NURSING HOME," 2,397.72 ",27/05/2016
Delivery Units,Adults and Communities,Other Agencies - Third Party P,30123091,ABBEY RAVENSCROFT PARK NURSING HOME," 2,655.55 ",27/05/2016
Delivery Units,Adults and Communities,Other Agencies - Third Party P,30123092,ABBEY RAVENSCROFT PARK NURSING HOME," 2,655.55 ",27/05/2016
Delivery Units,Adults and Communities,Other Agencies - Third Party P,30123093,ABBEY RAVENSCROFT PARK NURSING HOME," 2,655.55 ",27/05/2016
Delivery Units,Adults and Communities,Other Agencies - Third Party P,30123095,ABBEY RAVENSCROFT PARK NURSING HOME," 2,655.55 ",27/05/2016
Delivery Units,Adults and Communities,Other Agencies - Third Party P,30123096,ABBEY RAVENSCROFT PARK NURSING HOME," 2,655.55 ",27/05/2016
Delivery Units,Adults and Communities,Other Agencies - Third Party P,30123097,ABBEY RAVENSCROFT PARK NURSING HOME," 3,100.00 ",27/05/2016
Delivery Units,Adults and Communities,Other Agencies - Third Party P,30123098,ABBEY RAVENSCROFT PARK NURSING HOME," 3,100.00 ",27/05/2016
Delivery Units,Adults and Communities,Other Agencies - Third Party P,30123099,ABBEY RAVENSCROFT PARK NURSING HOME," 3,100.00 ",27/05/2016
Delivery Units,Adults and Communities,Other Agencies - Third Party P,30123100,ABBEY RAVENSCROFT PARK NURSING HOME," 2,448.78 ",27/05/2016
Delivery Units,Adults and Communities,Other Agencies - Third Party P,30123101,ABBEY RAVENSCROFT PARK NURSING HOME," 2,989.29 ",27/05/2016
Delivery Units,Adults and Communities,Other Agencies - Third Party P,30123102,ABBEY RAVENSCROFT PARK NURSING HOME," 2,654.88 ",27/05/2016
Delivery Units,Adults and Communities,Other Agencies - Third Party P,30123103,ABBEY RAVENSCROFT PARK NURSING HOME," 3,100.00 ",27/05/2016
Delivery Units,Adults and Communities,Other Agencies - Third Party P,30123104,ABBEY RAVENSCROFT PARK NURSING HOME," 3,100.00 ",27/05/2016
Delivery Units,Adults and Communities,Other Agencies - Third Party P,30123105,ABBEY RAVENSCROFT PARK NURSING HOME," 3,100.00 ",27/05/2016
Delivery Units,Adults and Communities,Other Agencies - Third Party P,30123106,ABBEY RAVENSCROFT PARK NURSING HOME," 3,000.00 ",27/05/2016
Delivery Units,Adults and Communities,Other Agencies - Third Party P,30123107,ABBEY RAVENSCROFT PARK NURSING HOME," 3,100.00 ",27/05/2016
Delivery Units,Adults and Communities,Other Agencies - Third Party P,30123108,ABBEY RAVENSCROFT PARK NURSING HOME," 3,100.00 ",27/05/2016
Delivery Units,Adults and Communities,Other Agencies - Third Party P,30123109,ABBEY RAVENSCROFT PARK NURSING HOME," 1,000.00 ",27/05/2016
Delivery Units,Adults and Communities,Other Agencies - Third Party P,30123110,ABBEY RAVENSCROFT PARK NURSING HOME,"-21,500.00 ",27/05/2016
Delivery Units,Adults and Communities,Other Agencies - Third Party P,30121543,ABOUT ME CARE & SUPPORT LTD," 1,365.84 ",19/05/2016
Delivery Units,Adults and Communities,Other Agencies - Third Party P,30122920,ABOUT ME CARE & SUPPORT LTD," 1,365.84 ",27/05/2016
Delivery Units,Adults and Communities,Other Agencies - Third Party P,30123112,ABOUT ME CARE & SUPPORT LTD," 1,365.84 ",27/05/2016
Delivery Units,Adults and Communities,Other Agencies - Third Party P,30120386,ACCEDO CARE LTD," 6,381.43 ",06/05/2016
Delivery Units,Adults and Communities,Other Agencies - Third Party P,30120387,ACCEDO CARE LTD," 5,600.00 ",06/05/2016
Delivery Units,Adults and Communities,Other Agencies - Third Party P,30121648,ADVENT CARE PLUS," 3,590.87 ",23/05/2016
Delivery Units,Adults and Communities,Other Agencies - Third Party P,30120422,AGUDAS ISRAEL HOUSING ASSCTN LTD," 2,950.75 ",06/05/2016
Delivery Units,Adults and Communities,Other Agencies - Third Party P,30120921,AGUDAS ISRAEL HOUSING ASSCTN LTD," 3,052.50 ",13/05/2016
Delivery Units,Adults and Communities,Other Agencies - Third Party P,30120922,AGUDAS ISRAEL HOUSING ASSCTN LTD, 264.86 ,13/05/2016
Delivery Units,Adults and Communities,Other Agencies - Third Party P,30120923,AGUDAS ISRAEL HOUSING ASSCTN LTD, 489.25 ,13/05/2016
Delivery Units,Adults and Communities,Other Agencies - Third Party P,30120535,ALDWYCK HOUSING GROUP," 2,176.89 ",10/05/2016
Delivery Units,Adults and Communities,Other Agencies - Third Party P,30120536,ALDWYCK HOUSING GROUP," 3,845.83 ",10/05/2016
Delivery Units,Adults and Communities,Other Agencies - Third Party P,30120537,ALDWYCK HOUSING GROUP," 2,176.89 ",10/05/2016
Delivery Units,Adults and Communities,Other Agencies - Third Party P,30120847,ALDWYCK HOUSING GROUP," 2,249.45 ",13/05/2016
Delivery Units,Adults and Communities,Other Agencies - Third Party P,30120848,ALDWYCK HOUSING GROUP," 2,031.76 ",13/05/2016
Delivery Units,Adults and Communities,Other Agencies - Third Party P,30120849,ALDWYCK HOUSING GROUP, 7.46 ,13/05/2016
Delivery Units,Adults and Communities,Other Agencies - Third Party P,30120850,ALDWYCK HOUSING GROUP, 19.18 ,13/05/2016
Delivery Units,Adults and Communities,Other Agencies - Third Party P,30120851,ALDWYCK HOUSING GROUP," 2,176.89 ",13/05/2016
Delivery Units,Adults and Communities,Other Agencies - Third Party P,30122943,ALDWYCK HOUSING GROUP," 2,249.45 ",27/05/2016
Delivery Units,Adults and Communities,Other Agencies - Third Party P,30122944,ALDWYCK HOUSING GROUP," 2,249.45 ",27/05/2016
Delivery Units,Adults and Communities,Other Agencies - Third Party P,30122945,ALDWYCK HOUSING GROUP," 2,249.45 ",27/05/2016
Delivery Units,Adults and Communities,Other Agencies - Third Party P,30122946,ALDWYCK HOUSING GROUP," 2,249.45 ",27/05/2016
Delivery Units,Adults and Communities,Other Agencies - Third Party P,30121365,ALLIED HEALTHCARE LTD," 3,130.61 ",17/05/2016
Delivery Units,Adults and Communities,Other Agencies - Third Party P,30121366,ALLIED HEALTHCARE LTD," 2,798.84 ",17/05/2016
Delivery Units,Adults and Communities,Other Agencies - Third Party P,30120360,ANA HOMECARE LTD," 1,127.82 ",05/05/2016
Delivery Units,Adults and Communities,Other Agencies - Third Party P,30120361,ANA HOMECARE LTD, 44.97 ,05/05/2016
Delivery Units,Adults and Communities,Other Agencies - Third Party P,30120362,ANA HOMECARE LTD, 44.97 ,05/05/2016
Delivery Units,Adults and Communities,Other Agencies - Third Party P,30120417,ANA HOMECARE LTD, 307.33 ,06/05/2016
Delivery Units,Adults and Communities,Other Agencies - Third Party P,30120418,ANA HOMECARE LTD, 157.44 ,06/05/2016
Delivery Units,Adults and Communities,Other Agencies - Third Party P,30120419,ANA HOMECARE LTD, 112.44 ,06/05/2016
Delivery Units,Adults and Communities,Other Agencies - Third Party P,30120420,ANA HOMECARE LTD, 15.00 ,06/05/2016
Delivery Units,Adults and Communities,Other Agencies - Third Party P,30120421,ANA HOMECARE LTD, 247.37 ,06/05/2016
Delivery Units,Adults and Communities,Other Agencies - Third Party P,30120058,APPLE TREE COURT CARE HOME,"-1,000.00 ",10/05/2016
Delivery Units,Adults and Communities,Other Agencies - Third Party P,30120593,APPLE TREE COURT CARE HOME," 2,320.37 ",10/05/2016
Delivery Units,Adults and Communities,Other Agencies - Third Party P,30120594,APPLE TREE COURT CARE HOME," 2,244.13 ",10/05/2016
Delivery Units,Adults and Communities,Other Agencies - Third Party P,30120595,APPLE TREE COURT CARE HOME," 2,487.77 ",10/05/2016
Delivery Units,Adults and Communities,Other Agencies - Third Party P,30120596,APPLE TREE COURT CARE HOME," 2,487.77 ",10/05/2016
Delivery Units,Adults and Communities,Other Agencies - Third Party P,30120597,APPLE TREE COURT CARE HOME," 2,487.77 ",10/05/2016
Delivery Units,Adults and Communities,Other Agencies - Third Party P,30120598,APPLE TREE COURT CARE HOME," 2,487.77 ",10/05/2016
Delivery Units,Adults and Communities,Other Agencies - Third Party P,30120599,APPLE TREE COURT CARE HOME," 3,000.00 ",10/05/2016
Delivery Units,Adults and Communities,Other Agencies - Third Party P,30120600,APPLE TREE COURT CARE HOME," 2,571.43 ",10/05/2016
Delivery Units,Adults and Communities,Other Agencies - Third Party P,30120601,APPLE TREE COURT CARE HOME," 2,340.04 ",10/05/2016
Delivery Units,Adults and Communities,Other Agencies - Third Party P,30120602,APPLE TREE COURT CARE HOME," 2,487.77 ",10/05/2016
Delivery Units,Adults and Communities,Other Agencies - Third Party P,30120603,APPLE TREE COURT CARE HOME," 3,428.57 ",10/05/2016
Delivery Units,Adults and Communities,Other Agencies - Third Party P,30120855,APPLE TREE COURT CARE HOME," 6,714.39 ",13/05/2016
Delivery Units,Adults and Communities,Other Agencies - Third Party P,30121536,APPLE TREE COURT CARE HOME," 3,100.00 ",19/05/2016
Delivery Units,Adults and Communities,Other Agencies - Third Party P,30121537,APPLE TREE COURT CARE HOME," 2,657.14 ",19/05/2016
Delivery Units,Adults and Communities,Other Agencies - Third Party P,30121538,APPLE TREE COURT CARE HOME," 2,418.04 ",19/05/2016
Delivery Units,Adults and Communities,Other Agencies - Third Party P,30121539,APPLE TREE COURT CARE HOME," 2,570.70 ",19/05/2016
Delivery Units,Adults and Communities,Other Agencies - Third Party P,30121540,APPLE TREE COURT CARE HOME," 3,542.86 ",19/05/2016
Delivery Units,Adults and Communities,Other Agencies - Third Party P,30123082,APPLE TREE COURT CARE HOME," 2,397.72 ",27/05/2016
Delivery Units,Adults and Communities,Other Agencies - Third Party P,30123083,APPLE TREE COURT CARE HOME," 2,318.93 ",27/05/2016
Delivery Units,Adults and Communities,Other Agencies - Third Party P,30123084,APPLE TREE COURT CARE HOME," 2,570.70 ",27/05/2016
Delivery Units,Adults and Communities,Other Agencies - Third Party P,30123085,APPLE TREE COURT CARE HOME," 2,570.70 ",27/05/2016
Delivery Units,Adults and Communities,Other Agencies - Third Party P,30123086,APPLE TREE COURT CARE HOME," 2,570.70 ",27/05/2016
Delivery Units,Adults and Communities,Other Agencies - Third Party P,30123087,APPLE TREE COURT CARE HOME," 2,570.70 ",27/05/2016
Delivery Units,Adults and Communities,Other Agencies - Third Party P,30118078,ASHFIELDS RESIDENTIAL CARE HOME," 2,073.42 ",09/05/2016
Delivery Units,Adults and Communities,Other Agencies - Third Party P,30120459,ASHFIELDS RESIDENTIAL CARE HOME," 2,571.43 ",06/05/2016
Delivery Units,Adults and Communities,Other Agencies - Third Party P,30120460,ASHFIELDS RESIDENTIAL CARE HOME," 2,369.79 ",06/05/2016
Delivery Units,Adults and Communities,Other Agencies - Third Party P,30120461,ASHFIELDS RESIDENTIAL CARE HOME," 2,369.79 ",06/05/2016
Delivery Units,Adults and Communities,Other Agencies - Third Party P,30120462,ASHFIELDS RESIDENTIAL CARE HOME," 2,176.71 ",06/05/2016
Delivery Units,Adults and Communities,Other Agencies - Third Party P,30120496,ASHFIELDS RESIDENTIAL CARE HOME," 2,369.79 ",06/05/2016
Delivery Units,Adults and Communities,Other Agencies - Third Party P,30121552,ASHFIELDS RESIDENTIAL CARE HOME," 2,657.14 ",27/05/2016
Delivery Units,Adults and Communities,Other Agencies - Third Party P,30121553,ASHFIELDS RESIDENTIAL CARE HOME," 2,249.27 ",27/05/2016
Delivery Units,Adults and Communities,Other Agencies - Third Party P,30121554,ASHFIELDS RESIDENTIAL CARE HOME," 2,448.78 ",27/05/2016
Delivery Units,Adults and Communities,Other Agencies - Third Party P,30121621,ASHFIELDS RESIDENTIAL CARE HOME," 2,448.78 ",27/05/2016
Delivery Units,Adults and Communities,Other Agencies - Third Party P,30123315,ASHFIELDS RESIDENTIAL CARE HOME," 2,176.71 ",31/05/2016
Delivery Units,Adults and Communities,Other Agencies - Third Party P,30120494,ASHTON LODGE CARE CENTRE, 428.31 ,06/05/2016
Delivery Units,Adults and Communities,Other Agencies - Third Party P,30120620,ASHTON LODGE CARE CENTRE," 2,320.37 ",10/05/2016
Delivery Units,Adults and Communities,Other Agencies - Third Party P,30120649,ASHTON LODGE CARE CENTRE," 2,569.89 ",10/05/2016
Delivery Units,Adults and Communities,Other Agencies - Third Party P,30120650,ASHTON LODGE CARE CENTRE," 2,369.79 ",10/05/2016
Delivery Units,Adults and Communities,Other Agencies - Third Party P,30120688,ASHTON LODGE CARE CENTRE," 2,176.89 ",10/05/2016
Delivery Units,Adults and Communities,Other Agencies - Third Party P,30120699,ASHTON LODGE CARE CENTRE," 2,569.89 ",10/05/2016
Delivery Units,Adults and Communities,Other Agencies - Third Party P,30120700,ASHTON LODGE CARE CENTRE," 2,320.37 ",10/05/2016
Delivery Units,Adults and Communities,Other Agencies - Third Party P,30120703,ASHTON LODGE CARE CENTRE," 2,571.43 ",10/05/2016
Delivery Units,Adults and Communities,Other Agencies - Third Party P,30120725,ASHTON LODGE CARE CENTRE," 2,369.79 ",10/05/2016
Delivery Units,Adults and Communities,Other Agencies - Third Party P,30120728,ASHTON LODGE CARE CENTRE," 2,421.43 ",10/05/2016
Delivery Units,Adults and Communities,Other Agencies - Third Party P,30120817,ASHTON LODGE CARE CENTRE," 3,268.29 ",10/05/2016
Delivery Units,Adults and Communities,Other Agencies - Third Party P,30120818,ASHTON LODGE CARE CENTRE," 3,162.86 ",10/05/2016
Delivery Units,Adults and Communities,Other Agencies - Third Party P,30120824,ASHTON LODGE CARE CENTRE," 2,320.37 ",10/05/2016
Delivery Units,Adults and Communities,Other Agencies - Third Party P,30120830,ASHTON LODGE CARE CENTRE," 2,369.79 ",10/05/2016
Delivery Units,Adults and Communities,Other Agencies - Third Party P,30120836,ASHTON LODGE CARE CENTRE," 3,805.71 ",10/05/2016
Delivery Units,Adults and Communities,Other Agencies - Third Party P,30120839,ASHTON LODGE CARE CENTRE," 2,569.89 ",10/05/2016
Delivery Units,Adults and Communities,Other Agencies - Third Party P,30120840,ASHTON LODGE CARE CENTRE," 2,569.89 ",10/05/2016
Delivery Units,Adults and Communities,Other Agencies - Third Party P,30120843,ASHTON LODGE CARE CENTRE," 2,569.89 ",10/05/2016
Delivery Units,Adults and Communities,Other Agencies - Third Party P,30120845,ASHTON LODGE CARE CENTRE," 2,369.79 ",10/05/2016
Delivery Units,Adults and Communities,Other Agencies - Third Party P,30121139,ASHTON LODGE CARE CENTRE," 2,655.55 ",16/05/2016
Delivery Units,Adults and Communities,Other Agencies - Third Party P,30121140,ASHTON LODGE CARE CENTRE," 2,655.55 ",16/05/2016
Delivery Units,Adults and Communities,Other Agencies - Third Party P,30121141,ASHTON LODGE CARE CENTRE," 2,655.55 ",16/05/2016
Delivery Units,Adults and Communities,Other Agencies - Third Party P,30121142,ASHTON LODGE CARE CENTRE," 2,448.78 ",16/05/2016
Delivery Units,Adults and Communities,Other Agencies - Third Party P,30121146,ASHTON LODGE CARE CENTRE," 2,249.45 ",16/05/2016
Delivery Units,Adults and Communities,Other Agencies - Third Party P,30121147,ASHTON LODGE CARE CENTRE," 2,655.55 ",16/05/2016
Delivery Units,Adults and Communities,Other Agencies - Third Party P,30121148,ASHTON LODGE CARE CENTRE," 2,397.72 ",16/05/2016
Delivery Units,Adults and Communities,Other Agencies - Third Party P,30121149,ASHTON LODGE CARE CENTRE," 2,657.14 ",16/05/2016
Delivery Units,Adults and Communities,Other Agencies - Third Party P,30121166,ASHTON LODGE CARE CENTRE," 2,448.78 ",16/05/2016
Delivery Units,Adults and Communities,Other Agencies - Third Party P,30121168,ASHTON LODGE CARE CENTRE," 2,502.14 ",16/05/2016
Delivery Units,Adults and Communities,Other Agencies - Third Party P,30121169,ASHTON LODGE CARE CENTRE," 2,655.55 ",16/05/2016
Delivery Units,Adults and Communities,Other Agencies - Third Party P,30121205,ASHTON LODGE CARE CENTRE," 2,448.78 ",16/05/2016
Delivery Units,Adults and Communities,Other Agencies - Third Party P,30121206,ASHTON LODGE CARE CENTRE," 3,057.43 ",16/05/2016
Delivery Units,Adults and Communities,Other Agencies - Third Party P,30121207,ASHTON LODGE CARE CENTRE," 3,268.29 ",16/05/2016
Delivery Units,Adults and Communities,Other Agencies - Third Party P,30121209,ASHTON LODGE CARE CENTRE," 2,397.72 ",16/05/2016
Delivery Units,Adults and Communities,Other Agencies - Third Party P,30121211,ASHTON LODGE CARE CENTRE," 2,448.78 ",16/05/2016
Delivery Units,Adults and Communities,Other Agencies - Third Party P,30121212,ASHTON LODGE CARE CENTRE," 2,655.55 ",16/05/2016
Delivery Units,Adults and Communities,Other Agencies - Third Party P,30121593,ASHTON LODGE CARE CENTRE," 2,211.72 ",19/05/2016
Delivery Units,Adults and Communities,Other Agencies - Third Party P,30122718,ASHTON LODGE CARE CENTRE," 2,397.72 ",26/05/2016
Delivery Units,Adults and Communities,Other Agencies - Third Party P,30122724,ASHTON LODGE CARE CENTRE," 2,655.55 ",26/05/2016
Delivery Units,Adults and Communities,Other Agencies - Third Party P,30122726,ASHTON LODGE CARE CENTRE," 2,655.55 ",26/05/2016
Delivery Units,Adults and Communities,Other Agencies - Third Party P,30122727,ASHTON LODGE CARE CENTRE," 2,655.55 ",26/05/2016
Delivery Units,Adults and Communities,Other Agencies - Third Party P,30122728,ASHTON LODGE CARE CENTRE," 2,448.78 ",26/05/2016
Delivery Units,Adults and Communities,Other Agencies - Third Party P,30122736,ASHTON LODGE CARE CENTRE," 2,249.45 ",26/05/2016
Delivery Units,Adults and Communities,Other Agencies - Third Party P,30122743,ASHTON LODGE CARE CENTRE," 2,655.55 ",26/05/2016
Delivery Units,Adults and Communities,Other Agencies - Third Party P,30122745,ASHTON LODGE CARE CENTRE," 2,397.72 ",26/05/2016
Delivery Units,Adults and Communities,Other Agencies - Third Party P,30122746,ASHTON LODGE CARE CENTRE," 2,657.14 ",26/05/2016
Delivery Units,Adults and Communities,Other Agencies - Third Party P,30122757,ASHTON LODGE CARE CENTRE," 2,448.78 ",26/05/2016
Delivery Units,Adults and Communities,Other Agencies - Third Party P,30122759,ASHTON LODGE CARE CENTRE," 2,502.14 ",26/05/2016
Delivery Units,Adults and Communities,Other Agencies - Third Party P,30122760,ASHTON LODGE CARE CENTRE," 2,655.55 ",26/05/2016
Delivery Units,Adults and Communities,Other Agencies - Third Party P,30122812,ASHTON LODGE CARE CENTRE," 2,448.78 ",26/05/2016
Delivery Units,Adults and Communities,Other Agencies - Third Party P,30122814,ASHTON LODGE CARE CENTRE," 3,268.29 ",26/05/2016
Delivery Units,Adults and Communities,Other Agencies - Third Party P,30122825,ASHTON LODGE CARE CENTRE," 2,397.72 ",26/05/2016
Delivery Units,Adults and Communities,Other Agencies - Third Party P,30122826,ASHTON LODGE CARE CENTRE," 2,448.78 ",26/05/2016
Delivery Units,Adults and Communities,Other Agencies - Third Party P,30122829,ASHTON LODGE CARE CENTRE," 3,932.57 ",26/05/2016
Delivery Units,Adults and Communities,Other Agencies - Third Party P,30120662,ASPEN VILLAGES LTD," 2,144.91 ",10/05/2016
Delivery Units,Adults and Communities,Other Agencies - Third Party P,30120663,ASPEN VILLAGES LTD," 4,714.29 ",10/05/2016
Delivery Units,Adults and Communities,Other Agencies - Third Party P,30120664,ASPEN VILLAGES LTD," 3,214.29 ",10/05/2016
Delivery Units,Adults and Communities,Other Agencies - Third Party P,30120666,ASPEN VILLAGES LTD," 3,428.57 ",10/05/2016
Delivery Units,Adults and Communities,Other Agencies - Third Party P,30120667,ASPEN VILLAGES LTD," 5,785.71 ",10/05/2016
Delivery Units,Adults and Communities,Other Agencies - Third Party P,30120668,ASPEN VILLAGES LTD," 2,340.04 ",10/05/2016
Delivery Units,Adults and Communities,Other Agencies - Third Party P,30120669,ASPEN VILLAGES LTD," 4,714.29 ",10/05/2016
Delivery Units,Adults and Communities,Other Agencies - Third Party P,30120670,ASPEN VILLAGES LTD," 3,642.86 ",10/05/2016
Delivery Units,Adults and Communities,Other Agencies - Third Party P,30123143,ASPEN VILLAGES LTD," 2,216.41 ",27/05/2016
Delivery Units,Adults and Communities,Other Agencies - Third Party P,30123144,ASPEN VILLAGES LTD," 4,871.43 ",27/05/2016
Delivery Units,Adults and Communities,Other Agencies - Third Party P,30123145,ASPEN VILLAGES LTD," 3,321.43 ",27/05/2016
Delivery Units,Adults and Communities,Other Agencies - Third Party P,30123147,ASPEN VILLAGES LTD," 3,542.86 ",27/05/2016
Delivery Units,Adults and Communities,Other Agencies - Third Party P,30123148,ASPEN VILLAGES LTD," 5,978.57 ",27/05/2016
Delivery Units,Adults and Communities,Other Agencies - Third Party P,30123149,ASPEN VILLAGES LTD," 2,418.04 ",27/05/2016
Delivery Units,Adults and Communities,Other Agencies - Third Party P,30123150,ASPEN VILLAGES LTD," 4,871.43 ",27/05/2016
Delivery Units,Adults and Communities,Other Agencies - Third Party P,30123151,ASPEN VILLAGES LTD," 3,764.29 ",27/05/2016
Delivery Units,Adults and Communities,Other Agencies - Third Party P,30120570,AUTUMN GARDENS," 3,160.00 ",10/05/2016
Delivery Units,Adults and Communities,Other Agencies - Third Party P,30122583,AUTUMN GARDENS," 3,160.00 ",26/05/2016
Delivery Units,Adults and Communities,Other Agencies - Third Party P,30122584,AUTUMN GARDENS," 4,800.00 ",26/05/2016
Delivery Units,Adults and Communities,Other Agencies - Third Party P,30122585,AUTUMN GARDENS," 2,880.00 ",26/05/2016
Delivery Units,Adults and Communities,Other Agencies - Third Party P,30122586,AUTUMN GARDENS," 2,800.00 ",26/05/2016
Delivery Units,Adults and Communities,Other Agencies - Third Party P,30122587,AUTUMN GARDENS," 2,184.04 ",26/05/2016
Delivery Units,Adults and Communities,Other Agencies - Third Party P,30120465,B & M CARE," 2,176.89 ",06/05/2016
Delivery Units,Adults and Communities,Other Agencies - Third Party P,30120467,B & M CARE," 2,369.79 ",06/05/2016
Delivery Units,Adults and Communities,Other Agencies - Third Party P,30120468,B & M CARE," 3,428.57 ",06/05/2016
Delivery Units,Adults and Communities,Other Agencies - Third Party P,30120469,B & M CARE," 2,982.86 ",06/05/2016
Delivery Units,Adults and Communities,Other Agencies - Third Party P,30120470,B & M CARE," 2,369.79 ",06/05/2016
Delivery Units,Adults and Communities,Other Agencies - Third Party P,30120682,B & M CARE," 2,369.79 ",10/05/2016
Delivery Units,Adults and Communities,Other Agencies - Third Party P,30120683,B & M CARE," 3,642.86 ",10/05/2016
Delivery Units,Adults and Communities,Other Agencies - Third Party P,30123154,B & M CARE," 2,249.45 ",27/05/2016
Delivery Units,Adults and Communities,Other Agencies - Third Party P,30123155,B & M CARE," 3,542.86 ",27/05/2016
Delivery Units,Adults and Communities,Other Agencies - Third Party P,30123156,B & M CARE," 3,082.29 ",27/05/2016
Delivery Units,Adults and Communities,Other Agencies - Third Party P,30123157,B & M CARE," 2,448.78 ",27/05/2016
Delivery Units,Adults and Communities,Other Agencies - Third Party P,30123158,B & M CARE," 2,448.78 ",27/05/2016
Delivery Units,Adults and Communities,Other Agencies - Third Party P,30123159,B & M CARE," 3,744.29 ",27/05/2016
Delivery Units,Adults and Communities,Other Agencies - Third Party P,30123160,B & M CARE," 3,764.29 ",27/05/2016
Delivery Units,Adults and Communities,Other Agencies - Third Party P,30121600,BARNET MENCAP, 393.10 ,19/05/2016
Delivery Units,Adults and Communities,Other Agencies - Third Party P,30120571,BAYTREE COMMUNITY CARE (LONDON) LTD," 2,014.84 ",10/05/2016
Delivery Units,Adults and Communities,Other Agencies - Third Party P,30120572,BAYTREE COMMUNITY CARE (LONDON) LTD," 2,600.01 ",10/05/2016
Delivery Units,Adults and Communities,Other Agencies - Third Party P,30120573,BAYTREE COMMUNITY CARE (LONDON) LTD," 2,797.06 ",10/05/2016
Delivery Units,Adults and Communities,Other Agencies - Third Party P,30120574,BAYTREE COMMUNITY CARE (LONDON) LTD," 3,424.27 ",10/05/2016
Delivery Units,Adults and Communities,Other Agencies - Third Party P,30120996,BAYTREE COMMUNITY CARE (LONDON) LTD, 734.40 ,13/05/2016
Delivery Units,Adults and Communities,Other Agencies - Third Party P,30121252,BAYTREE COMMUNITY CARE (LONDON) LTD," 2,294.99 ",17/05/2016
Delivery Units,Adults and Communities,Other Agencies - Third Party P,30121253,BAYTREE COMMUNITY CARE (LONDON) LTD," 2,890.26 ",17/05/2016
Delivery Units,Adults and Communities,Other Agencies - Third Party P,30121254,BAYTREE COMMUNITY CARE (LONDON) LTD," 2,686.64 ",17/05/2016
Delivery Units,Adults and Communities,Other Agencies - Third Party P,30121255,BAYTREE COMMUNITY CARE (LONDON) LTD," 2,081.97 ",17/05/2016
Delivery Units,Adults and Communities,Other Agencies - Third Party P,30121256,BAYTREE COMMUNITY CARE (LONDON) LTD," 2,371.46 ",17/05/2016
Delivery Units,Adults and Communities,Other Agencies - Third Party P,30121257,BAYTREE COMMUNITY CARE (LONDON) LTD," 3,538.37 ",17/05/2016
Delivery Units,Adults and Communities,Other Agencies - Third Party P,30121258,BAYTREE COMMUNITY CARE (LONDON) LTD, 734.40 ,17/05/2016
Delivery Units,Adults and Communities,Other Agencies - Third Party P,30123117,BELMONT LODGE CARE CENTRE," 2,404.71 ",27/05/2016
Delivery Units,Adults and Communities,Other Agencies - Third Party P,30120567,BENSLOW MANAGEMENT COMPANY LIMITED," 2,340.04 ",10/05/2016
Delivery Units,Adults and Communities,Other Agencies - Third Party P,30123118,BIRCHWOOD GRANGE CARE HOME," 2,657.14 ",27/05/2016
Delivery Units,Adults and Communities,Other Agencies - Third Party P,30122071,BLUEBIRD CARE (BARNET)," 1,414.00 ",24/05/2016
Delivery Units,Adults and Communities,Other Agencies - Third Party P,30120315,BROOKDALE HEALTHCARE," 3,759.36 ",03/05/2016
Delivery Units,Adults and Communities,Other Agencies - Third Party P,30122477,BROOKDALE HEALTHCARE," 9,300.00 ",26/05/2016
Delivery Units,Adults and Communities,Other Agencies - Third Party P,30122478,BROOKDALE HEALTHCARE," 9,610.00 ",26/05/2016
Delivery Units,Adults and Communities,Other Agencies - Third Party P,30122479,BROOKDALE HEALTHCARE," 9,995.33 ",26/05/2016
Delivery Units,Adults and Communities,Other Agencies - Third Party P,30122480,BROOKDALE HEALTHCARE," 7,806.73 ",26/05/2016
Delivery Units,Adults and Communities,Other Agencies - Third Party P,30121018,BRUNSWICK SUPPORTED LIVING SERVICES," 1,412.68 ",16/05/2016
Delivery Units,Adults and Communities,Other Agencies - Third Party P,30121019,BRUNSWICK SUPPORTED LIVING SERVICES," 1,942.84 ",16/05/2016
Delivery Units,Adults and Communities,Other Agencies - Third Party P,30121023,BRUNSWICK SUPPORTED LIVING SERVICES," 2,153.92 ",16/05/2016
Delivery Units,Adults and Communities,Other Agencies - Third Party P,30120694,BUPA CARE HOMES," 2,144.91 ",10/05/2016
Delivery Units,Adults and Communities,Other Agencies - Third Party P,30120695,BUPA CARE HOMES," 2,048.57 ",10/05/2016
Delivery Units,Adults and Communities,Other Agencies - Third Party P,30120697,BUPA CARE HOMES," 2,340.04 ",10/05/2016
Delivery Units,Adults and Communities,Other Agencies - Third Party P,30120820,BUPA CARE HOMES," 2,239.37 ",10/05/2016
Delivery Units,Adults and Communities,Other Agencies - Third Party P,30120821,BUPA CARE HOMES," 2,239.37 ",10/05/2016
Delivery Units,Adults and Communities,Other Agencies - Third Party P,30120822,BUPA CARE HOMES," 2,487.77 ",10/05/2016
Delivery Units,Adults and Communities,Other Agencies - Third Party P,30120835,BUPA CARE HOMES," 4,686.43 ",10/05/2016
Delivery Units,Adults and Communities,Other Agencies - Third Party P,30120935,BUPA CARE HOMES," 1,046.96 ",13/05/2016
Delivery Units,Adults and Communities,Other Agencies - Third Party P,30121011,BUPA CARE HOMES," 2,176.89 ",13/05/2016
Delivery Units,Adults and Communities,Other Agencies - Third Party P,30121012,BUPA CARE HOMES," 1,113.62 ",13/05/2016
Delivery Units,Adults and Communities,Other Agencies - Third Party P,30121013,BUPA CARE HOMES," 2,569.89 ",13/05/2016
Delivery Units,Adults and Communities,Other Agencies - Third Party P,30121014,BUPA CARE HOMES," 2,176.89 ",13/05/2016
Delivery Units,Adults and Communities,Other Agencies - Third Party P,30121213,BUPA CARE HOMES," 2,487.77 ",16/05/2016
Delivery Units,Adults and Communities,Other Agencies - Third Party P,30121214,BUPA CARE HOMES," 2,330.19 ",16/05/2016
Delivery Units,Adults and Communities,Other Agencies - Third Party P,30121583,BUPA CARE HOMES," 2,249.45 ",19/05/2016
Delivery Units,Adults and Communities,Other Agencies - Third Party P,30121584,BUPA CARE HOMES," 1,795.30 ",19/05/2016
Delivery Units,Adults and Communities,Other Agencies - Third Party P,30121585,BUPA CARE HOMES," 2,216.41 ",19/05/2016
Delivery Units,Adults and Communities,Other Agencies - Third Party P,30121586,BUPA CARE HOMES," 2,116.86 ",19/05/2016
Delivery Units,Adults and Communities,Other Agencies - Third Party P,30121587,BUPA CARE HOMES," 2,244.13 ",19/05/2016
Delivery Units,Adults and Communities,Other Agencies - Third Party P,30121588,BUPA CARE HOMES," 2,829.73 ",19/05/2016
Delivery Units,Adults and Communities,Other Agencies - Third Party P,30121589,BUPA CARE HOMES," 2,244.13 ",19/05/2016
Delivery Units,Adults and Communities,Other Agencies - Third Party P,30121590,BUPA CARE HOMES,"-2,678.58 ",19/05/2016
Delivery Units,Adults and Communities,Other Agencies - Third Party P,30121618,BUPA CARE HOMES, 74.65 ,20/05/2016
Delivery Units,Adults and Communities,Other Agencies - Third Party P,30121620,BUPA CARE HOMES," 4,842.64 ",20/05/2016
Delivery Units,Adults and Communities,Other Agencies - Third Party P,30121870,BUPA CARE HOMES," 7,750.00 ",23/05/2016
Delivery Units,Adults and Communities,Other Agencies - Third Party P,30121871,BUPA CARE HOMES," 2,244.13 ",23/05/2016
Delivery Units,Adults and Communities,Other Agencies - Third Party P,30121872,BUPA CARE HOMES," 2,785.71 ",23/05/2016
Delivery Units,Adults and Communities,Other Agencies - Third Party P,30121873,BUPA CARE HOMES," 4,285.71 ",23/05/2016
Delivery Units,Adults and Communities,Other Agencies - Third Party P,30122737,BUPA CARE HOMES," 2,216.41 ",26/05/2016
Delivery Units,Adults and Communities,Other Agencies - Third Party P,30122738,BUPA CARE HOMES," 2,116.86 ",26/05/2016
Delivery Units,Adults and Communities,Other Agencies - Third Party P,30122741,BUPA CARE HOMES," 2,418.04 ",26/05/2016
Delivery Units,Adults and Communities,Other Agencies - Third Party P,30122815,BUPA CARE HOMES," 2,314.02 ",27/05/2016
Delivery Units,Adults and Communities,Other Agencies - Third Party P,30122816,BUPA CARE HOMES," 2,570.70 ",27/05/2016
Delivery Units,Adults and Communities,Other Agencies - Third Party P,30123163,BUPA CARE HOMES," 2,320.37 ",27/05/2016
Delivery Units,Adults and Communities,Other Agencies - Third Party P,30123166,BUPA CARE HOMES," 2,244.13 ",27/05/2016
Delivery Units,Adults and Communities,Other Agencies - Third Party P,30123167,BUPA CARE HOMES," 3,258.81 ",27/05/2016
Delivery Units,Adults and Communities,Other Agencies - Third Party P,30123168,BUPA CARE HOMES," 3,321.43 ",27/05/2016
Delivery Units,Adults and Communities,Other Agencies - Third Party P,30120635,BUPA CARE HOMES - BRUNSWICK COURT," 3,385.71 ",10/05/2016
Delivery Units,Adults and Communities,Other Agencies - Third Party P,30120626,BUPA NURSING HOMES LTD - ARKLEY," 2,487.77 ",10/05/2016
Delivery Units,Adults and Communities,Other Agencies - Third Party P,30120627,BUPA NURSING HOMES LTD - ARKLEY," 2,571.43 ",10/05/2016
Delivery Units,Adults and Communities,Other Agencies - Third Party P,30120857,BUPA NURSING HOMES LTD - ARKLEY," 2,094.52 ",13/05/2016
Delivery Units,Adults and Communities,Other Agencies - Third Party P,30120858,BUPA NURSING HOMES LTD - ARKLEY," 2,094.52 ",13/05/2016
Delivery Units,Adults and Communities,Other Agencies - Third Party P,30120859,BUPA NURSING HOMES LTD - ARKLEY," 2,094.52 ",13/05/2016
Delivery Units,Adults and Communities,Other Agencies - Third Party P,30120860,BUPA NURSING HOMES LTD - ARKLEY," 1,553.92 ",13/05/2016
Delivery Units,Adults and Communities,Other Agencies - Third Party P,30120861,BUPA NURSING HOMES LTD - ARKLEY," 2,094.52 ",13/05/2016
Delivery Units,Adults and Communities,Other Agencies - Third Party P,30120862,BUPA NURSING HOMES LTD - ARKLEY," 1,824.37 ",13/05/2016
Delivery Units,Adults and Communities,Other Agencies - Third Party P,30122720,BUPA NURSING HOMES LTD - ARKLEY," 2,570.70 ",26/05/2016
Delivery Units,Adults and Communities,Other Agencies - Third Party P,30122721,BUPA NURSING HOMES LTD - ARKLEY," 2,657.14 ",26/05/2016
Delivery Units,Adults and Communities,Other Agencies - Third Party P,30120717,CAMBIAN BEECHES," 12,739.80 ",10/05/2016
Delivery Units,Adults and Communities,Other Agencies - Third Party P,30123125,CAMBIAN BEECHES,"-9,835.74 ",27/05/2016
Delivery Units,Adults and Communities,Other Agencies - Third Party P,30123126,CAMBIAN BEECHES," 32,785.80 ",27/05/2016
Delivery Units,Adults and Communities,Other Agencies - Third Party P,30123176,CAMBIAN BEECHES," 13,164.46 ",27/05/2016
Delivery Units,Adults and Communities,Other Agencies - Third Party P,30120557,CAMPHILL DEVON COMMUNITY LIMITED," 4,508.00 ",10/05/2016
Delivery Units,Adults and Communities,Other Agencies - Third Party P,30122979,CAMPHILL DEVON COMMUNITY LIMITED," 4,508.00 ",27/05/2016
Delivery Units,Adults and Communities,Other Agencies - Third Party P,30120544,CANDLE COURT NURSING HOME," 2,569.89 ",10/05/2016
Delivery Units,Adults and Communities,Other Agencies - Third Party P,30120545,CANDLE COURT NURSING HOME," 3,642.86 ",10/05/2016
Delivery Units,Adults and Communities,Other Agencies - Third Party P,30120546,CANDLE COURT NURSING HOME," 2,569.89 ",10/05/2016
Delivery Units,Adults and Communities,Other Agencies - Third Party P,30123260,CANDLE COURT NURSING HOME," 2,655.55 ",31/05/2016
Delivery Units,Adults and Communities,Other Agencies - Third Party P,30123261,CANDLE COURT NURSING HOME," 3,764.29 ",31/05/2016
Delivery Units,Adults and Communities,Other Agencies - Third Party P,30123262,CANDLE COURT NURSING HOME," 2,655.55 ",31/05/2016
Delivery Units,Adults and Communities,Other Agencies - Third Party P,30120691,CARE ASSIST LIMITED," 4,071.43 ",10/05/2016
Delivery Units,Adults and Communities,Other Agencies - Third Party P,30120692,CARE ASSIST LIMITED," 4,071.43 ",10/05/2016
Delivery Units,Adults and Communities,Other Agencies - Third Party P,30120660,CARE UK COMMUNITY PARTNERSHIPS," 2,774.96 ",10/05/2016
Delivery Units,Adults and Communities,Other Agencies - Third Party P,30122004,CARE WORLDWIDE (LONDON) LTD," 10,080.40 ",24/05/2016
Delivery Units,Adults and Communities,Other Agencies - Third Party P,30120746,CARETECH COMMUNITY SERVICES LTD, 459.94 ,10/05/2016
Delivery Units,Adults and Communities,Other Agencies - Third Party P,30120747,CARETECH COMMUNITY SERVICES LTD," 4,478.57 ",10/05/2016
Delivery Units,Adults and Communities,Other Agencies - Third Party P,30120749,CARETECH COMMUNITY SERVICES LTD, 789.81 ,10/05/2016
Delivery Units,Adults and Communities,Other Agencies - Third Party P,30120750,CARETECH COMMUNITY SERVICES LTD," 4,496.66 ",10/05/2016
Delivery Units,Adults and Communities,Other Agencies - Third Party P,30120752,CARETECH COMMUNITY SERVICES LTD, 699.30 ,10/05/2016
Delivery Units,Adults and Communities,Other Agencies - Third Party P,30120753,CARETECH COMMUNITY SERVICES LTD," 7,375.71 ",10/05/2016
Delivery Units,Adults and Communities,Other Agencies - Third Party P,30120755,CARETECH COMMUNITY SERVICES LTD, 789.81 ,10/05/2016
Delivery Units,Adults and Communities,Other Agencies - Third Party P,30120756,CARETECH COMMUNITY SERVICES LTD," 4,478.57 ",10/05/2016
Delivery Units,Adults and Communities,Other Agencies - Third Party P,30120757,CARETECH COMMUNITY SERVICES LTD," 4,478.74 ",10/05/2016
Delivery Units,Adults and Communities,Other Agencies - Third Party P,30120760,CARETECH COMMUNITY SERVICES LTD," 4,478.57 ",10/05/2016
Delivery Units,Adults and Communities,Other Agencies - Third Party P,30120761,CARETECH COMMUNITY SERVICES LTD, 889.50 ,10/05/2016
Delivery Units,Adults and Communities,Other Agencies - Third Party P,30120768,CARETECH COMMUNITY SERVICES LTD," 1,053.04 ",10/05/2016
Delivery Units,Adults and Communities,Other Agencies - Third Party P,30120772,CARETECH COMMUNITY SERVICES LTD," 1,053.04 ",10/05/2016
Delivery Units,Adults and Communities,Other Agencies - Third Party P,30120773,CARETECH COMMUNITY SERVICES LTD," 4,478.57 ",10/05/2016
Delivery Units,Adults and Communities,Other Agencies - Third Party P,30120774,CARETECH COMMUNITY SERVICES LTD," 2,080.59 ",10/05/2016
Delivery Units,Adults and Communities,Other Agencies - Third Party P,30120775,CARETECH COMMUNITY SERVICES LTD," 4,628.57 ",10/05/2016
Delivery Units,Adults and Communities,Other Agencies - Third Party P,30120777,CARETECH COMMUNITY SERVICES LTD," 1,478.57 ",10/05/2016
Delivery Units,Adults and Communities,Other Agencies - Third Party P,30120779,CARETECH COMMUNITY SERVICES LTD, 889.50 ,10/05/2016
Delivery Units,Adults and Communities,Other Agencies - Third Party P,30120780,CARETECH COMMUNITY SERVICES LTD," 1,053.04 ",10/05/2016
Delivery Units,Adults and Communities,Other Agencies - Third Party P,30120844,CARETECH COMMUNITY SERVICES LTD," 2,506.20 ",10/05/2016
Delivery Units,Adults and Communities,Other Agencies - Third Party P,30122774,CARETECH COMMUNITY SERVICES LTD, 722.61 ,27/05/2016
Delivery Units,Adults and Communities,Other Agencies - Third Party P,30122775,CARETECH COMMUNITY SERVICES LTD," 7,621.57 ",27/05/2016
Delivery Units,Adults and Communities,Other Agencies - Third Party P,30122776,CARETECH COMMUNITY SERVICES LTD," 4,627.86 ",27/05/2016
Delivery Units,Adults and Communities,Other Agencies - Third Party P,30122777,CARETECH COMMUNITY SERVICES LTD," 4,628.03 ",27/05/2016
Delivery Units,Adults and Communities,Other Agencies - Third Party P,30122780,CARETECH COMMUNITY SERVICES LTD," 4,627.86 ",27/05/2016
Delivery Units,Adults and Communities,Other Agencies - Third Party P,30122783,CARETECH COMMUNITY SERVICES LTD," 1,088.14 ",27/05/2016
Delivery Units,Adults and Communities,Other Agencies - Third Party P,30122788,CARETECH COMMUNITY SERVICES LTD," 1,088.14 ",27/05/2016
Delivery Units,Adults and Communities,Other Agencies - Third Party P,30122792,CARETECH COMMUNITY SERVICES LTD," 4,627.86 ",27/05/2016
Delivery Units,Adults and Communities,Other Agencies - Third Party P,30122793,CARETECH COMMUNITY SERVICES LTD," 4,782.86 ",27/05/2016
Delivery Units,Adults and Communities,Other Agencies - Third Party P,30122796,CARETECH COMMUNITY SERVICES LTD, 919.15 ,27/05/2016
Delivery Units,Adults and Communities,Other Agencies - Third Party P,30122798,CARETECH COMMUNITY SERVICES LTD, 816.14 ,27/05/2016
Delivery Units,Adults and Communities,Other Agencies - Third Party P,30122799,CARETECH COMMUNITY SERVICES LTD," 1,527.86 ",27/05/2016
Delivery Units,Adults and Communities,Other Agencies - Third Party P,30123319,CARETECH COMMUNITY SERVICES LTD, 722.61 ,31/05/2016
Delivery Units,Adults and Communities,Other Agencies - Third Party P,30123320,CARETECH COMMUNITY SERVICES LTD, 919.15 ,31/05/2016
Delivery Units,Adults and Communities,Other Agencies - Third Party P,30120450,CARING HOMES HEALTHCARE GROUP," 3,200.00 ",06/05/2016
Delivery Units,Adults and Communities,Other Agencies - Third Party P,30123273,CARING HOMES HEALTHCARE GROUP," 3,200.00 ",31/05/2016
Delivery Units,Adults and Communities,Other Agencies - Third Party P,30120416,CARLTON COURT (TLC GROUP), 236.98 ,06/05/2016
Delivery Units,Adults and Communities,Other Agencies - Third Party P,30123243,CARLTON COURT (TLC GROUP)," 3,764.29 ",31/05/2016
Delivery Units,Adults and Communities,Other Agencies - Third Party P,30123244,CARLTON COURT (TLC GROUP)," 4,428.57 ",31/05/2016
Delivery Units,Adults and Communities,Other Agencies - Third Party P,30123245,CARLTON COURT (TLC GROUP)," 4,428.57 ",31/05/2016
Delivery Units,Adults and Communities,Other Agencies - Third Party P,30123246,CARLTON COURT (TLC GROUP)," 2,448.78 ",31/05/2016
Delivery Units,Adults and Communities,Other Agencies - Third Party P,30123247,CARLTON COURT (TLC GROUP)," 2,249.45 ",31/05/2016
Delivery Units,Adults and Communities,Other Agencies - Third Party P,30123248,CARLTON COURT (TLC GROUP)," 2,249.45 ",31/05/2016
Delivery Units,Adults and Communities,Other Agencies - Third Party P,30123249,CARLTON COURT (TLC GROUP)," 2,655.55 ",31/05/2016
Delivery Units,Adults and Communities,Other Agencies - Third Party P,30123250,CARLTON COURT (TLC GROUP)," 2,655.55 ",31/05/2016
Delivery Units,Adults and Communities,Other Agencies - Third Party P,30123252,CARLTON COURT (TLC GROUP)," 2,397.72 ",31/05/2016
Delivery Units,Adults and Communities,Other Agencies - Third Party P,30123253,CARLTON COURT (TLC GROUP)," 2,655.55 ",31/05/2016
Delivery Units,Adults and Communities,Other Agencies - Third Party P,30123254,CARLTON COURT (TLC GROUP)," 3,720.93 ",31/05/2016
Delivery Units,Adults and Communities,Other Agencies - Third Party P,30123255,CARLTON COURT (TLC GROUP)," 2,655.55 ",31/05/2016
Delivery Units,Adults and Communities,Other Agencies - Third Party P,30123256,CARLTON COURT (TLC GROUP)," 2,397.72 ",31/05/2016
Delivery Units,Adults and Communities,Other Agencies - Third Party P,30123258,CARLTON COURT (TLC GROUP)," 2,448.78 ",31/05/2016
Delivery Units,Adults and Communities,Other Agencies - Third Party P,30123259,CARLTON COURT (TLC GROUP)," 2,655.55 ",31/05/2016
Delivery Units,Adults and Communities,Other Agencies - Third Party P,30122972,CARMEN LODGE RESIDENTIAL HOME," 2,739.47 ",27/05/2016
Delivery Units,Adults and Communities,Other Agencies - Third Party P,30120617,CATHERINE LODGE," 2,184.04 ",10/05/2016
Delivery Units,Adults and Communities,Other Agencies - Third Party P,30120917,CATHERINE LODGE," 2,184.04 ",13/05/2016
Delivery Units,Adults and Communities,Other Agencies - Third Party P,30120919,CATHERINE LODGE," 2,184.04 ",13/05/2016
Delivery Units,Adults and Communities,Other Agencies - Third Party P,30120929,CATHERINE LODGE," 2,184.04 ",13/05/2016
Delivery Units,Adults and Communities,Other Agencies - Third Party P,30121241,CATHERINE LODGE," 2,184.04 ",17/05/2016
Delivery Units,Adults and Communities,Other Agencies - Third Party P,30120958,CDR CARE LTD, 800.00 ,13/05/2016
Delivery Units,Adults and Communities,Other Agencies - Third Party P,30120959,CDR CARE LTD, 800.00 ,13/05/2016
Delivery Units,Adults and Communities,Other Agencies - Third Party P,30120960,CDR CARE LTD, 800.00 ,13/05/2016
Delivery Units,Adults and Communities,Other Agencies - Third Party P,30121226,CDR CARE LTD," 1,900.00 ",17/05/2016
Delivery Units,Adults and Communities,Other Agencies - Third Party P,30122485,CDR CARE LTD," 1,900.00 ",26/05/2016
Delivery Units,Adults and Communities,Other Agencies - Third Party P,30120638,CEDARS NURSING HOME," 2,483.01 ",10/05/2016
Delivery Units,Adults and Communities,Other Agencies - Third Party P,30120639,CEDARS NURSING HOME," 2,277.34 ",10/05/2016
Delivery Units,Adults and Communities,Other Agencies - Third Party P,30120640,CEDARS NURSING HOME," 2,483.01 ",10/05/2016
Delivery Units,Adults and Communities,Other Agencies - Third Party P,30120641,CEDARS NURSING HOME," 2,239.37 ",10/05/2016
Delivery Units,Adults and Communities,Other Agencies - Third Party P,30120642,CEDARS NURSING HOME," 2,277.34 ",10/05/2016
Delivery Units,Adults and Communities,Other Agencies - Third Party P,30123128,CEDARS NURSING HOME," 2,565.78 ",27/05/2016
Delivery Units,Adults and Communities,Other Agencies - Third Party P,30123129,CEDARS NURSING HOME," 2,565.78 ",27/05/2016
Delivery Units,Adults and Communities,Other Agencies - Third Party P,30123130,CEDARS NURSING HOME," 2,353.25 ",27/05/2016
Delivery Units,Adults and Communities,Other Agencies - Third Party P,30123131,CEDARS NURSING HOME," 2,565.78 ",27/05/2016
Delivery Units,Adults and Communities,Other Agencies - Third Party P,30123132,CEDARS NURSING HOME," 2,314.02 ",27/05/2016
Delivery Units,Adults and Communities,Other Agencies - Third Party P,30123133,CEDARS NURSING HOME," 2,353.25 ",27/05/2016
Delivery Units,Adults and Communities,Other Agencies - Third Party P,30120558,CHATSWORTH CARE," 10,264.29 ",10/05/2016
Delivery Units,Adults and Communities,Other Agencies - Third Party P,30122980,CHATSWORTH CARE," 10,606.43 ",27/05/2016
Delivery Units,Adults and Communities,Other Agencies - Third Party P,30122976,CHEQUERS TRANSPORT LIMITED, 398.80 ,27/05/2016
Delivery Units,Adults and Communities,Other Agencies - Third Party P,30122977,CHEQUERS TRANSPORT LIMITED, 120.56 ,27/05/2016
Delivery Units,Adults and Communities,Other Agencies - Third Party P,20030021,CHINGFORD KENNELS, 701.05 ,13/05/2016
Delivery Units,Adults and Communities,Other Agencies - Third Party P,30121860,CLEARWATER CARE (HACKNEY) LTD," 5,356.00 ",23/05/2016
Delivery Units,Adults and Communities,Other Agencies - Third Party P,30120643,CLOVELLY HOUSE RESID. HOME LTD," 2,211.80 ",10/05/2016
Delivery Units,Adults and Communities,Other Agencies - Third Party P,30121137,CLOVELLY HOUSE RESID. HOME LTD, 868.92 ,16/05/2016
Delivery Units,Adults and Communities,Other Agencies - Third Party P,30121138,CLOVELLY HOUSE RESID. HOME LTD," 2,290.79 ",16/05/2016
Delivery Units,Adults and Communities,Other Agencies - Third Party P,30121853,CLOVELLY HOUSE RESID. HOME LTD," 2,600.00 ",23/05/2016
Delivery Units,Adults and Communities,Other Agencies - Third Party P,30121854,CLOVELLY HOUSE RESID. HOME LTD," 2,600.00 ",23/05/2016
Delivery Units,Adults and Communities,Other Agencies - Third Party P,30121855,CLOVELLY HOUSE RESID. HOME LTD," 1,900.40 ",23/05/2016
Delivery Units,Adults and Communities,Other Agencies - Third Party P,30121856,CLOVELLY HOUSE RESID. HOME LTD," 2,600.00 ",23/05/2016
Delivery Units,Adults and Communities,Other Agencies - Third Party P,30121857,CLOVELLY HOUSE RESID. HOME LTD," 2,211.80 ",23/05/2016
Delivery Units,Adults and Communities,Other Agencies - Third Party P,30121858,CLOVELLY HOUSE RESID. HOME LTD," 2,211.80 ",23/05/2016
Delivery Units,Adults and Communities,Other Agencies - Third Party P,30121859,CLOVELLY HOUSE RESID. HOME LTD," 2,211.80 ",23/05/2016
Delivery Units,Adults and Communities,Other Agencies - Third Party P,30120970,CMG HOMES LTD," 3,086.84 ",13/05/2016
Delivery Units,Adults and Communities,Other Agencies - Third Party P,30120541,COMPLETE CARE SERVICES LTD," 5,251.80 ",10/05/2016
Delivery Units,Adults and Communities,Other Agencies - Third Party P,30122948,COMPLETE CARE SERVICES LTD," 5,426.86 ",27/05/2016
Delivery Units,Adults and Communities,Other Agencies - Third Party P,30120732,CONNIFERS CARE LTD," 7,375.83 ",10/05/2016
Delivery Units,Adults and Communities,Other Agencies - Third Party P,30120733,CONNIFERS CARE LTD," 7,137.90 ",10/05/2016
Delivery Units,Adults and Communities,Other Agencies - Third Party P,30120842,CONNIFERS CARE LTD," 6,899.97 ",10/05/2016
Delivery Units,Adults and Communities,Other Agencies - Third Party P,30120623,DELAMER HOUSE," 2,357.14 ",10/05/2016
Delivery Units,Adults and Communities,Other Agencies - Third Party P,30122055,DEVELOPMENT AND LEARNING OPPORTUNIT, 489.30 ,24/05/2016
Delivery Units,Adults and Communities,Other Agencies - Third Party P,30122056,DEVELOPMENT AND LEARNING OPPORTUNIT," 1,056.00 ",24/05/2016
Delivery Units,Adults and Communities,Other Agencies - Third Party P,30122057,DEVELOPMENT AND LEARNING OPPORTUNIT," 1,687.50 ",24/05/2016
Delivery Units,Adults and Communities,Other Agencies - Third Party P,30122058,DEVELOPMENT AND LEARNING OPPORTUNIT," 1,053.00 ",24/05/2016
Delivery Units,Adults and Communities,Other Agencies - Third Party P,30122059,DEVELOPMENT AND LEARNING OPPORTUNIT, 500.00 ,24/05/2016
Delivery Units,Adults and Communities,Other Agencies - Third Party P,30122060,DEVELOPMENT AND LEARNING OPPORTUNIT, 908.28 ,24/05/2016
Delivery Units,Adults and Communities,Other Agencies - Third Party P,30122061,DEVELOPMENT AND LEARNING OPPORTUNIT, 306.00 ,24/05/2016
Delivery Units,Adults and Communities,Other Agencies - Third Party P,30122062,DEVELOPMENT AND LEARNING OPPORTUNIT," 1,822.50 ",24/05/2016
Delivery Units,Adults and Communities,Other Agencies - Third Party P,30122063,DEVELOPMENT AND LEARNING OPPORTUNIT," 2,025.00 ",24/05/2016
Delivery Units,Adults and Communities,Other Agencies - Third Party P,30122064,DEVELOPMENT AND LEARNING OPPORTUNIT," 1,056.00 ",24/05/2016
Delivery Units,Adults and Communities,Other Agencies - Third Party P,30122065,DEVELOPMENT AND LEARNING OPPORTUNIT," 1,875.00 ",24/05/2016
Delivery Units,Adults and Communities,Other Agencies - Third Party P,30122066,DEVELOPMENT AND LEARNING OPPORTUNIT," 1,053.00 ",24/05/2016
Delivery Units,Adults and Communities,Other Agencies - Third Party P,30122067,DEVELOPMENT AND LEARNING OPPORTUNIT, 500.00 ,24/05/2016
Delivery Units,Adults and Communities,Other Agencies - Third Party P,30122069,DEVELOPMENT AND LEARNING OPPORTUNIT, 306.00 ,24/05/2016
Delivery Units,Adults and Communities,Other Agencies - Third Party P,30121029,DIMENSIONS UK, 149.60 ,13/05/2016
Delivery Units,Adults and Communities,Other Agencies - Third Party P,30121030,DIMENSIONS UK, 149.60 ,13/05/2016
Delivery Units,Adults and Communities,Other Agencies - Third Party P,30121031,DIMENSIONS UK, 149.60 ,13/05/2016
Delivery Units,Adults and Communities,Other Agencies - Third Party P,30121032,DIMENSIONS UK, 149.60 ,13/05/2016
Delivery Units,Adults and Communities,Other Agencies - Third Party P,30121033,DIMENSIONS UK, 74.80 ,13/05/2016
Delivery Units,Adults and Communities,Other Agencies - Third Party P,30121034,DIMENSIONS UK, 74.80 ,13/05/2016
Delivery Units,Adults and Communities,Other Agencies - Third Party P,30121035,DIMENSIONS UK, 74.80 ,13/05/2016
Delivery Units,Adults and Communities,Other Agencies - Third Party P,30121036,DIMENSIONS UK, 149.60 ,13/05/2016
Delivery Units,Adults and Communities,Other Agencies - Third Party P,30121037,DIMENSIONS UK, 149.60 ,13/05/2016
Delivery Units,Adults and Communities,Other Agencies - Third Party P,30121038,DIMENSIONS UK, 149.60 ,13/05/2016
Delivery Units,Adults and Communities,Other Agencies - Third Party P,30121039,DIMENSIONS UK, 74.80 ,13/05/2016
Delivery Units,Adults and Communities,Other Agencies - Third Party P,30121040,DIMENSIONS UK, 74.80 ,13/05/2016
Delivery Units,Adults and Communities,Other Agencies - Third Party P,30121041,DIMENSIONS UK, 523.60 ,13/05/2016
Delivery Units,Adults and Communities,Other Agencies - Third Party P,30121042,DIMENSIONS UK, 299.20 ,13/05/2016
Delivery Units,Adults and Communities,Other Agencies - Third Party P,30121043,DIMENSIONS UK, 224.40 ,13/05/2016
Delivery Units,Adults and Communities,Other Agencies - Third Party P,30121044,DIMENSIONS UK, 299.20 ,13/05/2016
Delivery Units,Adults and Communities,Other Agencies - Third Party P,30121045,DIMENSIONS UK, 149.60 ,13/05/2016
Delivery Units,Adults and Communities,Other Agencies - Third Party P,30121046,DIMENSIONS UK, 448.80 ,13/05/2016
Delivery Units,Adults and Communities,Other Agencies - Third Party P,30121047,DIMENSIONS UK, 149.60 ,13/05/2016
Delivery Units,Adults and Communities,Other Agencies - Third Party P,30121048,DIMENSIONS UK, 112.20 ,13/05/2016
Delivery Units,Adults and Communities,Other Agencies - Third Party P,30121049,DIMENSIONS UK, 149.60 ,13/05/2016
Delivery Units,Adults and Communities,Other Agencies - Third Party P,30121050,DIMENSIONS UK, 149.60 ,13/05/2016
Delivery Units,Adults and Communities,Other Agencies - Third Party P,30121051,DIMENSIONS UK, 224.40 ,13/05/2016
Delivery Units,Adults and Communities,Other Agencies - Third Party P,30121053,DIMENSIONS UK, 149.60 ,13/05/2016
Delivery Units,Adults and Communities,Other Agencies - Third Party P,30121085,DIMENSIONS UK, 149.60 ,13/05/2016
Delivery Units,Adults and Communities,Other Agencies - Third Party P,30121192,DIMENSIONS UK," 6,025.32 ",16/05/2016
Delivery Units,Adults and Communities,Other Agencies - Third Party P,30121193,DIMENSIONS UK," 4,495.76 ",16/05/2016
Delivery Units,Adults and Communities,Other Agencies - Third Party P,30121194,DIMENSIONS UK," 4,495.76 ",16/05/2016
Delivery Units,Adults and Communities,Other Agencies - Third Party P,30121371,DIMENSIONS UK, 374.00 ,17/05/2016
Delivery Units,Adults and Communities,Other Agencies - Third Party P,30121372,DIMENSIONS UK, 149.60 ,17/05/2016
Delivery Units,Adults and Communities,Other Agencies - Third Party P,30121373,DIMENSIONS UK," 1,122.00 ",17/05/2016
Delivery Units,Adults and Communities,Other Agencies - Third Party P,30121374,DIMENSIONS UK, 168.30 ,17/05/2016
Delivery Units,Adults and Communities,Other Agencies - Third Party P,30121375,DIMENSIONS UK, 149.60 ,17/05/2016
Delivery Units,Adults and Communities,Other Agencies - Third Party P,30121376,DIMENSIONS UK, 224.40 ,17/05/2016
Delivery Units,Adults and Communities,Other Agencies - Third Party P,30121377,DIMENSIONS UK, 74.80 ,17/05/2016
Delivery Units,Adults and Communities,Other Agencies - Third Party P,30121378,DIMENSIONS UK," 1,870.00 ",17/05/2016
Delivery Units,Adults and Communities,Other Agencies - Third Party P,30121379,DIMENSIONS UK, 149.60 ,17/05/2016
Delivery Units,Adults and Communities,Other Agencies - Third Party P,30121380,DIMENSIONS UK, 374.00 ,17/05/2016
Delivery Units,Adults and Communities,Other Agencies - Third Party P,30121381,DIMENSIONS UK, 832.15 ,17/05/2016
Delivery Units,Adults and Communities,Other Agencies - Third Party P,30121382,DIMENSIONS UK, 74.80 ,17/05/2016
Delivery Units,Adults and Communities,Other Agencies - Third Party P,30121383,DIMENSIONS UK, 149.60 ,17/05/2016
Delivery Units,Adults and Communities,Other Agencies - Third Party P,30121384,DIMENSIONS UK," 1,103.30 ",17/05/2016
Delivery Units,Adults and Communities,Other Agencies - Third Party P,30121385,DIMENSIONS UK," 1,570.80 ",17/05/2016
Delivery Units,Adults and Communities,Other Agencies - Third Party P,30121386,DIMENSIONS UK," 1,570.80 ",17/05/2016
Delivery Units,Adults and Communities,Other Agencies - Third Party P,30121387,DIMENSIONS UK," 1,570.80 ",17/05/2016
Delivery Units,Adults and Communities,Other Agencies - Third Party P,30121388,DIMENSIONS UK," 1,870.00 ",17/05/2016
Delivery Units,Adults and Communities,Other Agencies - Third Party P,30121389,DIMENSIONS UK," 1,870.00 ",17/05/2016
Delivery Units,Adults and Communities,Other Agencies - Third Party P,30121390,DIMENSIONS UK, 224.40 ,17/05/2016
Delivery Units,Adults and Communities,Other Agencies - Third Party P,30121391,DIMENSIONS UK," 6,025.32 ",17/05/2016
Delivery Units,Adults and Communities,Other Agencies - Third Party P,30121392,DIMENSIONS UK," 4,495.76 ",17/05/2016
Delivery Units,Adults and Communities,Other Agencies - Third Party P,30121393,DIMENSIONS UK," 4,495.76 ",17/05/2016
Delivery Units,Adults and Communities,Other Agencies - Third Party P,30121394,DIMENSIONS UK, 149.60 ,17/05/2016
Delivery Units,Adults and Communities,Other Agencies - Third Party P,30121395,DIMENSIONS UK, 149.60 ,17/05/2016
Delivery Units,Adults and Communities,Other Agencies - Third Party P,30121396,DIMENSIONS UK, 224.40 ,17/05/2016
Delivery Units,Adults and Communities,Other Agencies - Third Party P,30121397,DIMENSIONS UK, 149.60 ,17/05/2016
Delivery Units,Adults and Communities,Other Agencies - Third Party P,30121398,DIMENSIONS UK, 149.60 ,17/05/2016
Delivery Units,Adults and Communities,Other Agencies - Third Party P,30121399,DIMENSIONS UK, 74.80 ,17/05/2016
Delivery Units,Adults and Communities,Other Agencies - Third Party P,30121400,DIMENSIONS UK, 74.80 ,17/05/2016
Delivery Units,Adults and Communities,Other Agencies - Third Party P,30121401,DIMENSIONS UK, 74.80 ,17/05/2016
Delivery Units,Adults and Communities,Other Agencies - Third Party P,30121402,DIMENSIONS UK, 149.60 ,17/05/2016
Delivery Units,Adults and Communities,Other Agencies - Third Party P,30121403,DIMENSIONS UK, 149.60 ,17/05/2016
Delivery Units,Adults and Communities,Other Agencies - Third Party P,30121404,DIMENSIONS UK, 149.60 ,17/05/2016
Delivery Units,Adults and Communities,Other Agencies - Third Party P,30121405,DIMENSIONS UK, 149.60 ,17/05/2016
Delivery Units,Adults and Communities,Other Agencies - Third Party P,30121406,DIMENSIONS UK, 74.80 ,17/05/2016
Delivery Units,Adults and Communities,Other Agencies - Third Party P,30121407,DIMENSIONS UK, 74.80 ,17/05/2016
Delivery Units,Adults and Communities,Other Agencies - Third Party P,30121408,DIMENSIONS UK, 523.60 ,17/05/2016
Delivery Units,Adults and Communities,Other Agencies - Third Party P,30121409,DIMENSIONS UK, 299.20 ,17/05/2016
Delivery Units,Adults and Communities,Other Agencies - Third Party P,30121410,DIMENSIONS UK, 224.40 ,17/05/2016
Delivery Units,Adults and Communities,Other Agencies - Third Party P,30121411,DIMENSIONS UK, 299.20 ,17/05/2016
Delivery Units,Adults and Communities,Other Agencies - Third Party P,30121412,DIMENSIONS UK, 149.60 ,17/05/2016
Delivery Units,Adults and Communities,Other Agencies - Third Party P,30121413,DIMENSIONS UK, 448.80 ,17/05/2016
Delivery Units,Adults and Communities,Other Agencies - Third Party P,30121414,DIMENSIONS UK, 149.60 ,17/05/2016
Delivery Units,Adults and Communities,Other Agencies - Third Party P,30121415,DIMENSIONS UK, 112.20 ,17/05/2016
Delivery Units,Adults and Communities,Other Agencies - Third Party P,30121416,DIMENSIONS UK, 149.60 ,17/05/2016
Delivery Units,Adults and Communities,Other Agencies - Third Party P,30121417,DIMENSIONS UK, 149.60 ,17/05/2016
Delivery Units,Adults and Communities,Other Agencies - Third Party P,30121418,DIMENSIONS UK, 149.60 ,17/05/2016
Delivery Units,Adults and Communities,Other Agencies - Third Party P,30121419,DIMENSIONS UK, 224.40 ,17/05/2016
Delivery Units,Adults and Communities,Other Agencies - Third Party P,30121602,DIMENSIONS UK," 2,128.00 ",19/05/2016
Delivery Units,Adults and Communities,Other Agencies - Third Party P,30121607,DIMENSIONS UK," 1,541.00 ",19/05/2016
Delivery Units,Adults and Communities,Other Agencies - Third Party P,30122085,DIMENSIONS UK, 224.40 ,24/05/2016
Delivery Units,Adults and Communities,Other Agencies - Third Party P,30122086,DIMENSIONS UK," 7,950.68 ",24/05/2016
Delivery Units,Adults and Communities,Other Agencies - Third Party P,30122765,DIMENSIONS UK,-56.10 ,26/05/2016
Delivery Units,Adults and Communities,Other Agencies - Third Party P,30122767,DIMENSIONS UK, 280.50 ,26/05/2016
Delivery Units,Adults and Communities,Other Agencies - Third Party P,30122768,DIMENSIONS UK, 149.60 ,26/05/2016
Delivery Units,Adults and Communities,Other Agencies - Third Party P,30122769,DIMENSIONS UK, 149.60 ,26/05/2016
Delivery Units,Adults and Communities,Other Agencies - Third Party P,30122770,DIMENSIONS UK, 149.60 ,26/05/2016
Delivery Units,Adults and Communities,Other Agencies - Third Party P,30122771,DIMENSIONS UK, 74.80 ,26/05/2016
Delivery Units,Adults and Communities,Other Agencies - Third Party P,30122772,DIMENSIONS UK, 74.80 ,26/05/2016
Delivery Units,Adults and Communities,Other Agencies - Third Party P,30123191,DIMENSIONS UK, 130.90 ,27/05/2016
Delivery Units,Adults and Communities,Other Agencies - Third Party P,30123192,DIMENSIONS UK, 168.30 ,27/05/2016
Delivery Units,Adults and Communities,Other Agencies - Third Party P,30123193,DIMENSIONS UK, 168.30 ,27/05/2016
Delivery Units,Adults and Communities,Other Agencies - Third Party P,30123194,DIMENSIONS UK, 411.40 ,27/05/2016
Delivery Units,Adults and Communities,Other Agencies - Third Party P,30122987,DOWNLANDS CARE LTD," 2,079.17 ",27/05/2016
Delivery Units,Adults and Communities,Other Agencies - Third Party P,30122988,DOWNLANDS CARE LTD," 2,012.10 ",27/05/2016
Delivery Units,Adults and Communities,Other Agencies - Third Party P,30121627,EASTSIDE HOUSE RESIDENTIAL CARE HOM," 2,031.76 ",24/05/2016
Delivery Units,Adults and Communities,Other Agencies - Third Party P,30120437,ELIZA HOUSE," 1,105.90 ",06/05/2016
Delivery Units,Adults and Communities,Other Agencies - Third Party P,30122978,ELIZA HOUSE," 2,448.78 ",27/05/2016
Delivery Units,Adults and Communities,Other Agencies - Third Party P,30120856,ELM PARK LODGE," 3,192.86 ",13/05/2016
Delivery Units,Adults and Communities,Other Agencies - Third Party P,30120866,ELM PARK LODGE," 3,407.14 ",13/05/2016
Delivery Units,Adults and Communities,Other Agencies - Third Party P,30120867,ELM PARK LODGE," 3,372.39 ",13/05/2016
Delivery Units,Adults and Communities,Other Agencies - Third Party P,30120868,ELM PARK LODGE," 6,666.43 ",13/05/2016
Delivery Units,Adults and Communities,Other Agencies - Third Party P,30120869,ELM PARK LODGE," 3,321.43 ",13/05/2016
Delivery Units,Adults and Communities,Other Agencies - Third Party P,30120870,ELM PARK LODGE," 3,330.00 ",13/05/2016
Delivery Units,Adults and Communities,Other Agencies - Third Party P,30120871,ELM PARK LODGE," 4,138.76 ",13/05/2016
Delivery Units,Adults and Communities,Other Agencies - Third Party P,30120872,ELM PARK LODGE," 2,035.46 ",13/05/2016
Delivery Units,Adults and Communities,Other Agencies - Third Party P,30120873,ELM PARK LODGE," 3,321.43 ",13/05/2016
Delivery Units,Adults and Communities,Other Agencies - Third Party P,30120874,ELM PARK LODGE," 2,092.11 ",13/05/2016
Delivery Units,Adults and Communities,Other Agencies - Third Party P,30120875,ELM PARK LODGE," 3,107.14 ",13/05/2016
Delivery Units,Adults and Communities,Other Agencies - Third Party P,30120876,ELM PARK LODGE," 3,321.43 ",13/05/2016
Delivery Units,Adults and Communities,Other Agencies - Third Party P,30120878,ELM PARK LODGE," 3,321.43 ",13/05/2016
Delivery Units,Adults and Communities,Other Agencies - Third Party P,30120880,ELM PARK LODGE," 3,344.14 ",13/05/2016
Delivery Units,Adults and Communities,Other Agencies - Third Party P,30120881,ELM PARK LODGE," 6,028.71 ",13/05/2016
Delivery Units,Adults and Communities,Other Agencies - Third Party P,30120882,ELM PARK LODGE," 3,068.57 ",13/05/2016
Delivery Units,Adults and Communities,Other Agencies - Third Party P,30120932,EMMAUS HOUSE," 2,211.80 ",13/05/2016
Delivery Units,Adults and Communities,Other Agencies - Third Party P,30120933,EMMAUS HOUSE," 2,211.80 ",13/05/2016
Delivery Units,Adults and Communities,Other Agencies - Third Party P,30120934,EMMAUS HOUSE," 2,211.80 ",13/05/2016
Delivery Units,Adults and Communities,Other Agencies - Third Party P,30123142,EMMAUS HOUSE," 2,211.80 ",27/05/2016
Delivery Units,Adults and Communities,Other Agencies - Third Party P,30123178,REDACTED - PERSONAL DATA, 98.25 ,27/05/2016
Delivery Units,Adults and Communities,Other Agencies - Third Party P,30120587,FERNBANK NURSING HOME.," 2,320.20 ",10/05/2016
Delivery Units,Adults and Communities,Other Agencies - Third Party P,30120588,FERNBANK NURSING HOME.," 2,320.20 ",10/05/2016
Delivery Units,Adults and Communities,Other Agencies - Third Party P,30120589,FERNBANK NURSING HOME.," 2,320.20 ",10/05/2016
Delivery Units,Adults and Communities,Other Agencies - Third Party P,30120590,FERNBANK NURSING HOME.," 2,320.20 ",10/05/2016
Delivery Units,Adults and Communities,Other Agencies - Third Party P,30120591,FERNBANK NURSING HOME.," 2,320.20 ",10/05/2016
Delivery Units,Adults and Communities,Other Agencies - Third Party P,30120592,FERNBANK NURSING HOME.," 2,320.20 ",10/05/2016
Delivery Units,Adults and Communities,Other Agencies - Third Party P,30120580,FINBOND LIMITED," 2,571.43 ",10/05/2016
Delivery Units,Adults and Communities,Other Agencies - Third Party P,30120581,FINBOND LIMITED," 2,144.91 ",10/05/2016
Delivery Units,Adults and Communities,Other Agencies - Third Party P,30120583,FINBOND LIMITED," 2,352.86 ",10/05/2016
Delivery Units,Adults and Communities,Other Agencies - Third Party P,30120584,FINBOND LIMITED," 2,340.04 ",10/05/2016
Delivery Units,Adults and Communities,Other Agencies - Third Party P,30122693,FINBOND LIMITED," 2,657.14 ",26/05/2016
Delivery Units,Adults and Communities,Other Agencies - Third Party P,30122694,FINBOND LIMITED," 2,418.04 ",26/05/2016
Delivery Units,Adults and Communities,Other Agencies - Third Party P,30122695,FINBOND LIMITED," 2,431.29 ",26/05/2016
Delivery Units,Adults and Communities,Other Agencies - Third Party P,30121882,FLAGSWAN TWO LTD," 2,464.29 ",23/05/2016
Delivery Units,Adults and Communities,Other Agencies - Third Party P,30121462,FLEXSERVE RESOURCE LTD," 1,071.39 ",19/05/2016
Delivery Units,Adults and Communities,Other Agencies - Third Party P,30121463,FLEXSERVE RESOURCE LTD, 330.22 ,19/05/2016
Delivery Units,Adults and Communities,Other Agencies - Third Party P,30121464,FLEXSERVE RESOURCE LTD," 2,977.16 ",19/05/2016
Delivery Units,Adults and Communities,Other Agencies - Third Party P,30121465,FLEXSERVE RESOURCE LTD," 1,447.82 ",19/05/2016
Delivery Units,Adults and Communities,Other Agencies - Third Party P,30121466,FLEXSERVE RESOURCE LTD," 1,107.24 ",19/05/2016
Delivery Units,Adults and Communities,Other Agencies - Third Party P,30121467,FLEXSERVE RESOURCE LTD, 300.00 ,19/05/2016
Delivery Units,Adults and Communities,Other Agencies - Third Party P,30121468,FLEXSERVE RESOURCE LTD," 1,488.49 ",19/05/2016
Delivery Units,Adults and Communities,Other Agencies - Third Party P,30121469,FLEXSERVE RESOURCE LTD," 1,447.82 ",19/05/2016
Delivery Units,Adults and Communities,Other Agencies - Third Party P,30121470,FLEXSERVE RESOURCE LTD, 696.83 ,19/05/2016
Delivery Units,Adults and Communities,Other Agencies - Third Party P,30121975,FLEXSERVE RESOURCE LTD," 1,381.71 ",24/05/2016
Delivery Units,Adults and Communities,Other Agencies - Third Party P,30121976,FLEXSERVE RESOURCE LTD, 149.38 ,24/05/2016
Delivery Units,Adults and Communities,Other Agencies - Third Party P,30121977,FLEXSERVE RESOURCE LTD," 1,703.26 ",24/05/2016
Delivery Units,Adults and Communities,Other Agencies - Third Party P,30121150,FOUR SEASONS HEALTH CARE," 2,443.32 ",16/05/2016
Delivery Units,Adults and Communities,Other Agencies - Third Party P,30121151,FOUR SEASONS HEALTH CARE," 2,165.68 ",16/05/2016
Delivery Units,Adults and Communities,Other Agencies - Third Party P,30121152,FOUR SEASONS HEALTH CARE," 2,165.68 ",16/05/2016
Delivery Units,Adults and Communities,Other Agencies - Third Party P,30121153,FOUR SEASONS HEALTH CARE," 2,123.48 ",16/05/2016
Delivery Units,Adults and Communities,Other Agencies - Third Party P,30121154,FOUR SEASONS HEALTH CARE," 2,123.48 ",16/05/2016
Delivery Units,Adults and Communities,Other Agencies - Third Party P,30121155,FOUR SEASONS HEALTH CARE," 2,398.56 ",16/05/2016
Delivery Units,Adults and Communities,Other Agencies - Third Party P,30121156,FOUR SEASONS HEALTH CARE," 2,165.68 ",16/05/2016
Delivery Units,Adults and Communities,Other Agencies - Third Party P,30121157,FOUR SEASONS HEALTH CARE," 2,398.56 ",16/05/2016
Delivery Units,Adults and Communities,Other Agencies - Third Party P,30121158,FOUR SEASONS HEALTH CARE," 2,165.68 ",16/05/2016
Delivery Units,Adults and Communities,Other Agencies - Third Party P,30121159,FOUR SEASONS HEALTH CARE," 2,165.68 ",16/05/2016
Delivery Units,Adults and Communities,Other Agencies - Third Party P,30121160,FOUR SEASONS HEALTH CARE," 2,313.08 ",16/05/2016
Delivery Units,Adults and Communities,Other Agencies - Third Party P,30121161,FOUR SEASONS HEALTH CARE," 2,165.68 ",16/05/2016
Delivery Units,Adults and Communities,Other Agencies - Third Party P,30121162,FOUR SEASONS HEALTH CARE," 2,165.68 ",16/05/2016
Delivery Units,Adults and Communities,Other Agencies - Third Party P,30121163,FOUR SEASONS HEALTH CARE, 430.63 ,16/05/2016
Delivery Units,Adults and Communities,Other Agencies - Third Party P,30121164,FOUR SEASONS HEALTH CARE," 2,165.68 ",16/05/2016
Delivery Units,Adults and Communities,Other Agencies - Third Party P,30121165,FOUR SEASONS HEALTH CARE," 2,165.68 ",16/05/2016
Delivery Units,Adults and Communities,Other Agencies - Third Party P,30120854,FOUR SEASONS HEALTH CARE (NO.4) LTD," 2,004.00 ",13/05/2016
Delivery Units,Adults and Communities,Other Agencies - Third Party P,30120628,FRIERN RESIDENTIAL CARE HOME," 2,035.46 ",10/05/2016
Delivery Units,Adults and Communities,Other Agencies - Third Party P,30120634,FRIERN RESIDENTIAL CARE HOME," 3,857.14 ",10/05/2016
Delivery Units,Adults and Communities,Other Agencies - Third Party P,30121005,FRIERN RESIDENTIAL CARE HOME," 2,103.31 ",13/05/2016
Delivery Units,Adults and Communities,Other Agencies - Third Party P,30121006,FRIERN RESIDENTIAL CARE HOME," 3,985.71 ",13/05/2016
Delivery Units,Adults and Communities,Other Agencies - Third Party P,30121016,FRIERN RESIDENTIAL CARE HOME," 1,900.00 ",13/05/2016
Delivery Units,Adults and Communities,Other Agencies - Third Party P,30121017,FRIERN RESIDENTIAL CARE HOME," 3,100.00 ",13/05/2016
Delivery Units,Adults and Communities,Other Agencies - Third Party P,30120512,GENTLE HANDS CARE AGENCY, 396.50 ,10/05/2016
Delivery Units,Adults and Communities,Other Agencies - Third Party P,30120513,GENTLE HANDS CARE AGENCY," 1,400.00 ",10/05/2016
Delivery Units,Adults and Communities,Other Agencies - Third Party P,30120685,GENTLE HANDS CARE AGENCY, 324.00 ,10/05/2016
Delivery Units,Adults and Communities,Other Agencies - Third Party P,30120686,GENTLE HANDS CARE AGENCY, 68.50 ,10/05/2016
Delivery Units,Adults and Communities,Other Agencies - Third Party P,30120648,GLENHOLME PSYCHIATRIC AFTER CARE HO," 3,964.89 ",10/05/2016
Delivery Units,Adults and Communities,Other Agencies - Third Party P,30120729,GLENHOLME PSYCHIATRIC AFTER CARE HO," 3,857.57 ",10/05/2016
Delivery Units,Adults and Communities,Other Agencies - Third Party P,30120838,GLENHOLME PSYCHIATRIC AFTER CARE HO," 4,071.43 ",10/05/2016
Delivery Units,Adults and Communities,Other Agencies - Third Party P,30123139,GLENHOLME PSYCHIATRIC AFTER CARE HO," 4,097.05 ",27/05/2016
Delivery Units,Adults and Communities,Other Agencies - Third Party P,30123177,GLENHOLME PSYCHIATRIC AFTER CARE HO," 3,986.16 ",27/05/2016
Delivery Units,Adults and Communities,Other Agencies - Third Party P,30123213,GLENHOLME PSYCHIATRIC AFTER CARE HO," 4,207.14 ",27/05/2016
Delivery Units,Adults and Communities,Other Agencies - Third Party P,30120681,HALLMARK CARE (KINGS LYNN) LTD," 2,797.07 ",10/05/2016
Delivery Units,Adults and Communities,Other Agencies - Third Party P,30121091,HARTLEY CENTRE," 3,060.00 ",16/05/2016
Delivery Units,Adults and Communities,Other Agencies - Third Party P,30122989,HARTLEY CENTRE, 489.60 ,27/05/2016
Delivery Units,Adults and Communities,Other Agencies - Third Party P,30122990,HARTLEY CENTRE, 367.20 ,27/05/2016
Delivery Units,Adults and Communities,Other Agencies - Third Party P,30121358,HARTWIG CARE LIMITED," 1,198.19 ",17/05/2016
Delivery Units,Adults and Communities,Other Agencies - Third Party P,30121359,HARTWIG CARE LIMITED, 900.71 ,17/05/2016
Delivery Units,Adults and Communities,Other Agencies - Third Party P,30118768,HEADWAY EAST LONDON, 376.08 ,05/05/2016
Delivery Units,Adults and Communities,Other Agencies - Third Party P,30120121,HENRY NIHILL HOUSE," 2,398.56 ",04/05/2016
Delivery Units,Adults and Communities,Other Agencies - Third Party P,30120122,HENRY NIHILL HOUSE," 2,165.68 ",04/05/2016
Delivery Units,Adults and Communities,Other Agencies - Third Party P,30121875,HILTON LODGE LTD.," 2,184.04 ",23/05/2016
Delivery Units,Adults and Communities,Other Agencies - Third Party P,30121876,HILTON LODGE LTD.," 2,400.00 ",23/05/2016
Delivery Units,Adults and Communities,Other Agencies - Third Party P,30121877,HILTON LODGE LTD.," 2,256.04 ",23/05/2016
Delivery Units,Adults and Communities,Other Agencies - Third Party P,30121878,HILTON LODGE LTD.," 2,184.04 ",23/05/2016
Delivery Units,Adults and Communities,Other Agencies - Third Party P,30121879,HILTON LODGE LTD.," 2,184.04 ",23/05/2016
Delivery Units,Adults and Communities,Other Agencies - Third Party P,30121880,HILTON LODGE LTD.," 2,184.04 ",23/05/2016
Delivery Units,Adults and Communities,Other Agencies - Third Party P,30121889,HILTON LODGE LTD.," 2,184.04 ",23/05/2016
Delivery Units,Adults and Communities,Other Agencies - Third Party P,30121890,HILTON LODGE LTD.," 2,184.04 ",23/05/2016
Delivery Units,Adults and Communities,Other Agencies - Third Party P,20029939,HMCTS, 400.00 ,06/05/2016
Delivery Units,Adults and Communities,Other Agencies - Third Party P,30120633,HONISTER RESIDENTIAL CARE LTD," 2,340.04 ",10/05/2016
Delivery Units,Adults and Communities,Other Agencies - Third Party P,30121551,HONISTER RESIDENTIAL CARE LTD," 2,418.04 ",19/05/2016
Delivery Units,Adults and Communities,Other Agencies - Third Party P,30120357,HOUSING 21 (BARNET),-246.00 ,06/05/2016
Delivery Units,Adults and Communities,Other Agencies - Third Party P,30120358,HOUSING 21 (BARNET),-246.00 ,06/05/2016
Delivery Units,Adults and Communities,Other Agencies - Third Party P,30120359,HOUSING 21 (BARNET),-246.00 ,06/05/2016
Delivery Units,Adults and Communities,Other Agencies - Third Party P,30120463,HOUSING 21 (BARNET),-246.00 ,06/05/2016
Delivery Units,Adults and Communities,Other Agencies - Third Party P,30123209,HUSKARDS NEW CARE LTD," 2,216.50 ",27/05/2016
Delivery Units,Adults and Communities,Other Agencies - Third Party P,30121455,IDC CARE LTD - HERITAGE HEALTHCARE," 1,779.15 ",19/05/2016
Delivery Units,Adults and Communities,Other Agencies - Third Party P,30121456,IDC CARE LTD - HERITAGE HEALTHCARE," 1,600.20 ",19/05/2016
Delivery Units,Adults and Communities,Other Agencies - Third Party P,30121457,IDC CARE LTD - HERITAGE HEALTHCARE," 1,250.20 ",19/05/2016
Delivery Units,Adults and Communities,Other Agencies - Third Party P,30121242,INDEPENDENCE HOMES LIMITED," 2,900.00 ",17/05/2016
Delivery Units,Adults and Communities,Other Agencies - Third Party P,30120392,INDIVIDUALISED CARE LIMITED, 280.00 ,06/05/2016
Delivery Units,Adults and Communities,Other Agencies - Third Party P,30120393,INDIVIDUALISED CARE LIMITED," 1,700.00 ",06/05/2016
Delivery Units,Adults and Communities,Other Agencies - Third Party P,30120394,INDIVIDUALISED CARE LIMITED, 654.00 ,06/05/2016
Delivery Units,Adults and Communities,Other Agencies - Third Party P,30120395,INDIVIDUALISED CARE LIMITED, 700.00 ,06/05/2016
Delivery Units,Adults and Communities,Other Agencies - Third Party P,30120396,INDIVIDUALISED CARE LIMITED," 1,400.00 ",06/05/2016
Delivery Units,Adults and Communities,Other Agencies - Third Party P,30120397,INDIVIDUALISED CARE LIMITED," 1,650.00 ",06/05/2016
Delivery Units,Adults and Communities,Other Agencies - Third Party P,30120399,INDIVIDUALISED CARE LIMITED, 800.00 ,06/05/2016
Delivery Units,Adults and Communities,Other Agencies - Third Party P,30120400,INDIVIDUALISED CARE LIMITED, 534.00 ,06/05/2016
Delivery Units,Adults and Communities,Other Agencies - Third Party P,30120401,INDIVIDUALISED CARE LIMITED," 1,000.00 ",06/05/2016
Delivery Units,Adults and Communities,Other Agencies - Third Party P,30120402,INDIVIDUALISED CARE LIMITED, 595.00 ,06/05/2016
Delivery Units,Adults and Communities,Other Agencies - Third Party P,30120403,INDIVIDUALISED CARE LIMITED, 256.00 ,06/05/2016
Delivery Units,Adults and Communities,Other Agencies - Third Party P,30120404,INDIVIDUALISED CARE LIMITED, 600.00 ,06/05/2016
Delivery Units,Adults and Communities,Other Agencies - Third Party P,30120405,INDIVIDUALISED CARE LIMITED, 255.00 ,06/05/2016
Delivery Units,Adults and Communities,Other Agencies - Third Party P,30120406,INDIVIDUALISED CARE LIMITED, 224.00 ,06/05/2016
Delivery Units,Adults and Communities,Other Agencies - Third Party P,30120407,INDIVIDUALISED CARE LIMITED, 266.00 ,06/05/2016
Delivery Units,Adults and Communities,Other Agencies - Third Party P,30120408,INDIVIDUALISED CARE LIMITED, 140.00 ,06/05/2016
Delivery Units,Adults and Communities,Other Agencies - Third Party P,30120409,INDIVIDUALISED CARE LIMITED, 700.00 ,06/05/2016
Delivery Units,Adults and Communities,Other Agencies - Third Party P,30120410,INDIVIDUALISED CARE LIMITED, 277.50 ,06/05/2016
Delivery Units,Adults and Communities,Other Agencies - Third Party P,30120411,INDIVIDUALISED CARE LIMITED, 224.00 ,06/05/2016
Delivery Units,Adults and Communities,Other Agencies - Third Party P,30120412,INDIVIDUALISED CARE LIMITED, 360.00 ,06/05/2016
Delivery Units,Adults and Communities,Other Agencies - Third Party P,30120413,INDIVIDUALISED CARE LIMITED, 300.00 ,06/05/2016
Delivery Units,Adults and Communities,Other Agencies - Third Party P,30120414,INDIVIDUALISED CARE LIMITED, 400.00 ,06/05/2016
Delivery Units,Adults and Communities,Other Agencies - Third Party P,30120415,INDIVIDUALISED CARE LIMITED, 318.00 ,06/05/2016
Delivery Units,Adults and Communities,Other Agencies - Third Party P,30121458,INDIVIDUALISED CARE LIMITED, 700.00 ,19/05/2016
Delivery Units,Adults and Communities,Other Agencies - Third Party P,30121459,INDIVIDUALISED CARE LIMITED, 700.00 ,19/05/2016
Delivery Units,Adults and Communities,Other Agencies - Third Party P,30121460,INDIVIDUALISED CARE LIMITED, 423.50 ,19/05/2016
Delivery Units,Adults and Communities,Other Agencies - Third Party P,30121936,INDIVIDUALISED CARE LIMITED, 276.50 ,24/05/2016
Delivery Units,Adults and Communities,Other Agencies - Third Party P,30121938,INDIVIDUALISED CARE LIMITED, 700.00 ,24/05/2016
Delivery Units,Adults and Communities,Other Agencies - Third Party P,30121939,INDIVIDUALISED CARE LIMITED, 274.00 ,24/05/2016
Delivery Units,Adults and Communities,Other Agencies - Third Party P,30121940,INDIVIDUALISED CARE LIMITED, 220.00 ,24/05/2016
Delivery Units,Adults and Communities,Other Agencies - Third Party P,30122555,INSIGHT SPECIALIST BEHAVIOURAL," 5,944.08 ",26/05/2016
Delivery Units,Adults and Communities,Other Agencies - Third Party P,30121449,INTEGRATED SERVICES PROGRAMME," 2,600.08 ",19/05/2016
Delivery Units,Adults and Communities,Other Agencies - Third Party P,30121133,JEWISH CARE,-58.06 ,16/05/2016
Delivery Units,Adults and Communities,Other Agencies - Third Party P,30121134,JEWISH CARE, 497.66 ,16/05/2016
Delivery Units,Adults and Communities,Other Agencies - Third Party P,30121135,JEWISH CARE,-45.71 ,16/05/2016
Delivery Units,Adults and Communities,Other Agencies - Third Party P,30121248,JEWISH CARE," 2,625.00 ",17/05/2016
Delivery Units,Adults and Communities,Other Agencies - Third Party P,30121331,JEWISH CARE," 2,518.48 ",17/05/2016
Delivery Units,Adults and Communities,Other Agencies - Third Party P,30121332,JEWISH CARE," 2,518.48 ",17/05/2016
Delivery Units,Adults and Communities,Other Agencies - Third Party P,30121333,JEWISH CARE," 5,557.17 ",17/05/2016
Delivery Units,Adults and Communities,Other Agencies - Third Party P,30121334,JEWISH CARE," 5,036.96 ",17/05/2016
Delivery Units,Adults and Communities,Other Agencies - Third Party P,30121335,JEWISH CARE," 5,265.00 ",17/05/2016
Delivery Units,Adults and Communities,Other Agencies - Third Party P,30121336,JEWISH CARE," 4,466.71 ",17/05/2016
Delivery Units,Adults and Communities,Other Agencies - Third Party P,30121338,JEWISH CARE," 2,273.96 ",17/05/2016
Delivery Units,Adults and Communities,Other Agencies - Third Party P,30121339,JEWISH CARE,"-1,218.19 ",17/05/2016
Delivery Units,Adults and Communities,Other Agencies - Third Party P,30121340,JEWISH CARE, 761.91 ,17/05/2016
Delivery Units,Adults and Communities,Other Agencies - Third Party P,30121341,JEWISH CARE," 12,723.96 ",17/05/2016
Delivery Units,Adults and Communities,Other Agencies - Third Party P,30121342,JEWISH CARE," 6,659.46 ",17/05/2016
Delivery Units,Adults and Communities,Other Agencies - Third Party P,30121344,JEWISH CARE,"-1,327.09 ",17/05/2016
Delivery Units,Adults and Communities,Other Agencies - Third Party P,30123068,JEWISH CARE," 3,200.00 ",27/05/2016
Delivery Units,Adults and Communities,Other Agencies - Third Party P,30120966,JIGSAW CREATIVE CARE LIMITED," 12,087.04 ",13/05/2016
Delivery Units,Adults and Communities,Other Agencies - Third Party P,30120967,JIGSAW CREATIVE CARE LIMITED," 5,648.00 ",13/05/2016
Delivery Units,Adults and Communities,Other Agencies - Third Party P,30120968,JIGSAW CREATIVE CARE LIMITED," 11,132.00 ",13/05/2016
Delivery Units,Adults and Communities,Other Agencies - Third Party P,30122481,KEMBLE HOUSE," 9,680.37 ",26/05/2016
Delivery Units,Adults and Communities,Other Agencies - Third Party P,30122482,KEMBLE HOUSE," 3,339.01 ",26/05/2016
Delivery Units,Adults and Communities,Other Agencies - Third Party P,30123184,KILCULLEN HOMES (UK) LLP," 1,569.48 ",27/05/2016
Delivery Units,Adults and Communities,Other Agencies - Third Party P,30120972,KISHARON DAY SCHOOL," 1,464.03 ",13/05/2016
Delivery Units,Adults and Communities,Other Agencies - Third Party P,30120973,KISHARON DAY SCHOOL," 4,260.72 ",13/05/2016
Delivery Units,Adults and Communities,Other Agencies - Third Party P,30120974,KISHARON DAY SCHOOL," 2,144.10 ",13/05/2016
Delivery Units,Adults and Communities,Other Agencies - Third Party P,30120975,KISHARON DAY SCHOOL," 2,284.24 ",13/05/2016
Delivery Units,Adults and Communities,Other Agencies - Third Party P,30120976,KISHARON DAY SCHOOL, 686.88 ,13/05/2016
Delivery Units,Adults and Communities,Other Agencies - Third Party P,30120977,KISHARON DAY SCHOOL, 794.08 ,13/05/2016
Delivery Units,Adults and Communities,Other Agencies - Third Party P,30120978,KISHARON DAY SCHOOL, 381.54 ,13/05/2016
Delivery Units,Adults and Communities,Other Agencies - Third Party P,30120979,KISHARON DAY SCHOOL," 1,373.49 ",13/05/2016
Delivery Units,Adults and Communities,Other Agencies - Third Party P,30120980,KISHARON DAY SCHOOL, 397.11 ,13/05/2016
Delivery Units,Adults and Communities,Other Agencies - Third Party P,30120981,KISHARON DAY SCHOOL," 1,679.87 ",13/05/2016
Delivery Units,Adults and Communities,Other Agencies - Third Party P,30120982,KISHARON DAY SCHOOL," 1,340.18 ",13/05/2016
Delivery Units,Adults and Communities,Other Agencies - Third Party P,30120983,KISHARON DAY SCHOOL," 1,241.16 ",13/05/2016
Delivery Units,Adults and Communities,Other Agencies - Third Party P,30120984,KISHARON DAY SCHOOL," 1,369.23 ",13/05/2016
Delivery Units,Adults and Communities,Other Agencies - Third Party P,30120985,KISHARON DAY SCHOOL," 1,373.68 ",13/05/2016
Delivery Units,Adults and Communities,Other Agencies - Third Party P,30120986,KISHARON DAY SCHOOL, 733.72 ,13/05/2016
Delivery Units,Adults and Communities,Other Agencies - Third Party P,30120988,KISHARON DAY SCHOOL," 1,275.96 ",13/05/2016
Delivery Units,Adults and Communities,Other Agencies - Third Party P,30120993,KISHARON DAY SCHOOL," 1,914.00 ",13/05/2016
Delivery Units,Adults and Communities,Other Agencies - Third Party P,30120994,KISHARON DAY SCHOOL," 1,595.00 ",13/05/2016
Delivery Units,Adults and Communities,Other Agencies - Third Party P,30120995,KISHARON DAY SCHOOL, 980.00 ,13/05/2016
Delivery Units,Adults and Communities,Other Agencies - Third Party P,30121250,KISHARON DAY SCHOOL," 1,373.49 ",17/05/2016
Delivery Units,Adults and Communities,Other Agencies - Third Party P,30121947,LANGDON COMMUNITY LTD, 851.20 ,24/05/2016
Delivery Units,Adults and Communities,Other Agencies - Third Party P,30121948,LANGDON COMMUNITY LTD," 1,276.80 ",24/05/2016
Delivery Units,Adults and Communities,Other Agencies - Third Party P,30121949,LANGDON COMMUNITY LTD, 425.60 ,24/05/2016
Delivery Units,Adults and Communities,Other Agencies - Third Party P,30121951,LANGDON COMMUNITY LTD," 1,064.00 ",24/05/2016
Delivery Units,Adults and Communities,Other Agencies - Third Party P,30121953,LANGDON COMMUNITY LTD, 608.00 ,24/05/2016
Delivery Units,Adults and Communities,Other Agencies - Third Party P,30121954,LANGDON COMMUNITY LTD," 1,315.12 ",24/05/2016
Delivery Units,Adults and Communities,Other Agencies - Third Party P,30121955,LANGDON COMMUNITY LTD," 1,763.20 ",24/05/2016
Delivery Units,Adults and Communities,Other Agencies - Third Party P,30121956,LANGDON COMMUNITY LTD, 243.20 ,24/05/2016
Delivery Units,Adults and Communities,Other Agencies - Third Party P,30121957,LANGDON COMMUNITY LTD," 2,403.92 ",24/05/2016
Delivery Units,Adults and Communities,Other Agencies - Third Party P,30121959,LANGDON COMMUNITY LTD," 1,772.32 ",24/05/2016
Delivery Units,Adults and Communities,Other Agencies - Third Party P,30121960,LANGDON COMMUNITY LTD," 2,097.60 ",24/05/2016
Delivery Units,Adults and Communities,Other Agencies - Third Party P,30121961,LANGDON COMMUNITY LTD," 3,411.48 ",24/05/2016
Delivery Units,Adults and Communities,Other Agencies - Third Party P,30121962,LANGDON COMMUNITY LTD," 1,641.60 ",24/05/2016
Delivery Units,Adults and Communities,Other Agencies - Third Party P,30122925,LANGDON COMMUNITY LTD," 1,596.00 ",27/05/2016
Delivery Units,Adults and Communities,Other Agencies - Third Party P,30122926,LANGDON COMMUNITY LTD," 2,128.00 ",27/05/2016
Delivery Units,Adults and Communities,Other Agencies - Third Party P,30122927,LANGDON COMMUNITY LTD," 2,128.00 ",27/05/2016
Delivery Units,Adults and Communities,Other Agencies - Third Party P,30122928,LANGDON COMMUNITY LTD," 2,128.00 ",27/05/2016
Delivery Units,Adults and Communities,Other Agencies - Third Party P,30122929,LANGDON COMMUNITY LTD," 2,128.00 ",27/05/2016
Delivery Units,Adults and Communities,Other Agencies - Third Party P,30122930,LANGDON COMMUNITY LTD," 2,128.00 ",27/05/2016
Delivery Units,Adults and Communities,Other Agencies - Third Party P,30122931,LANGDON COMMUNITY LTD, 937.92 ,27/05/2016
Delivery Units,Adults and Communities,Other Agencies - Third Party P,30122932,LANGDON COMMUNITY LTD," 1,094.40 ",27/05/2016
Delivery Units,Adults and Communities,Other Agencies - Third Party P,30122933,LANGDON COMMUNITY LTD," 1,094.40 ",27/05/2016
Delivery Units,Adults and Communities,Other Agencies - Third Party P,30122934,LANGDON COMMUNITY LTD," 1,094.40 ",27/05/2016
Delivery Units,Adults and Communities,Other Agencies - Third Party P,30122935,LANGDON COMMUNITY LTD," 1,094.40 ",27/05/2016
Delivery Units,Adults and Communities,Other Agencies - Third Party P,30122936,LANGDON COMMUNITY LTD," 1,094.40 ",27/05/2016
Delivery Units,Adults and Communities,Other Agencies - Third Party P,30122937,LANGDON COMMUNITY LTD," 1,094.40 ",27/05/2016
Delivery Units,Adults and Communities,Other Agencies - Third Party P,30122938,LANGDON COMMUNITY LTD," 1,094.40 ",27/05/2016
Delivery Units,Adults and Communities,Other Agencies - Third Party P,30122939,LANGDON COMMUNITY LTD," 1,094.40 ",27/05/2016
Delivery Units,Adults and Communities,Other Agencies - Third Party P,30122940,LANGDON COMMUNITY LTD," 1,094.40 ",27/05/2016
Delivery Units,Adults and Communities,Other Agencies - Third Party P,30122941,LANGDON COMMUNITY LTD," 2,128.00 ",27/05/2016
Delivery Units,Adults and Communities,Other Agencies - Third Party P,30122942,LANGDON COMMUNITY LTD," 1,094.40 ",27/05/2016
Delivery Units,Adults and Communities,Other Agencies - Third Party P,30121360,LEEMING BAR CARE HOME," 2,039.70 ",17/05/2016
Delivery Units,Adults and Communities,Other Agencies - Third Party P,30120645,LEO BAECK HOUSING ASSOC. LTD," 2,176.80 ",10/05/2016
Delivery Units,Adults and Communities,Other Agencies - Third Party P,30120705,LEO BAECK HOUSING ASSOC. LTD," 2,176.80 ",10/05/2016
Delivery Units,Adults and Communities,Other Agencies - Third Party P,30120707,LEO BAECK HOUSING ASSOC. LTD," 2,176.80 ",10/05/2016
Delivery Units,Adults and Communities,Other Agencies - Third Party P,30120738,LEO BAECK HOUSING ASSOC. LTD," 2,252.14 ",10/05/2016
Delivery Units,Adults and Communities,Other Agencies - Third Party P,30120833,LEO BAECK HOUSING ASSOC. LTD," 2,176.80 ",10/05/2016
Delivery Units,Adults and Communities,Other Agencies - Third Party P,30123135,LEO BAECK HOUSING ASSOC. LTD," 2,448.69 ",27/05/2016
Delivery Units,Adults and Communities,Other Agencies - Third Party P,30123136,LEO BAECK HOUSING ASSOC. LTD," 2,249.36 ",27/05/2016
Delivery Units,Adults and Communities,Other Agencies - Third Party P,30123171,LEO BAECK HOUSING ASSOC. LTD," 2,249.36 ",27/05/2016
Delivery Units,Adults and Communities,Other Agencies - Third Party P,30123173,LEO BAECK HOUSING ASSOC. LTD," 9,479.14 ",27/05/2016
Delivery Units,Adults and Communities,Other Agencies - Third Party P,30123185,LEO BAECK HOUSING ASSOC. LTD," 2,327.21 ",27/05/2016
Delivery Units,Adults and Communities,Other Agencies - Third Party P,30123212,LEO BAECK HOUSING ASSOC. LTD," 2,249.36 ",27/05/2016
Delivery Units,Adults and Communities,Other Agencies - Third Party P,30120784,LEWIS.W.HAMMERSON MEMORIAL HOME," 2,176.89 ",10/05/2016
Delivery Units,Adults and Communities,Other Agencies - Third Party P,30120787,LEWIS.W.HAMMERSON MEMORIAL HOME," 2,176.89 ",10/05/2016
Delivery Units,Adults and Communities,Other Agencies - Third Party P,30120798,LEWIS.W.HAMMERSON MEMORIAL HOME," 2,176.89 ",10/05/2016
Delivery Units,Adults and Communities,Other Agencies - Third Party P,30121687,LIFESTYLE CARE 2011 PLC," 2,138.00 ",23/05/2016
Delivery Units,Adults and Communities,Other Agencies - Third Party P,30121559,LIFEWAYS," 3,145.24 ",19/05/2016
Delivery Units,Adults and Communities,Other Agencies - Third Party P,30121560,LIFEWAYS," 6,930.00 ",19/05/2016
Delivery Units,Adults and Communities,Other Agencies - Third Party P,30121562,LIFEWAYS," 5,037.40 ",19/05/2016
Delivery Units,Adults and Communities,Other Agencies - Third Party P,30121563,LIFEWAYS," 5,943.00 ",19/05/2016
Delivery Units,Adults and Communities,Other Agencies - Third Party P,30121567,LIFEWAYS," 3,656.00 ",19/05/2016
Delivery Units,Adults and Communities,Other Agencies - Third Party P,30121568,LIFEWAYS," 5,766.44 ",19/05/2016
Delivery Units,Adults and Communities,Other Agencies - Third Party P,30121569,LIFEWAYS," 2,377.20 ",19/05/2016
Delivery Units,Adults and Communities,Other Agencies - Third Party P,30121570,LIFEWAYS," 4,828.24 ",19/05/2016
Delivery Units,Adults and Communities,Other Agencies - Third Party P,30121574,LIFEWAYS," 5,275.20 ",19/05/2016
Delivery Units,Adults and Communities,Other Agencies - Third Party P,30122076,LIFEWAYS," 4,454.00 ",24/05/2016
Delivery Units,Adults and Communities,Other Agencies - Third Party P,30122077,LIFEWAYS," 4,454.00 ",24/05/2016
Delivery Units,Adults and Communities,Other Agencies - Third Party P,30122078,LIFEWAYS," 4,454.00 ",24/05/2016
Delivery Units,Adults and Communities,Other Agencies - Third Party P,30122079,LIFEWAYS," 4,454.00 ",24/05/2016
Delivery Units,Adults and Communities,Other Agencies - Third Party P,30122080,LIFEWAYS," 4,454.00 ",24/05/2016
Delivery Units,Adults and Communities,Other Agencies - Third Party P,30122081,LIFEWAYS," 4,454.00 ",24/05/2016
Delivery Units,Adults and Communities,Other Agencies - Third Party P,30122082,LIFEWAYS," 2,993.64 ",24/05/2016
Delivery Units,Adults and Communities,Other Agencies - Third Party P,30117745,LIONCARE LIMITED," 1,470.20 ",03/05/2016
Delivery Units,Adults and Communities,Other Agencies - Third Party P,30120481,LIVABILITY," 4,891.20 ",06/05/2016
Delivery Units,Adults and Communities,Other Agencies - Third Party P,30120482,LIVABILITY," 5,279.24 ",06/05/2016
Delivery Units,Adults and Communities,Other Agencies - Third Party P,30120863,LIVABILITY," 3,424.00 ",13/05/2016
Delivery Units,Adults and Communities,Other Agencies - Third Party P,30120864,LIVABILITY," 2,400.00 ",13/05/2016
Delivery Units,Adults and Communities,Other Agencies - Third Party P,30123119,LIVABILITY," 2,400.00 ",27/05/2016
Delivery Units,Adults and Communities,Other Agencies - Third Party P,30123120,LIVABILITY," 3,424.00 ",27/05/2016
Delivery Units,Adults and Communities,Other Agencies - Third Party P,30123179,LIVABILITY," 4,891.20 ",27/05/2016
Delivery Units,Adults and Communities,Other Agencies - Third Party P,30123180,LIVABILITY," 5,279.24 ",27/05/2016
Delivery Units,Adults and Communities,Other Agencies - Third Party P,30120853,LORRAINES CARE HOME LTD," 1,820.00 ",13/05/2016
Delivery Units,Adults and Communities,Other Agencies - Third Party P,30121482,LORRAINES CARE HOME LTD," 1,820.00 ",19/05/2016
Delivery Units,Adults and Communities,Other Agencies - Third Party P,30120719,M D HOMES," 3,428.57 ",10/05/2016
Delivery Units,Adults and Communities,Other Agencies - Third Party P,30122752,M D HOMES," 3,542.86 ",26/05/2016
Delivery Units,Adults and Communities,Other Agencies - Third Party P,30121885,MACINTYRE CARE, 750.40 ,23/05/2016
Delivery Units,Adults and Communities,Other Agencies - Third Party P,30121052,MADELAYNE COURT," 2,144.91 ",13/05/2016
Delivery Units,Adults and Communities,Other Agencies - Third Party P,30120433,MAISON MOTI LTD," 7,528.57 ",06/05/2016
Delivery Units,Adults and Communities,Other Agencies - Third Party P,30120434,MAISON MOTI LTD," 7,528.57 ",06/05/2016
Delivery Units,Adults and Communities,Other Agencies - Third Party P,30120435,MAISON MOTI LTD," 7,218.57 ",06/05/2016
Delivery Units,Adults and Communities,Other Agencies - Third Party P,30120436,MAISON MOTI LTD," 7,528.57 ",06/05/2016
Delivery Units,Adults and Communities,Other Agencies - Third Party P,30121941,MAISON MOTI LTD," 2,500.00 ",24/05/2016
Delivery Units,Adults and Communities,Other Agencies - Third Party P,30121946,MAISON MOTI LTD, 595.00 ,24/05/2016
Delivery Units,Adults and Communities,Other Agencies - Third Party P,30121971,MAISON MOTI LTD," 2,210.71 ",24/05/2016
Delivery Units,Adults and Communities,Other Agencies - Third Party P,30122005,MAISON MOTI LTD," 2,500.00 ",24/05/2016
Delivery Units,Adults and Communities,Other Agencies - Third Party P,30122006,MAISON MOTI LTD," 2,142.86 ",24/05/2016
Delivery Units,Adults and Communities,Other Agencies - Third Party P,30122007,MAISON MOTI LTD," 2,500.00 ",24/05/2016
Delivery Units,Adults and Communities,Other Agencies - Third Party P,30122008,MAISON MOTI LTD," 2,500.00 ",24/05/2016
Delivery Units,Adults and Communities,Other Agencies - Third Party P,30122009,MAISON MOTI LTD," 1,250.00 ",24/05/2016
Delivery Units,Adults and Communities,Other Agencies - Third Party P,30122010,MAISON MOTI LTD," 2,440.00 ",24/05/2016
Delivery Units,Adults and Communities,Other Agencies - Third Party P,30122011,MAISON MOTI LTD," 1,696.43 ",24/05/2016
Delivery Units,Adults and Communities,Other Agencies - Third Party P,30122015,MAISON MOTI LTD," 1,026.00 ",24/05/2016
Delivery Units,Adults and Communities,Other Agencies - Third Party P,30122049,MAISON MOTI LTD," 2,440.00 ",24/05/2016
Delivery Units,Adults and Communities,Other Agencies - Third Party P,30122084,MAISON MOTI LTD, 343.40 ,24/05/2016
Delivery Units,Adults and Communities,Other Agencies - Third Party P,30121486,MANDELA HOUSE," 3,794.83 ",19/05/2016
Delivery Units,Adults and Communities,Other Agencies - Third Party P,30120793,MARLBOROUGH HOUSE," 3,823.97 ",10/05/2016
Delivery Units,Adults and Communities,Other Agencies - Third Party P,30123203,MARLBOROUGH HOUSE," 3,951.44 ",27/05/2016
Delivery Units,Adults and Communities,Other Agencies - Third Party P,30121022,MARRILYNE LODGE," 2,554.16 ",13/05/2016
Delivery Units,Adults and Communities,Other Agencies - Third Party P,30123182,MAYFIELD ADULT SERVICES," 9,875.71 ",27/05/2016
Delivery Units,Adults and Communities,Other Agencies - Third Party P,30123183,MAYFIELD ADULT SERVICES," 9,557.14 ",27/05/2016
Delivery Units,Adults and Communities,Other Agencies - Third Party P,30120630,MEERA NURSING HOME LIMITED," 2,320.37 ",10/05/2016
Delivery Units,Adults and Communities,Other Agencies - Third Party P,30120652,MEERA NURSING HOME LIMITED," 2,320.37 ",10/05/2016
Delivery Units,Adults and Communities,Other Agencies - Third Party P,30120653,MEERA NURSING HOME LIMITED," 2,397.72 ",10/05/2016
Delivery Units,Adults and Communities,Other Agencies - Third Party P,30120687,MEERA NURSING HOME LIMITED," 2,320.37 ",10/05/2016
Delivery Units,Adults and Communities,Other Agencies - Third Party P,30120706,MEERA NURSING HOME LIMITED," 2,320.37 ",10/05/2016
Delivery Units,Adults and Communities,Other Agencies - Third Party P,30120735,MEERA NURSING HOME LIMITED," 2,320.37 ",10/05/2016
Delivery Units,Adults and Communities,Other Agencies - Third Party P,30120739,MEERA NURSING HOME LIMITED," 2,320.37 ",10/05/2016
Delivery Units,Adults and Communities,Other Agencies - Third Party P,30120740,MEERA NURSING HOME LIMITED," 2,320.37 ",10/05/2016
Delivery Units,Adults and Communities,Other Agencies - Third Party P,30120797,MEERA NURSING HOME LIMITED," 2,320.37 ",10/05/2016
Delivery Units,Adults and Communities,Other Agencies - Third Party P,30123115,MEERA NURSING HOME LIMITED," 2,397.72 ",27/05/2016
Delivery Units,Adults and Communities,Other Agencies - Third Party P,30123161,MEERA NURSING HOME LIMITED," 2,397.72 ",27/05/2016
Delivery Units,Adults and Communities,Other Agencies - Third Party P,30123172,MEERA NURSING HOME LIMITED," 2,397.72 ",27/05/2016
Delivery Units,Adults and Communities,Other Agencies - Third Party P,30123181,MEERA NURSING HOME LIMITED," 2,397.72 ",27/05/2016
Delivery Units,Adults and Communities,Other Agencies - Third Party P,30123186,MEERA NURSING HOME LIMITED," 2,397.72 ",27/05/2016
Delivery Units,Adults and Communities,Other Agencies - Third Party P,30123190,MEERA NURSING HOME LIMITED," 2,397.72 ",27/05/2016
Delivery Units,Adults and Communities,Other Agencies - Third Party P,30123207,MEERA NURSING HOME LIMITED," 2,397.72 ",27/05/2016
Delivery Units,Adults and Communities,Other Agencies - Third Party P,30120529,MENTAL HEALTH CARE (UK) LTD," 10,610.19 ",10/05/2016
Delivery Units,Adults and Communities,Other Agencies - Third Party P,30120530,MENTAL HEALTH CARE (UK) LTD," 10,267.93 ",10/05/2016
Delivery Units,Adults and Communities,Other Agencies - Third Party P,30120731,METHODIST HOMES FOR THE AGED," 2,001.92 ",10/05/2016
Delivery Units,Adults and Communities,Other Agencies - Third Party P,30120736,METHODIST HOMES FOR THE AGED," 2,500.00 ",10/05/2016
Delivery Units,Adults and Communities,Other Agencies - Third Party P,30121363,METHODIST HOMES FOR THE AGED," 2,001.92 ",17/05/2016
Delivery Units,Adults and Communities,Other Agencies - Third Party P,30121367,METHODIST HOMES FOR THE AGED," 2,500.00 ",17/05/2016
Delivery Units,Adults and Communities,Other Agencies - Third Party P,30121092,METRO RADIO CARS, 118.80 ,16/05/2016
Delivery Units,Adults and Communities,Other Agencies - Third Party P,30121093,METRO RADIO CARS, 118.80 ,16/05/2016
Delivery Units,Adults and Communities,Other Agencies - Third Party P,30121346,ML HOMES LTD," 1,780.80 ",17/05/2016
Delivery Units,Adults and Communities,Other Agencies - Third Party P,30121347,ML HOMES LTD," 1,740.00 ",17/05/2016
Delivery Units,Adults and Communities,Other Agencies - Third Party P,30121348,ML HOMES LTD," 2,118.36 ",17/05/2016
Delivery Units,Adults and Communities,Other Agencies - Third Party P,30121349,ML HOMES LTD," 1,433.56 ",17/05/2016
Delivery Units,Adults and Communities,Other Agencies - Third Party P,30121350,ML HOMES LTD," 1,751.16 ",17/05/2016
Delivery Units,Adults and Communities,Other Agencies - Third Party P,30121351,ML HOMES LTD," 2,118.36 ",17/05/2016
Delivery Units,Adults and Communities,Other Agencies - Third Party P,30121353,ML HOMES LTD, 769.64 ,17/05/2016
Delivery Units,Adults and Communities,Other Agencies - Third Party P,30121354,ML HOMES LTD," 1,955.84 ",17/05/2016
Delivery Units,Adults and Communities,Other Agencies - Third Party P,30121355,ML HOMES LTD," 1,417.24 ",17/05/2016
Delivery Units,Adults and Communities,Other Agencies - Third Party P,30121356,ML HOMES LTD," 1,428.68 ",17/05/2016
Delivery Units,Adults and Communities,Other Agencies - Third Party P,30121357,ML HOMES LTD," 1,765.80 ",17/05/2016
Delivery Units,Adults and Communities,Other Agencies - Third Party P,30121361,ML HOMES LTD," 1,751.16 ",17/05/2016
Delivery Units,Adults and Communities,Other Agencies - Third Party P,30121368,ML HOMES LTD," 1,767.40 ",17/05/2016
Delivery Units,Adults and Communities,Other Agencies - Third Party P,30121428,ML HOMES LTD," 1,780.00 ",17/05/2016
Delivery Units,Adults and Communities,Other Agencies - Third Party P,30121431,ML HOMES LTD," 1,780.80 ",17/05/2016
Delivery Units,Adults and Communities,Other Agencies - Third Party P,30120655,MOREWAYS HEALTHCARE," 2,907.00 ",10/05/2016
Delivery Units,Adults and Communities,Other Agencies - Third Party P,30120724,MOREWAYS HEALTHCARE," 1,800.00 ",10/05/2016
Delivery Units,Adults and Communities,Other Agencies - Third Party P,30121352,MOREWAYS HEALTHCARE, 278.57 ,17/05/2016
Delivery Units,Adults and Communities,Other Agencies - Third Party P,30121364,MOREWAYS HEALTHCARE," 2,824.00 ",17/05/2016
Delivery Units,Adults and Communities,Other Agencies - Third Party P,30121427,MOREWAYS HEALTHCARE, 235.71 ,17/05/2016
Delivery Units,Adults and Communities,Other Agencies - Third Party P,30122073,MOREWAYS HEALTHCARE," 2,600.00 ",24/05/2016
Delivery Units,Adults and Communities,Other Agencies - Third Party P,30114057,NATIONAL STAR COLLEGE," 23,494.26 ",10/05/2016
Delivery Units,Adults and Communities,Other Agencies - Third Party P,30120514,NATIONAL STAR COLLEGE," 27,621.63 ",10/05/2016
Delivery Units,Adults and Communities,Other Agencies - Third Party P,30120672,NAZARETH HOUSE," 3,036.00 ",10/05/2016
Delivery Units,Adults and Communities,Other Agencies - Third Party P,30120673,NAZARETH HOUSE," 2,031.76 ",10/05/2016
Delivery Units,Adults and Communities,Other Agencies - Third Party P,30120674,NAZARETH HOUSE," 2,031.76 ",10/05/2016
Delivery Units,Adults and Communities,Other Agencies - Third Party P,30120675,NAZARETH HOUSE," 2,211.80 ",10/05/2016
Delivery Units,Adults and Communities,Other Agencies - Third Party P,30120676,NAZARETH HOUSE," 2,031.76 ",10/05/2016
Delivery Units,Adults and Communities,Other Agencies - Third Party P,30120677,NAZARETH HOUSE," 2,031.76 ",10/05/2016
Delivery Units,Adults and Communities,Other Agencies - Third Party P,30120678,NAZARETH HOUSE," 2,650.40 ",10/05/2016
Delivery Units,Adults and Communities,Other Agencies - Third Party P,30120679,NAZARETH HOUSE," 2,031.76 ",10/05/2016
Delivery Units,Adults and Communities,Other Agencies - Third Party P,30120693,NAZARETH HOUSE," 2,144.91 ",10/05/2016
Delivery Units,Adults and Communities,Other Agencies - Third Party P,30120841,NAZARETH HOUSE," 2,176.88 ",10/05/2016
Delivery Units,Adults and Communities,Other Agencies - Third Party P,30121582,NAZARETH HOUSE," 2,216.41 ",19/05/2016
Delivery Units,Adults and Communities,Other Agencies - Third Party P,30121863,NAZARETH HOUSE," 5,687.49 ",23/05/2016
Delivery Units,Adults and Communities,Other Agencies - Third Party P,30121864,NAZARETH HOUSE," 3,036.00 ",23/05/2016
Delivery Units,Adults and Communities,Other Agencies - Third Party P,30121865,NAZARETH HOUSE,"-2,211.80 ",23/05/2016
Delivery Units,Adults and Communities,Other Agencies - Third Party P,30121866,NAZARETH HOUSE," 2,031.76 ",23/05/2016
Delivery Units,Adults and Communities,Other Agencies - Third Party P,30121867,NAZARETH HOUSE," 2,650.40 ",23/05/2016
Delivery Units,Adults and Communities,Other Agencies - Third Party P,30121868,NAZARETH HOUSE," 2,031.76 ",23/05/2016
Delivery Units,Adults and Communities,Other Agencies - Third Party P,30122733,NAZARETH HOUSE," 2,211.80 ",26/05/2016
Delivery Units,Adults and Communities,Other Agencies - Third Party P,30123153,NAZARETH HOUSE," 2,031.76 ",27/05/2016
Delivery Units,Adults and Communities,Other Agencies - Third Party P,30123316,NAZARETH HOUSE, 517.20 ,31/05/2016
Delivery Units,Adults and Communities,Other Agencies - Third Party P,30120915,NEEM TREE CARE CENTRE," 2,699.21 ",13/05/2016
Delivery Units,Adults and Communities,Other Agencies - Third Party P,30120916,NEEM TREE CARE CENTRE," 2,697.00 ",13/05/2016
Delivery Units,Adults and Communities,Other Agencies - Third Party P,30120517,NEWCENTURY CARE LTD," 3,642.86 ",10/05/2016
Delivery Units,Adults and Communities,Other Agencies - Third Party P,30120518,NEWCENTURY CARE LTD," 2,569.89 ",10/05/2016
Delivery Units,Adults and Communities,Other Agencies - Third Party P,30120519,NEWCENTURY CARE LTD," 2,569.89 ",10/05/2016
Delivery Units,Adults and Communities,Other Agencies - Third Party P,30120520,NEWCENTURY CARE LTD," 2,569.89 ",10/05/2016
Delivery Units,Adults and Communities,Other Agencies - Third Party P,30121217,NEWCENTURY CARE LTD," 3,764.29 ",17/05/2016
Delivery Units,Adults and Communities,Other Agencies - Third Party P,30121218,NEWCENTURY CARE LTD," 2,655.55 ",17/05/2016
Delivery Units,Adults and Communities,Other Agencies - Third Party P,30121219,NEWCENTURY CARE LTD," 2,655.55 ",17/05/2016
Delivery Units,Adults and Communities,Other Agencies - Third Party P,30121220,NEWCENTURY CARE LTD," 2,655.55 ",17/05/2016
Delivery Units,Adults and Communities,Other Agencies - Third Party P,30121623,NEWCENTURY CARE LTD," 2,398.56 ",23/05/2016
Delivery Units,Adults and Communities,Other Agencies - Third Party P,30121004,NEXT STEP SUPPORT LIMITED," 2,240.00 ",13/05/2016
Delivery Units,Adults and Communities,Other Agencies - Third Party P,30121084,NEXT STEP SUPPORT LIMITED," 2,000.00 ",13/05/2016
Delivery Units,Adults and Communities,Other Agencies - Third Party P,30123187,NIGHTINGALES RESIDENTIAL CARE HOME," 3,326.08 ",27/05/2016
Delivery Units,Adults and Communities,Other Agencies - Third Party P,30123188,NIGHTINGALES RESIDENTIAL CARE HOME," 3,326.08 ",27/05/2016
Delivery Units,Adults and Communities,Other Agencies - Third Party P,30120815,NORWOOD RAVENSWOOD SCHOOLS LTD," 5,540.00 ",10/05/2016
Delivery Units,Adults and Communities,Other Agencies - Third Party P,30121054,NORWOOD RAVENSWOOD SCHOOLS LTD, 729.60 ,13/05/2016
Delivery Units,Adults and Communities,Other Agencies - Third Party P,30121055,NORWOOD RAVENSWOOD SCHOOLS LTD," 1,520.00 ",13/05/2016
Delivery Units,Adults and Communities,Other Agencies - Third Party P,30121056,NORWOOD RAVENSWOOD SCHOOLS LTD, 304.00 ,13/05/2016
Delivery Units,Adults and Communities,Other Agencies - Third Party P,30121057,NORWOOD RAVENSWOOD SCHOOLS LTD, 182.40 ,13/05/2016
Delivery Units,Adults and Communities,Other Agencies - Third Party P,30121058,NORWOOD RAVENSWOOD SCHOOLS LTD, 790.40 ,13/05/2016
Delivery Units,Adults and Communities,Other Agencies - Third Party P,30121059,NORWOOD RAVENSWOOD SCHOOLS LTD, 243.20 ,13/05/2016
Delivery Units,Adults and Communities,Other Agencies - Third Party P,30121060,NORWOOD RAVENSWOOD SCHOOLS LTD, 486.40 ,13/05/2016
Delivery Units,Adults and Communities,Other Agencies - Third Party P,30121064,NORWOOD RAVENSWOOD SCHOOLS LTD," 1,021.44 ",13/05/2016
Delivery Units,Adults and Communities,Other Agencies - Third Party P,30121074,NORWOOD RAVENSWOOD SCHOOLS LTD, 121.60 ,13/05/2016
Delivery Units,Adults and Communities,Other Agencies - Third Party P,30121077,NORWOOD RAVENSWOOD SCHOOLS LTD, 364.80 ,13/05/2016
Delivery Units,Adults and Communities,Other Agencies - Third Party P,30121544,NORWOOD RAVENSWOOD SCHOOLS LTD," 1,021.44 ",19/05/2016
Delivery Units,Adults and Communities,Other Agencies - Third Party P,30121613,NORWOOD RAVENSWOOD SCHOOLS LTD, 820.80 ,19/05/2016
Delivery Units,Adults and Communities,Other Agencies - Third Party P,30121614,NORWOOD RAVENSWOOD SCHOOLS LTD," 1,021.44 ",19/05/2016
Delivery Units,Adults and Communities,Other Agencies - Third Party P,30121615,NORWOOD RAVENSWOOD SCHOOLS LTD, 820.80 ,19/05/2016
Delivery Units,Adults and Communities,Other Agencies - Third Party P,30122831,NORWOOD RAVENSWOOD SCHOOLS LTD," 5,540.00 ",26/05/2016
Delivery Units,Adults and Communities,Other Agencies - Third Party P,30120877,NOTTING HILL HOUSING TRUST," 19,136.25 ",13/05/2016
Delivery Units,Adults and Communities,Other Agencies - Third Party P,30121227,NOUVITA LTD," 5,061.46 ",17/05/2016
Delivery Units,Adults and Communities,Other Agencies - Third Party P,30121197,ONE STEP (SUPPORT) LTD," 1,339.80 ",16/05/2016
Delivery Units,Adults and Communities,Other Agencies - Third Party P,30121200,ONE STEP (SUPPORT) LTD," 3,395.80 ",16/05/2016
Delivery Units,Adults and Communities,Other Agencies - Third Party P,30121201,ONE STEP (SUPPORT) LTD," 2,618.20 ",16/05/2016
Delivery Units,Adults and Communities,Other Agencies - Third Party P,30121202,ONE STEP (SUPPORT) LTD, 638.00 ,16/05/2016
Delivery Units,Adults and Communities,Other Agencies - Third Party P,30121203,ONE STEP (SUPPORT) LTD, 638.00 ,16/05/2016
Delivery Units,Adults and Communities,Other Agencies - Third Party P,30121204,ONE STEP (SUPPORT) LTD," 5,431.16 ",16/05/2016
Delivery Units,Adults and Communities,Other Agencies - Third Party P,30121421,ORIGIN HOUSING LIMITED," 1,728.00 ",17/05/2016
Delivery Units,Adults and Communities,Other Agencies - Third Party P,30121422,ORIGIN HOUSING LIMITED, 576.00 ,17/05/2016
Delivery Units,Adults and Communities,Other Agencies - Third Party P,30121424,ORIGIN HOUSING LIMITED," 1,065.60 ",17/05/2016
Delivery Units,Adults and Communities,Other Agencies - Third Party P,30123169,PILLARCARE, 357.60 ,27/05/2016
Delivery Units,Adults and Communities,Other Agencies - Third Party P,30120671,PLATINUM HEALTH RESOURCES LTD," 3,767.53 ",10/05/2016
Delivery Units,Adults and Communities,Other Agencies - Third Party P,30120689,PLATINUM HEALTH RESOURCES LTD," 3,642.88 ",10/05/2016
Delivery Units,Adults and Communities,Other Agencies - Third Party P,30120715,PLATINUM HEALTH RESOURCES LTD," 3,642.86 ",10/05/2016
Delivery Units,Adults and Communities,Other Agencies - Third Party P,30123152,PLATINUM HEALTH RESOURCES LTD," 3,893.11 ",27/05/2016
Delivery Units,Adults and Communities,Other Agencies - Third Party P,30123162,PLATINUM HEALTH RESOURCES LTD," 3,764.29 ",27/05/2016
Delivery Units,Adults and Communities,Other Agencies - Third Party P,30123175,PLATINUM HEALTH RESOURCES LTD," 3,764.29 ",27/05/2016
Delivery Units,Adults and Communities,Other Agencies - Third Party P,30118851,PRACTICAL CARE," 1,050.00 ",03/05/2016
Delivery Units,Adults and Communities,Other Agencies - Third Party P,30118852,PRACTICAL CARE, 525.00 ,03/05/2016
Delivery Units,Adults and Communities,Other Agencies - Third Party P,30118853,PRACTICAL CARE, 85.50 ,03/05/2016
Delivery Units,Adults and Communities,Other Agencies - Third Party P,30118854,PRACTICAL CARE, 630.00 ,11/05/2016
Delivery Units,Adults and Communities,Other Agencies - Third Party P,30118855,PRACTICAL CARE, 609.00 ,11/05/2016
Delivery Units,Adults and Communities,Other Agencies - Third Party P,30118856,PRACTICAL CARE, 833.00 ,11/05/2016
Delivery Units,Adults and Communities,Other Agencies - Third Party P,30118857,PRACTICAL CARE," 1,890.00 ",11/05/2016
Delivery Units,Adults and Communities,Other Agencies - Third Party P,30118858,PRACTICAL CARE, 945.00 ,11/05/2016
Delivery Units,Adults and Communities,Other Agencies - Third Party P,30118859,PRACTICAL CARE, 840.00 ,11/05/2016
Delivery Units,Adults and Communities,Other Agencies - Third Party P,30118860,PRACTICAL CARE, 910.00 ,11/05/2016
Delivery Units,Adults and Communities,Other Agencies - Third Party P,30121474,PRACTICAL CARE, 427.00 ,19/05/2016
Delivery Units,Adults and Communities,Other Agencies - Third Party P,30121475,PRACTICAL CARE, 490.00 ,31/05/2016
Delivery Units,Adults and Communities,Other Agencies - Third Party P,30121476,PRACTICAL CARE, 868.00 ,31/05/2016
Delivery Units,Adults and Communities,Other Agencies - Third Party P,30121477,PRACTICAL CARE, 70.00 ,31/05/2016
Delivery Units,Adults and Communities,Other Agencies - Third Party P,30121478,PRACTICAL CARE, 406.00 ,31/05/2016
Delivery Units,Adults and Communities,Other Agencies - Third Party P,30121479,PRACTICAL CARE, 735.00 ,31/05/2016
Delivery Units,Adults and Communities,Other Agencies - Third Party P,30121480,PRACTICAL CARE, 686.00 ,31/05/2016
Delivery Units,Adults and Communities,Other Agencies - Third Party P,30121221,PROSPECTS STAFF BUREAU LTD, 406.25 ,17/05/2016
Delivery Units,Adults and Communities,Other Agencies - Third Party P,30121222,PROSPECTS STAFF BUREAU LTD, 406.25 ,17/05/2016
Delivery Units,Adults and Communities,Other Agencies - Third Party P,30121223,PROSPECTS STAFF BUREAU LTD, 406.25 ,17/05/2016
Delivery Units,Adults and Communities,Other Agencies - Third Party P,30120379,PROTEA CARE HOMES (KENT ) LTD," 5,391.00 ",05/05/2016
Delivery Units,Adults and Communities,Other Agencies - Third Party P,30120380,PROTEA CARE HOMES (KENT ) LTD," 6,040.00 ",05/05/2016
Delivery Units,Adults and Communities,Other Agencies - Third Party P,30121935,PRT BARNET CARERS CENTRE," 1,087.50 ",24/05/2016
Delivery Units,Adults and Communities,Other Agencies - Third Party P,30123270,QUANTUM CARE LIMITED," 2,828.57 ",31/05/2016
Delivery Units,Adults and Communities,Other Agencies - Third Party P,30120624,QUEEN ANN CARE," 3,857.14 ",10/05/2016
Delivery Units,Adults and Communities,Other Agencies - Third Party P,30121362,QUEEN ANN CARE," 3,985.71 ",17/05/2016
Delivery Units,Adults and Communities,Other Agencies - Third Party P,30120447,R.M.B.I," 2,249.45 ",06/05/2016
Delivery Units,Adults and Communities,Other Agencies - Third Party P,30120451,R.M.B.I," 2,249.45 ",06/05/2016
Delivery Units,Adults and Communities,Other Agencies - Third Party P,30120452,R.M.B.I," 2,176.89 ",06/05/2016
Delivery Units,Adults and Communities,Other Agencies - Third Party P,30122620,R.M.B.I," 2,249.45 ",27/05/2016
Delivery Units,Adults and Communities,Other Agencies - Third Party P,30120555,RAPKYNS CARE CENTRE," 6,188.57 ",10/05/2016
Delivery Units,Adults and Communities,Other Agencies - Third Party P,30121484,RAPKYNS CARE CENTRE," 6,394.86 ",19/05/2016
Delivery Units,Adults and Communities,Other Agencies - Third Party P,30120918,REHABILITATION EDUCATION AND," 2,842.80 ",13/05/2016
Delivery Units,Adults and Communities,Other Agencies - Third Party P,30120566,RIDGEWAY NURSING HOME," 2,357.10 ",10/05/2016
Delivery Units,Adults and Communities,Other Agencies - Third Party P,30122986,RIDGEWAY NURSING HOME," 2,435.67 ",27/05/2016
Delivery Units,Adults and Communities,Other Agencies - Third Party P,30121597,RIDGEWAY RESIDENTIAL HOME," 2,027.96 ",19/05/2016
Delivery Units,Adults and Communities,Other Agencies - Third Party P,30121009,ROLAND COMMUNITY CARE LTD," 2,150.64 ",13/05/2016
Delivery Units,Adults and Communities,Other Agencies - Third Party P,30121020,ROLAND COMMUNITY CARE LTD," 2,820.36 ",13/05/2016
Delivery Units,Adults and Communities,Other Agencies - Third Party P,30120945,ROLAND RESIDENTIAL CARE HOMES," 3,729.32 ",13/05/2016
Delivery Units,Adults and Communities,Other Agencies - Third Party P,30121596,ROLAND RESIDENTIAL CARE HOMES," 3,853.63 ",19/05/2016
Delivery Units,Adults and Communities,Other Agencies - Third Party P,30120930,ROLAND RESIDENTIAL CARE HOMES LTD," 3,214.84 ",13/05/2016
Delivery Units,Adults and Communities,Other Agencies - Third Party P,30120940,ROLAND RESIDENTIAL CARE HOMES LTD," 4,182.98 ",13/05/2016
Delivery Units,Adults and Communities,Other Agencies - Third Party P,30120941,ROLAND RESIDENTIAL CARE HOMES LTD," 4,435.47 ",13/05/2016
Delivery Units,Adults and Communities,Other Agencies - Third Party P,30120942,ROLAND RESIDENTIAL CARE HOMES LTD," 4,162.74 ",13/05/2016
Delivery Units,Adults and Communities,Other Agencies - Third Party P,30120944,ROLAND RESIDENTIAL CARE HOMES LTD," 3,415.91 ",13/05/2016
Delivery Units,Adults and Communities,Other Agencies - Third Party P,30121545,ROLAND RESIDENTIAL CARE HOMES LTD," 3,322.00 ",19/05/2016
Delivery Units,Adults and Communities,Other Agencies - Third Party P,30121591,ROLAND RESIDENTIAL CARE HOMES LTD," 4,322.41 ",19/05/2016
Delivery Units,Adults and Communities,Other Agencies - Third Party P,30121592,ROLAND RESIDENTIAL CARE HOMES LTD," 3,529.77 ",19/05/2016
Delivery Units,Adults and Communities,Other Agencies - Third Party P,30121874,ROLAND RESIDENTIAL CARE HOMES LTD," 4,583.32 ",23/05/2016
Delivery Units,Adults and Communities,Other Agencies - Third Party P,30120484,ROSEACRES CARE HOME LIMITED," 2,418.04 ",06/05/2016
Delivery Units,Adults and Communities,Other Agencies - Third Party P,30120485,ROSEACRES CARE HOME LIMITED, 552.95 ,06/05/2016
Delivery Units,Adults and Communities,Other Agencies - Third Party P,30120486,ROSEACRES CARE HOME LIMITED," 2,448.78 ",06/05/2016
Delivery Units,Adults and Communities,Other Agencies - Third Party P,30120487,ROSEACRES CARE HOME LIMITED," 1,105.90 ",06/05/2016
Delivery Units,Adults and Communities,Other Agencies - Third Party P,30120488,ROSEACRES CARE HOME LIMITED," 8,127.04 ",06/05/2016
Delivery Units,Adults and Communities,Other Agencies - Third Party P,30120489,ROSEACRES CARE HOME LIMITED, 653.07 ,06/05/2016
Delivery Units,Adults and Communities,Other Agencies - Third Party P,30120490,ROSEACRES CARE HOME LIMITED," 1,716.03 ",06/05/2016
Delivery Units,Adults and Communities,Other Agencies - Third Party P,30120491,ROSEACRES CARE HOME LIMITED," 1,121.40 ",06/05/2016
Delivery Units,Adults and Communities,Other Agencies - Third Party P,30121171,ROSEACRES CARE HOME LIMITED," 2,369.79 ",16/05/2016
Delivery Units,Adults and Communities,Other Agencies - Third Party P,30121172,ROSEACRES CARE HOME LIMITED," 2,369.79 ",17/05/2016
Delivery Units,Adults and Communities,Other Agencies - Third Party P,30121173,ROSEACRES CARE HOME LIMITED," 2,369.79 ",17/05/2016
Delivery Units,Adults and Communities,Other Agencies - Third Party P,30121174,ROSEACRES CARE HOME LIMITED," 2,369.79 ",17/05/2016
Delivery Units,Adults and Communities,Other Agencies - Third Party P,30121175,ROSEACRES CARE HOME LIMITED," 2,369.79 ",17/05/2016
Delivery Units,Adults and Communities,Other Agencies - Third Party P,30121176,ROSEACRES CARE HOME LIMITED," 2,369.79 ",17/05/2016
Delivery Units,Adults and Communities,Other Agencies - Third Party P,30121177,ROSEACRES CARE HOME LIMITED," 2,176.89 ",17/05/2016
Delivery Units,Adults and Communities,Other Agencies - Third Party P,30121178,ROSEACRES CARE HOME LIMITED," 2,448.78 ",17/05/2016
Delivery Units,Adults and Communities,Other Agencies - Third Party P,30121179,ROSEACRES CARE HOME LIMITED," 2,369.79 ",17/05/2016
Delivery Units,Adults and Communities,Other Agencies - Third Party P,30121180,ROSEACRES CARE HOME LIMITED," 2,369.79 ",17/05/2016
Delivery Units,Adults and Communities,Other Agencies - Third Party P,30121181,ROSEACRES CARE HOME LIMITED, 947.91 ,17/05/2016
Delivery Units,Adults and Communities,Other Agencies - Third Party P,30121182,ROSEACRES CARE HOME LIMITED," 2,369.79 ",17/05/2016
Delivery Units,Adults and Communities,Other Agencies - Third Party P,30121183,ROSEACRES CARE HOME LIMITED," 2,369.79 ",17/05/2016
Delivery Units,Adults and Communities,Other Agencies - Third Party P,30121184,ROSEACRES CARE HOME LIMITED," 2,369.79 ",17/05/2016
Delivery Units,Adults and Communities,Other Agencies - Third Party P,30121185,ROSEACRES CARE HOME LIMITED," 2,369.79 ",17/05/2016
Delivery Units,Adults and Communities,Other Agencies - Third Party P,30122750,ROWAN HOUSE," 4,422.28 ",26/05/2016
Delivery Units,Adults and Communities,Other Agencies - Third Party P,30120956,ROYAL MENCAP SOCIETY," 1,722.60 ",13/05/2016
Delivery Units,Adults and Communities,Other Agencies - Third Party P,30120957,ROYAL MENCAP SOCIETY," 1,595.00 ",13/05/2016
Delivery Units,Adults and Communities,Other Agencies - Third Party P,30123269,SAGE NURSING HOME, 942.26 ,31/05/2016
Delivery Units,Adults and Communities,Other Agencies - Third Party P,30120690,SANCTUARY CARE LTD,"-1,132.56 ",10/05/2016
Delivery Units,Adults and Communities,Other Agencies - Third Party P,30120696,SANCTUARY CARE LTD," 2,340.04 ",10/05/2016
Delivery Units,Adults and Communities,Other Agencies - Third Party P,30122739,SANCTUARY CARE LTD," 2,418.04 ",26/05/2016
Delivery Units,Adults and Communities,Other Agencies - Third Party P,30121580,SCIMITAR CARE HOTELS PLC," 3,750.00 ",19/05/2016
Delivery Units,Adults and Communities,Other Agencies - Third Party P,30121869,SCIMITAR CARE HOTELS PLC," 3,875.00 ",23/05/2016
Delivery Units,Adults and Communities,Other Agencies - Third Party P,30122973,SCOPE,"-1,706.06 ",27/05/2016
Delivery Units,Adults and Communities,Other Agencies - Third Party P,30122975,SCOTTISH SOCIETY FOR AUTISM, 672.00 ,27/05/2016
Delivery Units,Adults and Communities,Other Agencies - Third Party P,30120456,SEAFORTH LODGE," 2,369.79 ",06/05/2016
Delivery Units,Adults and Communities,Other Agencies - Third Party P,30120457,SEAFORTH LODGE," 2,369.79 ",06/05/2016
Delivery Units,Adults and Communities,Other Agencies - Third Party P,30120464,SEAFORTH LODGE," 2,369.79 ",06/05/2016
Delivery Units,Adults and Communities,Other Agencies - Third Party P,30120478,SEAFORTH LODGE," 2,176.89 ",06/05/2016
Delivery Units,Adults and Communities,Other Agencies - Third Party P,30120497,SEAFORTH LODGE," 2,369.79 ",06/05/2016
Delivery Units,Adults and Communities,Other Agencies - Third Party P,30120954,SEAFORTH LODGE," 2,369.79 ",13/05/2016
Delivery Units,Adults and Communities,Other Agencies - Third Party P,30122717,SEAFORTH LODGE," 2,448.78 ",26/05/2016
Delivery Units,Adults and Communities,Other Agencies - Third Party P,30122722,SEAFORTH LODGE," 2,448.78 ",26/05/2016
Delivery Units,Adults and Communities,Other Agencies - Third Party P,30122731,SEAFORTH LODGE," 2,448.78 ",26/05/2016
Delivery Units,Adults and Communities,Other Agencies - Third Party P,30122749,SEAFORTH LODGE," 2,249.45 ",26/05/2016
Delivery Units,Adults and Communities,Other Agencies - Third Party P,30122762,SEAFORTH LODGE," 2,448.78 ",26/05/2016
Delivery Units,Adults and Communities,Other Agencies - Third Party P,30122813,SEAFORTH LODGE," 2,448.78 ",26/05/2016
Delivery Units,Adults and Communities,Other Agencies - Third Party P,30122823,SEAFORTH LODGE," 2,448.78 ",26/05/2016
Delivery Units,Adults and Communities,Other Agencies - Third Party P,30120326,SELF UNLIMITED-LONDON REGION," 4,522.28 ",03/05/2016
Delivery Units,Adults and Communities,Other Agencies - Third Party P,30120327,SELF UNLIMITED-LONDON REGION," 1,921.28 ",03/05/2016
Delivery Units,Adults and Communities,Other Agencies - Third Party P,30120328,SELF UNLIMITED-LONDON REGION," 2,120.72 ",03/05/2016
Delivery Units,Adults and Communities,Other Agencies - Third Party P,30120329,SELF UNLIMITED-LONDON REGION," 4,221.36 ",03/05/2016
Delivery Units,Adults and Communities,Other Agencies - Third Party P,30120330,SELF UNLIMITED-LONDON REGION," 1,048.80 ",03/05/2016
Delivery Units,Adults and Communities,Other Agencies - Third Party P,30120331,SELF UNLIMITED-LONDON REGION," 3,040.00 ",03/05/2016
Delivery Units,Adults and Communities,Other Agencies - Third Party P,30120332,SELF UNLIMITED-LONDON REGION," 3,947.12 ",03/05/2016
